Workbook

Sheet Main
B10: 2021-04-09
B12: Sheet No. | C12: Template Name | D12: Summary
B13: 1 | C13: Future Intra | D13: For Intraday trading in F&O segment
B14: 2 | C14: Cash Intra | D14: For Intraday trading in cash market segment
B15: 3 | C15: Mid-cap Intra | D15: For Intraday trading in Mid-cap stocks
B16: 4 | C16: Bulk Deals | D16: Reveals Bulk Deals carried on NSE & BSE
B17: 5 | C17: Call Tracker
K27: `

Sheet Future Intra
M5: Back to Main Page
A6: FOR INTRA DAY TRADING | L6: =Main!B10 -> 2021-04-09
A9: Sr.no | B9: Sector | C9: Scrip | D9: Expiry Date | E9: CLOSE RATE | F9: Pivot Point | G9: Supports | J9: Resistances
B10: Sector | E10: Point | F10: Point | G10: S1 | H10: S2 | I10: S3 | J10: R1 | K10: R2 | L10: R3 | M10: HIGH | N10: LOW | O10: OI | P10: % Change in OI
A11: 1 | B11: Index | C11: BANKNIFTY | D11: 2021-04-29 | E11: 32945.70 | F11: 33095.72 | G11: 32701.48 | H11: 32457.27 | I11: 32063.03 | J11: 33339.93 | K11: 33734.17 | L11: 33978.38 | M11: 33489.95 | N11: 32851.5 | O11: 1846400 | P11: -8.18%
A12: 2 | B12: Index | C12: NIFTY | D12: 2021-04-29 | E12: 14924.40 | F12: 14947.45 | G12: 14850.20 | H12: 14776.00 | I12: 14678.75 | J12: 15021.65 | K12: 15118.90 | L12: 15193.10 | M12: 15044.7 | N12: 14873.25 | O12: 11524875 | P12: -2.19%
A13: 3 | B13: Index | C13: FINNIFTY | D13: 2021-04-29 | E13: 15600.85 | F13: 15646.50 | G13: 15484.00 | H13: 15367.15 | I13: 15204.65 | J13: 15763.35 | K13: 15925.85 | L13: 16042.70 | M13: 15809 | N13: 15529.65 | O13: 15640 | P13: -26.09%
A14: 4 | B14: Chemical | C14: AARTIIND | D14: 2021-04-29 | E14: 1425.20 | F14: 1428.03 | G14: 1411.37 | H14: 1397.53 | I14: 1380.87 | J14: 1441.87 | K14: 1458.53 | L14: 1472.37 | M14: 1444.7 | N14: 1414.2 | O14: 553775 | P14: -6.12%
A15: 5 | B15: Cement | C15: ACC | D15: 2021-04-29 | E15: 1995.45 | F15: 1981.38 | G15: 1944.77 | H15: 1894.08 | I15: 1857.47 | J15: 2032.07 | K15: 2068.68 | L15: 2119.37 | M15: 2018 | N15: 1930.7 | O15: 2994000 | P15: 5.24%
A16: 6 | B16: Others | C16: ADANIENT | D16: 2021-04-29 | E16: 1168.90 | F16: 1170.28 | G16: 1143.57 | H16: 1118.23 | I16: 1091.52 | J16: 1195.62 | K16: 1222.33 | L16: 1247.67 | M16: 1197 | N16: 1144.95 | O16: 18056000 | P16: 2.01%
A17: 7 | B17: Others | C17: ADANIPORTS | D17: 2021-04-29 | E17: 828.55 | F17: 827.25 | G17: 811.85 | H17: 795.15 | I17: 779.75 | J17: 843.95 | K17: 859.35 | L17: 876.05 | M17: 842.65 | N17: 810.55 | O17: 63867500 | P17: 0.54%
A18: 8 | B18: Pharma | C18: ALKEM | D18: 2021-04-29 | E18: 2723.35 | F18: 2736.12 | G18: 2703.73 | H18: 2684.12 | I18: 2651.73 | J18: 2755.73 | K18: 2788.12 | L18: 2807.73 | M18: 2768.5 | N18: 2716.5 | O18: 225200 | P18: 2.93%
A19: 9 | B19: Automobile | C19: AMARAJABAT | D19: 2021-04-29 | E19: 819.00 | F19: 827.60 | G19: 805.40 | H19: 791.80 | I19: 769.60 | J19: 841.20 | K19: 863.40 | L19: 877.00 | M19: 849.8 | N19: 814 | O19: 4422000 | P19: 35.81%
A20: 10 | B20: Cement | C20: AMBUJACEM | D20: 2021-04-29 | E20: 322.60 | F20: 320.52 | G20: 313.63 | H20: 304.67 | I20: 297.78 | J20: 329.48 | K20: 336.37 | L20: 345.33 | M20: 327.4 | N20: 311.55 | O20: 17511000 | P20: 9.08%
A21: 11 | B21: Pharma | C21: APLLTD | D21: 2021-04-29 | E21: 979.45 | F21: 988.82 | G21: 965.63 | H21: 951.82 | I21: 928.63 | J21: 1002.63 | K21: 1025.82 | L21: 1039.63 | M21: 1012 | N21: 975 | O21: 930600 | P21: 13.03%
A22: 12 | B22: Others | C22: APOLLOHOSP | D22: 2021-04-29 | E22: 3135.60 | F22: 3135.90 | G22: 3109.80 | H22: 3084.00 | I22: 3057.90 | J22: 3161.70 | K22: 3187.80 | L22: 3213.60 | M22: 3162 | N22: 3110.1 | O22: 1858000 | P22: 2.74%
A23: 13 | B23: Automobile | C23: APOLLOTYRE | D23: 2021-04-29 | E23: 225.90 | F23: 227.23 | G23: 223.72 | H23: 221.53 | I23: 218.02 | J23: 229.42 | K23: 232.93 | L23: 235.12 | M23: 230.75 | N23: 225.05 | O23: 11530000 | P23: 5.20%
A24: 14 | B24: Automobile | C24: ASHOKLEY | D24: 2021-04-29 | E24: 123.10 | F24: 122.20 | G24: 118.80 | H24: 114.50 | I24: 111.10 | J24: 126.50 | K24: 129.90 | L24: 134.20 | M24: 125.6 | N24: 117.9 | O24: 44478000 | P24: -2.06%
A25: 15 | B25: FMCG | C25: ASIANPAINT | D25: 2021-04-29 | E25: 2658.85 | F25: 2657.65 | G25: 2641.30 | H25: 2623.75 | I25: 2607.40 | J25: 2675.20 | K25: 2691.55 | L25: 2709.10 | M25: 2674 | N25: 2640.1 | O25: 5155500 | P25: -1.07%
A26: 16 | B26: Banking | C26: AUBANK | D26: 2021-04-29 | E26: 1258.20 | F26: 1253.77 | G26: 1237.53 | H26: 1216.87 | I26: 1200.63 | J26: 1274.43 | K26: 1290.67 | L26: 1311.33 | M26: 1270 | N26: 1233.1 | O26: 2299000 | P26: -5.04%
A27: 17 | B27: Pharma | C27: AUROPHARMA | D27: 2021-04-29 | E27: 913.25 | F27: 917.02 | G27: 908.23 | H27: 903.22 | I27: 894.43 | J27: 922.03 | K27: 930.82 | L27: 935.83 | M27: 925.8 | N27: 912 | O27: 8944650 | P27: 0.46%
A28: 18 | B28: Banking | C28: AXISBANK | D28: 2021-04-29 | E28: 684.30 | F28: 688.43 | G28: 677.87 | H28: 671.43 | I28: 660.87 | J28: 694.87 | K28: 705.43 | L28: 711.87 | M28: 699 | N28: 682 | O28: 42244800 | P28: -0.54%
A29: 19 | B29: Automobile | C29: BAJAJ-AUTO | D29: 2021-04-29 | E29: 3668.15 | F29: 3679.60 | G29: 3649.30 | H29: 3630.45 | I29: 3600.15 | J29: 3698.45 | K29: 3728.75 | L29: 3747.60 | M29: 3709.9 | N29: 3660.75 | O29: 2018000 | P29: -0.88%
A30: 20 | B30: Finance | C30: BAJAJFINSV | D30: 2021-04-29 | E30: 9680.50 | F30: 9695.92 | G30: 9616.53 | H30: 9552.57 | I30: 9473.18 | J30: 9759.88 | K30: 9839.27 | L30: 9903.23 | M30: 9775.3 | N30: 9631.95 | O30: 559750 | P30: -4.70%
A31: 21 | B31: Finance | C31: BAJFINANCE | D31: 2021-04-29 | E31: 5061.20 | F31: 5081.63 | G31: 5025.67 | H31: 4990.13 | I31: 4934.17 | J31: 5117.17 | K31: 5173.13 | L31: 5208.67 | M31: 5137.6 | N31: 5046.1 | O31: 3650250 | P31: 2.67%
A32: 22 | B32: Automobile | C32: BALKRISIND | D32: 2021-04-29 | E32: 1688.60 | F32: 1691.90 | G32: 1671.75 | H32: 1654.90 | I32: 1634.75 | J32: 1708.75 | K32: 1728.90 | L32: 1745.75 | M32: 1712.05 | N32: 1675.05 | O32: 1599600 | P32: 0.65%
A33: 23 | B33: Banking | C33: BANDHANBNK | D33: 2021-04-29 | E33: 357.30 | F33: 356.87 | G33: 350.93 | H33: 344.57 | I33: 338.63 | J33: 363.23 | K33: 369.17 | L33: 375.53 | M33: 362.8 | N33: 350.5 | O33: 16432200 | P33: -0.15%
A34: 24 | B34: Banking | C34: BANKBARODA | D34: 2021-04-29 | E34: 73.85 | F34: 74.42 | G34: 72.93 | H34: 72.02 | I34: 70.53 | J34: 75.33 | K34: 76.82 | L34: 77.73 | M34: 75.9 | N34: 73.5 | O34: 122838300 | P34: -1.14%
A35: 25 | B35: FMCG | C35: BATAINDIA | D35: 2021-04-29 | E35: 1414.55 | F35: 1411.93 | G35: 1400.67 | H35: 1386.78 | I35: 1375.52 | J35: 1425.82 | K35: 1437.08 | L35: 1450.97 | M35: 1423.2 | N35: 1398.05 | O35: 1771550 | P35: 2.45%
A36: 26 | B36: Capital_Goods | C36: BEL | D36: 2021-04-29 | E36: 130.95 | F36: 131.88 | G36: 129.37 | H36: 127.78 | I36: 125.27 | J36: 133.47 | K36: 135.98 | L36: 137.57 | M36: 134.4 | N36: 130.3 | O36: 44201600 | P36: 3.34%
A37: 27 | B37: FMCG | C37: BERGEPAINT | D37: 2021-04-29 | E37: 767.55 | F37: 764.68 | G37: 759.42 | H37: 751.28 | I37: 746.02 | J37: 772.82 | K37: 778.08 | L37: 786.22 | M37: 769.95 | N37: 756.55 | O37: 3116300 | P37: -2.95%
A38: 28 | B38: Automobile | C38: BHARATFORG | D38: 2021-04-29 | E38: 618.60 | F38: 620.30 | G38: 615.45 | H38: 612.30 | I38: 607.45 | J38: 623.45 | K38: 628.30 | L38: 631.45 | M38: 625.15 | N38: 617.15 | O38: 5488500 | P38: -2.74%
A39: 29 | B39: Telecom | C39: BHARTIARTL | D39: 2021-04-29 | E39: 544.85 | F39: 545.88 | G39: 541.77 | H39: 538.68 | I39: 534.57 | J39: 548.97 | K39: 553.08 | L39: 556.17 | M39: 550 | N39: 542.8 | O39: 97605081 | P39: 1.02%
A40: 30 | B40: Capital_Goods | C40: BHEL | D40: 2021-04-29 | E40: 51.95 | F40: 51.82 | G40: 50.18 | H40: 48.42 | I40: 46.78 | J40: 53.58 | K40: 55.22 | L40: 56.98 | M40: 53.45 | N40: 50.05 | O40: 108822000 | P40: 7.40%
A41: 31 | B41: Pharma | C41: BIOCON | D41: 2021-04-29 | E41: 415.75 | F41: 416.32 | G41: 413.63 | H41: 411.52 | I41: 408.83 | J41: 418.43 | K41: 421.12 | L41: 423.23 | M41: 419 | N41: 414.2 | O41: 14358900 | P41: 0.06%
A42: 32 | B42: Automobile | C42: BOSCHLTD | D42: 2021-04-29 | E42: 14779.05 | F42: 14758.32 | G42: 14619.63 | H42: 14460.22 | I42: 14321.53 | J42: 14917.73 | K42: 15056.42 | L42: 15215.83 | M42: 14897 | N42: 14598.9 | O42: 104800 | P42: 3.00%
A43: 33 | B43: Oil_Gas | C43: BPCL | D43: 2021-04-29 | E43: 432.25 | F43: 433.67 | G43: 429.43 | H43: 426.62 | I43: 422.38 | J43: 436.48 | K43: 440.72 | L43: 443.53 | M43: 437.9 | N43: 430.85 | O43: 47048400 | P43: -0.93%
A44: 34 | B44: FMCG | C44: BRITANNIA | D44: 2021-04-29 | E44: 3820.60 | F44: 3802.27 | G44: 3768.08 | H44: 3715.57 | I44: 3681.38 | J44: 3854.78 | K44: 3888.97 | L44: 3941.48 | M44: 3836.45 | N44: 3749.75 | O44: 1900800 | P44: 1.56%
A45: 35 | B45: Pharma | C45: CADILAHC | D45: 2021-04-29 | E45: 473.65 | F45: 472.20 | G45: 465.45 | H45: 457.25 | I45: 450.50 | J45: 480.40 | K45: 487.15 | L45: 495.35 | M45: 478.95 | N45: 464 | O45: 10443400 | P45: -4.64%
A46: 36 | B46: Banking | C46: CANBK | D46: 2021-04-29 | E46: 148.10 | F46: 149.22 | G46: 146.08 | H46: 144.07 | I46: 140.93 | J46: 151.23 | K46: 154.37 | L46: 156.38 | M46: 152.35 | N46: 147.2 | O46: 58843800 | P46: 0.35%
A47: 37 | B47: Finance | C47: CHOLAFIN | D47: 2021-04-29 | E47: 566.25 | F47: 571.73 | G47: 558.77 | H47: 551.28 | I47: 538.32 | J47: 579.22 | K47: 592.18 | L47: 599.67 | M47: 584.7 | N47: 564.25 | O47: 6117500 | P47: -4.00%
A48: 38 | B48: Pharma | C48: CIPLA | D48: 2021-04-29 | E48: 846.45 | F48: 848.17 | G48: 842.13 | H48: 837.82 | I48: 831.78 | J48: 852.48 | K48: 858.52 | L48: 862.83 | M48: 854.2 | N48: 843.85 | O48: 10709400 | P48: -0.81%
A49: 39 | B49: Others | C49: COALINDIA | D49: 2021-04-29 | E49: 132.15 | F49: 132.70 | G49: 131.25 | H49: 130.35 | I49: 128.90 | J49: 133.60 | K49: 135.05 | L49: 135.95 | M49: 134.15 | N49: 131.8 | O49: 47136600 | P49: 0.63%
A50: 40 | B50: Technology | C50: COFORGE | D50: 2021-04-29 | E50: 3100.15 | F50: 3124.43 | G50: 3049.17 | H50: 2998.18 | I50: 2922.92 | J50: 3175.42 | K50: 3250.68 | L50: 3301.67 | M50: 3199.7 | N50: 3073.45 | O50: 754125 | P50: 4.20%
A51: 41 | B51: FMCG | C51: COLPAL | D51: 2021-04-29 | E51: 1595.35 | F51: 1585.52 | G51: 1571.13 | H51: 1546.92 | I51: 1532.53 | J51: 1609.73 | K51: 1624.12 | L51: 1648.33 | M51: 1599.9 | N51: 1561.3 | O51: 3641400 | P51: -0.55%
A52: 42 | B52: Others | C52: CONCOR | D52: 2021-04-29 | E52: 594.00 | F52: 595.47 | G52: 587.93 | H52: 581.87 | I52: 574.33 | J52: 601.53 | K52: 609.07 | L52: 615.13 | M52: 603 | N52: 589.4 | O52: 5762781 | P52: -2.56%
A53: 43 | B53: Banking | C53: CUB | D53: 2021-04-29 | E53: 167.00 | F53: 167.20 | G53: 165.40 | H53: 163.80 | I53: 162.00 | J53: 168.80 | K53: 170.60 | L53: 172.20 | M53: 169 | N53: 165.6 | O53: 8118900 | P53: -5.76%
A54: 44 | B54: Capital_Goods | C54: CUMMINSIND | D54: 2021-04-29 | E54: 888.40 | F54: 892.77 | G54: 880.63 | H54: 872.87 | I54: 860.73 | J54: 900.53 | K54: 912.67 | L54: 920.43 | M54: 904.9 | N54: 885 | O54: 1730400 | P54: -4.94%
A55: 45 | B55: FMCG | C55: DABUR | D55: 2021-04-29 | E55: 561.65 | F55: 558.93 | G55: 554.27 | H55: 546.88 | I55: 542.22 | J55: 566.32 | K55: 570.98 | L55: 578.37 | M55: 563.6 | N55: 551.55 | O55: 8262500 | P55: 1.80%
A56: 46 | B56: Chemical | C56: DEEPAKNTR | D56: 2021-04-29 | E56: 1722.65 | F56: 1730.38 | G56: 1702.37 | H56: 1682.08 | I56: 1654.07 | J56: 1750.67 | K56: 1778.68 | L56: 1798.97 | M56: 1758.4 | N56: 1710.1 | O56: 1127000 | P56: 1.30%
A57: 47 | B57: Pharma | C57: DIVISLAB | D57: 2021-04-29 | E57: 3735.50 | F57: 3752.52 | G57: 3686.03 | H57: 3636.57 | I57: 3570.08 | J57: 3801.98 | K57: 3868.47 | L57: 3917.93 | M57: 3819 | N57: 3703.05 | O57: 2604400 | P57: 0.02%
A58: 48 | B58: Realty | C58: DLF | D58: 2021-04-29 | E58: 282.20 | F58: 284.07 | G58: 279.38 | H58: 276.57 | I58: 271.88 | J58: 286.88 | K58: 291.57 | L58: 294.38 | M58: 288.75 | N58: 281.25 | O58: 28818900 | P58: 1.22%
A59: 49 | B59: Pharma | C59: DRREDDY | D59: 2021-04-29 | E59: 4716.35 | F59: 4722.62 | G59: 4672.43 | H59: 4628.52 | I59: 4578.33 | J59: 4766.53 | K59: 4816.72 | L59: 4860.63 | M59: 4772.8 | N59: 4678.7 | O59: 2983000 | P59: -1.75%
A60: 50 | B60: Automobile | C60: EICHERMOT | D60: 2021-04-29 | E60: 2560.00 | F60: 2571.68 | G60: 2541.02 | H60: 2522.03 | I60: 2491.37 | J60: 2590.67 | K60: 2621.33 | L60: 2640.32 | M60: 2602.35 | N60: 2552.7 | O60: 2508800 | P60: -3.12%
A61: 51 | B61: Automobile | C61: ESCORTS | D61: 2021-04-29 | E61: 1274.50 | F61: 1270.63 | G61: 1251.37 | H61: 1228.23 | I61: 1208.97 | J61: 1293.77 | K61: 1313.03 | L61: 1336.17 | M61: 1289.9 | N61: 1247.5 | O61: 2107600 | P61: -9.45%
A62: 52 | B62: Automobile | C62: EXIDEIND | D62: 2021-04-29 | E62: 186.75 | F62: 187.50 | G62: 185.55 | H62: 184.35 | I62: 182.40 | J62: 188.70 | K62: 190.65 | L62: 191.85 | M62: 189.45 | N62: 186.3 | O62: 13546800 | P62: 0.43%
A63: 53 | B63: Banking | C63: FEDERALBNK | D63: 2021-04-29 | E63: 78.30 | F63: 78.95 | G63: 77.30 | H63: 76.30 | I63: 74.65 | J63: 79.95 | K63: 81.60 | L63: 82.60 | M63: 80.6 | N63: 77.95 | O63: 70030000 | P63: -1.19%
A64: 54 | B64: Oil_Gas | C64: GAIL | D64: 2021-04-29 | E64: 139.00 | F64: 139.48 | G64: 137.77 | H64: 136.53 | I64: 134.82 | J64: 140.72 | K64: 142.43 | L64: 143.67 | M64: 141.2 | N64: 138.25 | O64: 46244100 | P64: -0.55%
A65: 55 | B65: Pharma | C65: GLENMARK | D65: 2021-04-29 | E65: 508.40 | F65: 510.60 | G65: 501.20 | H65: 494.00 | I65: 484.60 | J65: 517.80 | K65: 527.20 | L65: 534.40 | M65: 520 | N65: 503.4 | O65: 7831500 | P65: 4.14%
A66: 56 | B66: Infrastructure | C66: GMRINFRA | D66: 2021-04-29 | E66: 24.45 | F66: 24.48 | G66: 24.17 | H66: 23.88 | I66: 23.57 | J66: 24.77 | K66: 25.08 | L66: 25.37 | M66: 24.8 | N66: 24.2 | O66: 162585000 | P66: 0.65%
A67: 57 | B67: FMCG | C67: GODREJCP | D67: 2021-04-29 | E67: 741.95 | F67: 743.07 | G67: 733.88 | H67: 725.82 | I67: 716.63 | J67: 751.13 | K67: 760.32 | L67: 768.38 | M67: 752.25 | N67: 735 | O67: 5031000 | P67: 1.13%
A68: 58 | B68: Realty | C68: GODREJPROP | D68: 2021-04-29 | E68: 1386.10 | F68: 1388.95 | G68: 1369.15 | H68: 1352.20 | I68: 1332.40 | J68: 1405.90 | K68: 1425.70 | L68: 1442.65 | M68: 1408.75 | N68: 1372 | O68: 1707550 | P68: -4.85%
A69: 59 | B69: Pharma | C69: GRANULES | D69: 2021-04-29 | E69: 335.35 | F69: 335.92 | G69: 330.23 | H69: 325.12 | I69: 319.43 | J69: 341.03 | K69: 346.72 | L69: 351.83 | M69: 341.6 | N69: 330.8 | O69: 6365850 | P69: -1.65%
A70: 60 | B70: Cement | C70: GRASIM | D70: 2021-04-29 | E70: 1455.60 | F70: 1455.98 | G70: 1442.32 | H70: 1429.03 | I70: 1415.37 | J70: 1469.27 | K70: 1482.93 | L70: 1496.22 | M70: 1469.65 | N70: 1442.7 | O70: 15987550 | P70: 0.23%
A71: 61 | B71: Oil_Gas | C71: GUJGASLTD | D71: 2021-04-29 | E71: 552.50 | F71: 551.43 | G71: 542.02 | H71: 531.53 | I71: 522.12 | J71: 561.92 | K71: 571.33 | L71: 581.82 | M71: 560.85 | N71: 540.95 | O71: 1158750 | P71: 4.75%
A72: 62 | B72: Capital_Goods | C72: HAVELLS | D72: 2021-04-29 | E72: 1063.35 | F72: 1063.45 | G72: 1053.90 | H72: 1044.45 | I72: 1034.90 | J72: 1072.90 | K72: 1082.45 | L72: 1091.90 | M72: 1073 | N72: 1054 | O72: 4845000 | P72: -1.42%
A73: 63 | B73: Technology | C73: HCLTECH | D73: 2021-04-29 | E73: 1044.50 | F73: 1047.93 | G73: 1035.27 | H73: 1026.03 | I73: 1013.37 | J73: 1057.17 | K73: 1069.83 | L73: 1079.07 | M73: 1060.6 | N73: 1038.7 | O73: 17499300 | P73: 1.32%
A74: 64 | B74: Finance | C74: HDFC | D74: 2021-04-29 | E74: 2509.95 | F74: 2514.18 | G74: 2489.37 | H74: 2468.78 | I74: 2443.97 | J74: 2534.77 | K74: 2559.58 | L74: 2580.17 | M74: 2539 | N74: 2493.6 | O74: 15282000 | P74: -2.79%
A75: 65 | B75: Finance | C75: HDFCAMC | D75: 2021-04-29 | E75: 3024.35 | F75: 2998.80 | G75: 2935.95 | H75: 2847.55 | I75: 2784.70 | J75: 3087.20 | K75: 3150.05 | L75: 3238.45 | M75: 3061.65 | N75: 2910.4 | O75: 619800 | P75: 15.42%
A76: 66 | B76: Banking | C76: HDFCBANK | D76: 2021-04-29 | E76: 1442.25 | F76: 1450.60 | G76: 1431.65 | H76: 1421.05 | I76: 1402.10 | J76: 1461.20 | K76: 1480.15 | L76: 1490.75 | M76: 1469.55 | N76: 1440 | O76: 33546700 | P76: 4.76%
A77: 67 | B77: Finance | C77: HDFCLIFE | D77: 2021-04-29 | E77: 704.10 | F77: 704.62 | G77: 700.28 | H77: 696.47 | I77: 692.13 | J77: 708.43 | K77: 712.77 | L77: 716.58 | M77: 708.95 | N77: 700.8 | O77: 8422700 | P77: -0.74%
A78: 68 | B78: Automobile | C78: HEROMOTOCO | D78: 2021-04-29 | E78: 2934.25 | F78: 2950.38 | G78: 2908.87 | H78: 2883.48 | I78: 2841.97 | J78: 2975.77 | K78: 3017.28 | L78: 3042.67 | M78: 2991.9 | N78: 2925 | O78: 4410900 | P78: 0.38%
A79: 69 | B79: Metals | C79: HINDALCO | D79: 2021-04-29 | E79: 366.60 | F79: 366.35 | G79: 356.30 | H79: 346.00 | I79: 335.95 | J79: 376.65 | K79: 386.70 | L79: 397.00 | M79: 376.4 | N79: 356.05 | O79: 32972400 | P79: 5.27%
A80: 70 | B80: Oil_Gas | C80: HINDPETRO | D80: 2021-04-29 | E80: 239.35 | F80: 239.28 | G80: 236.97 | H80: 234.58 | I80: 232.27 | J80: 241.67 | K80: 243.98 | L80: 246.37 | M80: 241.6 | N80: 236.9 | O80: 24734700 | P80: -0.94%
A81: 71 | B81: FMCG | C81: HINDUNILVR | D81: 2021-04-29 | E81: 2423.00 | F81: 2426.22 | G81: 2407.58 | H81: 2392.17 | I81: 2373.53 | J81: 2441.63 | K81: 2460.27 | L81: 2475.68 | M81: 2444.85 | N81: 2410.8 | O81: 6077100 | P81: -2.24%
A82: 72 | B82: Finance | C82: IBULHSGFIN | D82: 2021-04-29 | E82: 192.50 | F82: 194.38 | G82: 189.77 | H82: 187.03 | I82: 182.42 | J82: 197.12 | K82: 201.73 | L82: 204.47 | M82: 199 | N82: 191.65 | O82: 35470200 | P82: 9.06%
A83: 73 | B83: Banking | C83: ICICIBANK | D83: 2021-04-29 | E83: 578.55 | F83: 580.55 | G83: 573.20 | H83: 567.85 | I83: 560.50 | J83: 585.90 | K83: 593.25 | L83: 598.60 | M83: 587.9 | N83: 575.2 | O83: 94128375 | P83: -1.16%
A84: 74 | B84: Finance | C84: ICICIGI | D84: 2021-04-29 | E84: 1439.15 | F84: 1448.05 | G84: 1426.10 | H84: 1413.05 | I84: 1391.10 | J84: 1461.10 | K84: 1483.05 | L84: 1496.10 | M84: 1470 | N84: 1435 | O84: 988125 | P84: 6.26%
A85: 75 | B85: Finance | C85: ICICIPRULI | D85: 2021-04-29 | E85: 456.30 | F85: 456.68 | G85: 452.57 | H85: 448.83 | I85: 444.72 | J85: 460.42 | K85: 464.53 | L85: 468.27 | M85: 460.8 | N85: 452.95 | O85: 7888500 | P85: -2.50%
A86: 76 | B86: Telecom | C86: IDEA | D86: 2021-04-29 | E86: 9.50 | F86: 9.65 | G86: 9.25 | H86: 9.00 | I86: 8.60 | J86: 9.90 | K86: 10.30 | L86: 10.55 | M86: 10.05 | N86: 9.4 | O86: 678230000 | P86: -5.53%
A87: 77 | B87: Banking | C87: IDFCFIRSTB | D87: 2021-04-29 | E87: 56.65 | F87: 57.00 | G87: 56.10 | H87: 55.55 | I87: 54.65 | J87: 57.55 | K87: 58.45 | L87: 59.00 | M87: 57.9 | N87: 56.45 | O87: 223174000 | P87: 1.86%
A88: 78 | B88: Oil_Gas | C88: IGL | D88: 2021-04-29 | E88: 528.10 | F88: 522.97 | G88: 516.13 | H88: 504.17 | I88: 497.33 | J88: 534.93 | K88: 541.77 | L88: 553.73 | M88: 529.8 | N88: 511 | O88: 5742000 | P88: -0.78%
A89: 79 | B89: Others | C89: INDIGO | D89: 2021-04-29 | E89: 1631.15 | F89: 1621.05 | G89: 1600.10 | H89: 1569.05 | I89: 1548.10 | J89: 1652.10 | K89: 1673.05 | L89: 1704.10 | M89: 1642 | N89: 1590 | O89: 4010500 | P89: 2.26%
A90: 80 | B90: Banking | C90: INDUSINDBK | D90: 2021-04-29 | E90: 940.45 | F90: 946.77 | G90: 931.53 | H90: 922.62 | I90: 907.38 | J90: 955.68 | K90: 970.92 | L90: 979.83 | M90: 962 | N90: 937.85 | O90: 22151700 | P90: -0.28%
A91: 81 | B91: Telecom | C91: INDUSTOWER | D91: 2021-04-29 | E91: 265.30 | F91: 263.53 | G91: 256.17 | H91: 247.03 | I91: 239.67 | J91: 272.67 | K91: 280.03 | L91: 289.17 | M91: 270.9 | N91: 254.4 | O91: 11214000 | P91: -1.01%
A92: 82 | B92: Technology | C92: INFY | D92: 2021-04-29 | E92: 1444.70 | F92: 1442.92 | G92: 1426.98 | H92: 1409.27 | I92: 1393.33 | J92: 1460.63 | K92: 1476.57 | L92: 1494.28 | M92: 1458.85 | N92: 1425.2 | O92: 31665000 | P92: -0.38%
A93: 83 | B93: Oil_Gas | C93: IOC | D93: 2021-04-29 | E93: 93.20 | F93: 93.33 | G93: 92.57 | H93: 91.93 | I93: 91.17 | J93: 93.97 | K93: 94.73 | L93: 95.37 | M93: 94.1 | N93: 92.7 | O93: 65858000 | P93: -0.75%
A94: 84 | B94: Others | C94: IRCTC | D94: 2021-04-29 | E94: 1738.90 | F94: 1726.03 | G94: 1703.42 | H94: 1667.93 | I94: 1645.32 | J94: 1761.52 | K94: 1784.13 | L94: 1819.62 | M94: 1748.65 | N94: 1690.55 | O94: 1982175 | P94: 4.70%
A95: 85 | B95: FMCG | C95: ITC | D95: 2021-04-29 | E95: 214.60 | F95: 215.27 | G95: 213.53 | H95: 212.47 | I95: 210.73 | J95: 216.33 | K95: 218.07 | L95: 219.13 | M95: 217 | N95: 214.2 | O95: 119763200 | P95: 1.81%
A96: 86 | B96: Metals | C96: JINDALSTEL | D96: 2021-04-29 | E96: 418.05 | F96: 414.05 | G96: 397.50 | H96: 376.95 | I96: 360.40 | J96: 434.60 | K96: 451.15 | L96: 471.70 | M96: 430.6 | N96: 393.5 | O96: 31190000 | P96: 2.28%
A97: 87 | B97: Metals | C97: JSWSTEEL | D97: 2021-04-29 | E97: 616.60 | F97: 607.55 | G97: 574.15 | H97: 531.70 | I97: 498.30 | J97: 650.00 | K97: 683.40 | L97: 725.85 | M97: 640.95 | N97: 565.1 | O97: 36498600 | P97: 5.67%
A98: 88 | B98: Others | C98: JUBLFOOD | D98: 2021-04-29 | E98: 2886.85 | F98: 2902.88 | G98: 2863.77 | H98: 2840.68 | I98: 2801.57 | J98: 2925.97 | K98: 2965.08 | L98: 2988.17 | M98: 2942 | N98: 2879.8 | O98: 1579500 | P98: 3.85%
A99: 89 | B99: Banking | C99: KOTAKBANK | D99: 2021-04-29 | E99: 1792.30 | F99: 1803.77 | G99: 1778.53 | H99: 1764.77 | I99: 1739.53 | J99: 1817.53 | K99: 1842.77 | L99: 1856.53 | M99: 1829 | N99: 1790 | O99: 12039600 | P99: -2.81%
A100: 90 | B100: Finance | C100: L&TFH | D100: 2021-04-29 | E100: 99.05 | F100: 99.20 | G100: 97.80 | H100: 96.55 | I100: 95.15 | J100: 100.45 | K100: 101.85 | L100: 103.10 | M100: 100.6 | N100: 97.95 | O100: 29484896 | P100: -0.03%
A101: 91 | B101: Others | C101: LALPATHLAB | D101: 2021-04-29 | E101: 3120.65 | F101: 3103.27 | G101: 3016.63 | H101: 2912.62 | I101: 2825.98 | J101: 3207.28 | K101: 3293.92 | L101: 3397.93 | M101: 3189.9 | N101: 2999.25 | O101: 326500 | P101: 8.11%
A102: 92 | B102: Finance | C102: LICHSGFIN | D102: 2021-04-29 | E102: 422.55 | F102: 424.57 | G102: 419.13 | H102: 415.72 | I102: 410.28 | J102: 427.98 | K102: 433.42 | L102: 436.83 | M102: 430 | N102: 421.15 | O102: 7398000 | P102: 6.78%
A103: 93 | B103: Capital_Goods | C103: LT | D103: 2021-04-29 | E103: 1424.20 | F103: 1427.98 | G103: 1412.87 | H103: 1401.53 | I103: 1386.42 | J103: 1439.32 | K103: 1454.43 | L103: 1465.77 | M103: 1443.1 | N103: 1416.65 | O103: 13476275 | P103: 0.63%
A104: 94 | B104: Technology | C104: LTI | D104: 2021-04-29 | E104: 4344.30 | F104: 4356.35 | G104: 4297.95 | H104: 4251.60 | I104: 4193.20 | J104: 4402.70 | K104: 4461.10 | L104: 4507.45 | M104: 4414.75 | N104: 4310 | O104: 412950 | P104: 4.24%
A105: 95 | B105: Technology | C105: LTTS | D105: 2021-04-29 | E105: 2887.85 | F105: 2883.75 | G105: 2828.50 | H105: 2769.15 | I105: 2713.90 | J105: 2943.10 | K105: 2998.35 | L105: 3057.70 | M105: 2939 | N105: 2824.4 | O105: 533200 | P105: 3.70%
A106: 96 | B106: Pharma | C106: LUPIN | D106: 2021-04-29 | E106: 1052.45 | F106: 1051.60 | G106: 1041.20 | H106: 1029.95 | I106: 1019.55 | J106: 1062.85 | K106: 1073.25 | L106: 1084.50 | M106: 1062 | N106: 1040.35 | O106: 6689500 | P106: -0.58%
A107: 97 | B107: Automobile | C107: M&M | D107: 2021-04-29 | E107: 798.20 | F107: 802.73 | G107: 791.72 | H107: 785.23 | I107: 774.22 | J107: 809.22 | K107: 820.23 | L107: 826.72 | M107: 813.75 | N107: 796.25 | O107: 9682400 | P107: -2.50%
A108: 98 | B108: Finance | C108: M&MFIN | D108: 2021-04-29 | E108: 195.55 | F108: 196.42 | G108: 193.38 | H108: 191.22 | I108: 188.18 | J108: 198.58 | K108: 201.62 | L108: 203.78 | M108: 199.45 | N108: 194.25 | O108: 19444000 | P108: 4.40%
A109: 99 | B109: Finance | C109: MANAPPURAM | D109: 2021-04-29 | E109: 158.35 | F109: 158.35 | G109: 156.35 | H109: 154.35 | I109: 152.35 | J109: 160.35 | K109: 162.35 | L109: 164.35 | M109: 160.35 | N109: 156.35 | O109: 24726000 | P109: 5.94%
A110: 100 | B110: FMCG | C110: MARICO | D110: 2021-04-29 | E110: 416.35 | F110: 414.70 | G110: 411.95 | H110: 407.55 | I110: 404.80 | J110: 419.10 | K110: 421.85 | L110: 426.25 | M110: 417.45 | N110: 410.3 | O110: 7940000 | P110: -4.08%
A111: 101 | B111: Automobile | C111: MARUTI | D111: 2021-04-29 | E111: 6871.35 | F111: 6901.88 | G111: 6821.77 | H111: 6772.18 | I111: 6692.07 | J111: 6951.47 | K111: 7031.58 | L111: 7081.17 | M111: 6982 | N111: 6852.3 | O111: 2488300 | P111: 0.77%
A112: 102 | B112: FMCG | C112: MCDOWELL-N | D112: 2021-04-29 | E112: 549.30 | F112: 551.62 | G112: 544.78 | H112: 540.27 | I112: 533.43 | J112: 556.13 | K112: 562.97 | L112: 567.48 | M112: 558.45 | N112: 547.1 | O112: 13128750 | P112: -1.59%
A113: 103 | B113: Finance | C113: MFSL | D113: 2021-04-29 | E113: 898.75 | F113: 902.30 | G113: 891.15 | H113: 883.55 | I113: 872.40 | J113: 909.90 | K113: 921.05 | L113: 928.65 | M113: 913.45 | N113: 894.7 | O113: 2520700 | P113: -1.77%
A114: 104 | B114: Oil_Gas | C114: MGL | D114: 2021-04-29 | E114: 1136.20 | F114: 1134.40 | G114: 1120.80 | H114: 1105.40 | I114: 1091.80 | J114: 1149.80 | K114: 1163.40 | L114: 1178.80 | M114: 1148 | N114: 1119 | O114: 1482000 | P114: 3.00%
A115: 105 | B115: Technology | C115: MINDTREE | D115: 2021-04-29 | E115: 2231.65 | F115: 2219.88 | G115: 2194.27 | H115: 2156.88 | I115: 2131.27 | J115: 2257.27 | K115: 2282.88 | L115: 2320.27 | M115: 2245.5 | N115: 2182.5 | O115: 2029600 | P115: 5.75%
A116: 106 | B116: Automobile | C116: MOTHERSUMI | D116: 2021-04-29 | E116: 217.40 | F116: 217.07 | G116: 215.08 | H116: 212.77 | I116: 210.78 | J116: 219.38 | K116: 221.37 | L116: 223.68 | M116: 219.05 | N116: 214.75 | O116: 28616000 | P116: 0.52%
A117: 107 | B117: Technology | C117: MPHASIS | D117: 2021-04-29 | E117: 1771.65 | F117: 1787.82 | G117: 1737.93 | H117: 1704.22 | I117: 1654.33 | J117: 1821.53 | K117: 1871.42 | L117: 1905.13 | M117: 1837.7 | N117: 1754.1 | O117: 768300 | P117: 10.99%
A118: 108 | B118: Automobile | C118: MRF | D118: 2021-04-29 | E118: 83321.05 | F118: 83745.25 | G118: 82625.80 | H118: 81930.55 | I118: 80811.10 | J118: 84440.50 | K118: 85559.95 | L118: 86255.20 | M118: 84864.7 | N118: 83050 | O118: 42710 | P118: -1.09%
A119: 109 | B119: Finance | C119: MUTHOOTFIN | D119: 2021-04-29 | E119: 1229.30 | F119: 1225.07 | G119: 1213.73 | H119: 1198.17 | I119: 1186.83 | J119: 1240.63 | K119: 1251.97 | L119: 1267.53 | M119: 1236.4 | N119: 1209.5 | O119: 2605500 | P119: -1.33%
A120: 110 | B120: Others | C120: NAM-INDIA | D120: 2021-04-29 | E120: 360.55 | F120: 356.07 | G120: 347.73 | H120: 334.92 | I120: 326.58 | J120: 368.88 | K120: 377.22 | L120: 390.03 | M120: 364.4 | N120: 343.25 | O120: 1499200 | P120: 48.73%
A121: 111 | B121: Metals | C121: NATIONALUM | D121: 2021-04-29 | E121: 60.75 | F121: 60.95 | G121: 59.70 | H121: 58.65 | I121: 57.40 | J121: 62.00 | K121: 63.25 | L121: 64.30 | M121: 62.2 | N121: 59.9 | O121: 78098000 | P121: 2.54%
A122: 112 | B122: Others | C122: NAUKRI | D122: 2021-04-29 | E122: 4858.55 | F122: 4835.00 | G122: 4729.00 | H122: 4599.45 | I122: 4493.45 | J122: 4964.55 | K122: 5070.55 | L122: 5200.10 | M122: 4941 | N122: 4705.45 | O122: 1289250 | P122: -0.94%
A123: 113 | B123: Chemical | C123: NAVINFLUOR | D123: 2021-04-29 | E123: 3058.85 | F123: 3082.52 | G123: 2999.08 | H123: 2939.32 | I123: 2855.88 | J123: 3142.28 | K123: 3225.72 | L123: 3285.48 | M123: 3165.95 | N123: 3022.75 | O123: 285750 | P123: -1.47%
A124: 114 | B124: FMCG | C124: NESTLEIND | D124: 2021-04-29 | E124: 17588.85 | F124: 17514.48 | G124: 17384.97 | H124: 17181.08 | I124: 17051.57 | J124: 17718.37 | K124: 17847.88 | L124: 18051.77 | M124: 17644 | N124: 17310.6 | O124: 279050 | P124: -4.99%
A125: 115 | B125: Metals | C125: NMDC | D125: 2021-04-29 | E125: 145.00 | F125: 144.47 | G125: 142.03 | H125: 139.07 | I125: 136.63 | J125: 147.43 | K125: 149.87 | L125: 152.83 | M125: 146.9 | N125: 141.5 | O125: 51476100 | P125: 6.53%
A126: 116 | B126: Power | C126: NTPC | D126: 2021-04-29 | E126: 105.30 | F126: 105.65 | G126: 104.65 | H126: 104.00 | I126: 103.00 | J126: 106.30 | K126: 107.30 | L126: 107.95 | M126: 106.65 | N126: 105 | O126: 73683900 | P126: -3.32%
A127: 117 | B127: Oil_Gas | C127: ONGC | D127: 2021-04-29 | E127: 104.00 | F127: 104.68 | G127: 103.12 | H127: 102.23 | I127: 100.67 | J127: 105.57 | K127: 107.13 | L127: 108.02 | M127: 106.25 | N127: 103.8 | O127: 42919800 | P127: -2.65%
A128: 118 | B128: Textile | C128: PAGEIND | D128: 2021-04-29 | E128: 29994.45 | F128: 30078.27 | G128: 29776.23 | H128: 29558.02 | I128: 29255.98 | J128: 30296.48 | K128: 30598.52 | L128: 30816.73 | M128: 30380.3 | N128: 29860.05 | O128: 58170 | P128: -0.51%
A129: 119 | B129: Pharma | C129: PEL | D129: 2021-04-29 | E129: 1806.25 | F129: 1808.03 | G129: 1782.37 | H129: 1758.48 | I129: 1732.82 | J129: 1831.92 | K129: 1857.58 | L129: 1881.47 | M129: 1833.7 | N129: 1784.15 | O129: 3889600 | P129: -1.19%
A130: 120 | B130: Oil_Gas | C130: PETRONET | D130: 2021-04-29 | E130: 231.05 | F130: 231.43 | G130: 229.87 | H130: 228.68 | I130: 227.12 | J130: 232.62 | K130: 234.18 | L130: 235.37 | M130: 233 | N130: 230.25 | O130: 16608000 | P130: -1.07%
A131: 121 | B131: Finance | C131: PFC | D131: 2021-04-29 | E131: 115.85 | F131: 116.80 | G131: 114.35 | H131: 112.85 | I131: 110.40 | J131: 118.30 | K131: 120.75 | L131: 122.25 | M131: 119.25 | N131: 115.3 | O131: 36090200 | P131: -0.31%
A132: 122 | B132: Pharma | C132: PFIZER | D132: 2021-04-29 | E132: 4644.00 | F132: 4651.03 | G132: 4623.97 | H132: 4603.93 | I132: 4576.87 | J132: 4671.07 | K132: 4698.13 | L132: 4718.17 | M132: 4678.1 | N132: 4631 | O132: 75625 | P132: -1.31%
A133: 123 | B133: FMCG | C133: PIDILITIND | D133: 2021-04-29 | E133: 1910.40 | F133: 1908.03 | G133: 1886.07 | H133: 1861.73 | I133: 1839.77 | J133: 1932.37 | K133: 1954.33 | L133: 1978.67 | M133: 1930 | N133: 1883.7 | O133: 1882000 | P133: -5.88%
A134: 124 | B134: Chemical | C134: PIIND | D134: 2021-04-29 | E134: 2526.60 | F134: 2496.92 | G134: 2439.83 | H134: 2353.07 | I134: 2295.98 | J134: 2583.68 | K134: 2640.77 | L134: 2727.53 | M134: 2554 | N134: 2410.15 | O134: 391000 | P134: -12.28%
A135: 125 | B135: Banking | C135: PNB | D135: 2021-04-29 | E135: 37.35 | F135: 37.58 | G135: 36.97 | H135: 36.58 | I135: 35.97 | J135: 37.97 | K135: 38.58 | L135: 38.97 | M135: 38.2 | N135: 37.2 | O135: 214736000 | P135: -0.61%
A136: 126 | B136: Power | C136: POWERGRID | D136: 2021-04-29 | E136: 210.25 | F136: 211.52 | G136: 208.53 | H136: 206.82 | I136: 203.83 | J136: 213.23 | K136: 216.22 | L136: 217.93 | M136: 214.5 | N136: 209.8 | O136: 20916000 | P136: 5.40%
A137: 127 | B137: Media | C137: PVR | D137: 2021-04-29 | E137: 1142.70 | F137: 1146.30 | G137: 1127.60 | H137: 1112.50 | I137: 1093.80 | J137: 1161.40 | K137: 1180.10 | L137: 1195.20 | M137: 1165 | N137: 1131.2 | O137: 1962961 | P137: 2.51%
A138: 128 | B138: Cement | C138: RAMCOCEM | D138: 2021-04-29 | E138: 1075.75 | F138: 1067.28 | G138: 1050.67 | H138: 1025.58 | I138: 1008.97 | J138: 1092.37 | K138: 1108.98 | L138: 1134.07 | M138: 1083.9 | N138: 1042.2 | O138: 1641350 | P138: 6.80%
A139: 129 | B139: Banking | C139: RBLBANK | D139: 2021-04-29 | E139: 214.45 | F139: 215.78 | G139: 212.07 | H139: 209.68 | I139: 205.97 | J139: 218.17 | K139: 221.88 | L139: 224.27 | M139: 219.5 | N139: 213.4 | O139: 22135700 | P139: 4.02%
A140: 130 | B140: Power | C140: RECLTD | D140: 2021-04-29 | E140: 132.70 | F140: 133.55 | G140: 131.35 | H140: 130.00 | I140: 127.80 | J140: 134.90 | K140: 137.10 | L140: 138.45 | M140: 135.75 | N140: 132.2 | O140: 19278000 | P140: 4.56%
A141: 131 | B141: Oil_Gas | C141: RELIANCE | D141: 2021-04-29 | E141: 2016.25 | F141: 2018.58 | G141: 2001.67 | H141: 1987.08 | I141: 1970.17 | J141: 2033.17 | K141: 2050.08 | L141: 2064.67 | M141: 2035.5 | N141: 2004 | O141: 29435000 | P141: 1.58%
A142: 132 | B142: Metals | C142: SAIL | D142: 2021-04-29 | E142: 95.70 | F142: 95.37 | G142: 92.13 | H142: 88.57 | I142: 85.33 | J142: 98.93 | K142: 102.17 | L142: 105.73 | M142: 98.6 | N142: 91.8 | O142: 134539000 | P142: -6.85%
A143: 133 | B143: Finance | C143: SBILIFE | D143: 2021-04-29 | E143: 914.10 | F143: 916.55 | G143: 907.65 | H143: 901.20 | I143: 892.30 | J143: 923.00 | K143: 931.90 | L143: 938.35 | M143: 925.45 | N143: 910.1 | O143: 4805250 | P143: -0.08%
A144: 134 | B144: Banking | C144: SBIN | D144: 2021-04-29 | E144: 357.25 | F144: 359.25 | G144: 353.50 | H144: 349.75 | I144: 344.00 | J144: 363.00 | K144: 368.75 | L144: 372.50 | M144: 365 | N144: 355.5 | O144: 97500000 | P144: 0.36%
A145: 135 | B145: Cement | C145: SHREECEM | D145: 2021-04-29 | E145: 31619.45 | F145: 31331.15 | G145: 30692.30 | H145: 29765.15 | I145: 29126.30 | J145: 32258.30 | K145: 32897.15 | L145: 33824.30 | M145: 31970 | N145: 30404 | O145: 154800 | P145: 10.14%
A146: 136 | B146: Capital_Goods | C146: SIEMENS | D146: 2021-04-29 | E146: 1852.95 | F146: 1837.60 | G146: 1806.35 | H146: 1759.75 | I146: 1728.50 | J146: 1884.20 | K146: 1915.45 | L146: 1962.05 | M146: 1868.85 | N146: 1791 | O146: 813450 | P146: 4.89%
A147: 137 | B147: Textile | C147: SRF | D147: 2021-04-29 | E147: 6240.20 | F147: 6265.22 | G147: 6139.98 | H147: 6039.77 | I147: 5914.53 | J147: 6365.43 | K147: 6490.67 | L147: 6590.88 | M147: 6390.45 | N147: 6165 | O147: 441875 | P147: -1.45%
A148: 138 | B148: Finance | C148: SRTRANSFIN | D148: 2021-04-29 | E148: 1497.75 | F148: 1497.08 | G148: 1478.22 | H148: 1458.68 | I148: 1439.82 | J148: 1516.62 | K148: 1535.48 | L148: 1555.02 | M148: 1515.95 | N148: 1477.55 | O148: 3043200 | P148: -13.33%
A149: 139 | B149: Pharma | C149: SUNPHARMA | D149: 2021-04-29 | E149: 617.80 | F149: 621.17 | G149: 612.68 | H149: 607.57 | I149: 599.08 | J149: 626.28 | K149: 634.77 | L149: 639.88 | M149: 629.65 | N149: 616.05 | O149: 41721400 | P149: -1.23%
A150: 140 | B150: Media | C150: SUNTV | D150: 2021-04-29 | E150: 484.05 | F150: 484.98 | G150: 477.47 | H150: 470.88 | I150: 463.37 | J150: 491.57 | K150: 499.08 | L150: 505.67 | M150: 492.5 | N150: 478.4 | O150: 13384500 | P150: 2.81%
A151: 141 | B151: Chemical | C151: TATACHEM | D151: 2021-04-29 | E151: 823.85 | F151: 826.25 | G151: 814.10 | H151: 804.35 | I151: 792.20 | J151: 836.00 | K151: 848.15 | L151: 857.90 | M151: 838.4 | N151: 816.5 | O151: 11044000 | P151: -0.29%
A152: 142 | B152: FMCG | C152: TATACONSUM | D152: 2021-04-29 | E152: 673.85 | F152: 674.75 | G152: 669.80 | H152: 665.75 | I152: 660.80 | J152: 678.80 | K152: 683.75 | L152: 687.80 | M152: 679.7 | N152: 670.7 | O152: 16514550 | P152: -0.22%
A153: 143 | B153: Automobile | C153: TATAMOTORS | D153: 2021-04-29 | E153: 315.40 | F153: 315.37 | G153: 308.83 | H153: 302.27 | I153: 295.73 | J153: 321.93 | K153: 328.47 | L153: 335.03 | M153: 321.9 | N153: 308.8 | O153: 98062800 | P153: 2.88%
A154: 144 | B154: Power | C154: TATAPOWER | D154: 2021-04-29 | E154: 105.65 | F154: 106.12 | G154: 104.83 | H154: 104.02 | I154: 102.73 | J154: 106.93 | K154: 108.22 | L154: 109.03 | M154: 107.4 | N154: 105.3 | O154: 134622000 | P154: 0.13%
A155: 145 | B155: Metals | C155: TATASTEEL | D155: 2021-04-29 | E155: 923.85 | F155: 923.48 | G155: 888.17 | H155: 852.48 | I155: 817.17 | J155: 959.17 | K155: 994.48 | L155: 1030.17 | M155: 958.8 | N155: 887.8 | O155: 46306300 | P155: 1.37%
A156: 146 | B156: Technology | C156: TCS | D156: 2021-04-29 | E156: 3328.65 | F156: 3322.68 | G156: 3291.77 | H156: 3254.88 | I156: 3223.97 | J156: 3359.57 | K156: 3390.48 | L156: 3427.37 | M156: 3353.6 | N156: 3285.8 | O156: 9290100 | P156: -1.50%
A157: 147 | B157: Technology | C157: TECHM | D157: 2021-04-29 | E157: 1033.55 | F157: 1032.80 | G157: 1011.90 | H157: 990.25 | I157: 969.35 | J157: 1054.45 | K157: 1075.35 | L157: 1097.00 | M157: 1053.7 | N157: 1011.15 | O157: 14712000 | P157: 1.88%
A158: 148 | B158: FMCG | C158: TITAN | D158: 2021-04-29 | E158: 1575.25 | F158: 1564.13 | G158: 1543.77 | H158: 1512.28 | I158: 1491.92 | J158: 1595.62 | K158: 1615.98 | L158: 1647.47 | M158: 1584.5 | N158: 1532.65 | O158: 5863500 | P158: -5.39%
A159: 149 | B159: Pharma | C159: TORNTPHARM | D159: 2021-04-29 | E159: 2558.05 | F159: 2565.23 | G159: 2537.67 | H159: 2517.28 | I159: 2489.72 | J159: 2585.62 | K159: 2613.18 | L159: 2633.57 | M159: 2592.8 | N159: 2544.85 | O159: 940000 | P159: 5.95%
A160: 150 | B160: Power | C160: TORNTPOWER | D160: 2021-04-29 | E160: 424.70 | F160: 425.43 | G160: 421.47 | H160: 418.23 | I160: 414.27 | J160: 428.67 | K160: 432.63 | L160: 435.87 | M160: 429.4 | N160: 422.2 | O160: 2400000 | P160: 0.76%
A161: 151 | B161: Others | C161: TRENT | D161: 2021-04-29 | E161: 733.00 | F161: 731.85 | G161: 725.25 | H161: 717.50 | I161: 710.90 | J161: 739.60 | K161: 746.20 | L161: 753.95 | M161: 738.45 | N161: 724.1 | O161: 1286875 | P161: 2.54%
A162: 152 | B162: Automobile | C162: TVSMOTOR | D162: 2021-04-29 | E162: 567.65 | F162: 569.72 | G162: 564.43 | H162: 561.22 | I162: 555.93 | J162: 572.93 | K162: 578.22 | L162: 581.43 | M162: 575 | N162: 566.5 | O162: 3864000 | P162: 4.51%
A163: 153 | B163: FMCG | C163: UBL | D163: 2021-04-29 | E163: 1130.30 | F163: 1135.62 | G163: 1118.58 | H163: 1106.87 | I163: 1089.83 | J163: 1147.33 | K163: 1164.37 | L163: 1176.08 | M163: 1152.65 | N163: 1123.9 | O163: 1328600 | P163: 4.00%
A164: 154 | B164: Cement | C164: ULTRACEMCO | D164: 2021-04-29 | E164: 7032.20 | F164: 6977.77 | G164: 6861.23 | H164: 6690.27 | I164: 6573.73 | J164: 7148.73 | K164: 7265.27 | L164: 7436.23 | M164: 7094.3 | N164: 6806.8 | O164: 1884200 | P164: 0.61%
A165: 155 | B165: Chemical | C165: UPL | D165: 2021-04-29 | E165: 655.55 | F165: 659.40 | G165: 649.75 | H165: 643.95 | I165: 634.30 | J165: 665.20 | K165: 674.85 | L165: 680.65 | M165: 669.05 | N165: 653.6 | O165: 22369100 | P165: -0.88%
A166: 156 | B166: Metals | C166: VEDL | D166: 2021-04-29 | E166: 238.80 | F166: 240.85 | G166: 235.50 | H166: 232.20 | I166: 226.85 | J166: 244.15 | K166: 249.50 | L166: 252.80 | M166: 246.2 | N166: 237.55 | O166: 84158800 | P166: -2.82%
A167: 157 | B167: Capital_Goods | C167: VOLTAS | D167: 2021-04-29 | E167: 1010.35 | F167: 1012.67 | G167: 1003.88 | H167: 997.42 | I167: 988.63 | J167: 1019.13 | K167: 1027.92 | L167: 1034.38 | M167: 1021.45 | N167: 1006.2 | O167: 4098000 | P167: 2.25%
A168: 158 | B168: Technology | C168: WIPRO | D168: 2021-04-29 | E168: 444.90 | F168: 444.68 | G168: 441.52 | H168: 438.13 | I168: 434.97 | J168: 448.07 | K168: 451.23 | L168: 454.62 | M168: 447.85 | N168: 441.3 | O168: 34867200 | P168: -1.06%
A169: 159 | B169: Media | C169: ZEEL | D169: 2021-04-29 | E169: 203.05 | F169: 203.72 | G169: 200.83 | H169: 198.62 | I169: 195.73 | J169: 205.93 | K169: 208.82 | L169: 211.03 | M169: 206.6 | N169: 201.5 | O169: 56559000 | P169: 0.62%
A175: Pivot Point: This is trigger point for intra day buy/sell based on the price range of the previous day
A176: As per the tool,the trader should take BUY position just above Pivot and keep the stop loss of pivot point and the first target would be Resistance 1(R1)
A177: If R1 is crossed then R2 becomes the next target with stop loss of at R1
A178: Similarly if price goes below pivot point then the trader should sell and keep a stop loss of pivot point and the first target would be S1
A179: If S1 is crossed then S2 becomes the next target with stop loss of at S1
A181: Disclaimer:
A182: This document has been prepared by the Retail Research Desk of Asit C Mehta
A183: Investment Intermediates Ltd. and is meant for use of the recipient only
A184: and is not for circulation. This document is not to be reported or
A185: copied or made available to others. It should not be considered to be
A186: taken as an offer to sell or a solicitation to buy any security. The
A187: information contained herein is from sources believed reliable. We do
A188: not represent that it is accurate or complete and it should not be
A189: relied upon as such. We may from time to time have positions in and buy
A190: and sell securities referred to herein

Sheet Cash Intra
M5: Back to Main Page
A6: FOR INTRA DAY TRADING | K6: =Main!B10 -> 2021-04-09
A8: Sr.no | B8: Scrip | C8: CLOSE RATE | D8: Pivot Point | E8: Supports | H8: Resistances
C9: Point | E9: S1 | F9: S2 | G9: S3 | H9: R1 | I9: R2 | J9: R3 | K9: HIGH | L9: LOW | M9: Total Trade Quanity in Lakhs
A10: 1 | B10: Nifty 50 | C10: 14873.8 | D10: 14893.02 | E10: 14801.88 | F10: 14729.97 | G10: 14638.83 | H10: 14964.93 | I10: 15056.07 | J10: 15127.98 | K10: 14984.15 | L10: 14821.1
A11: 2 | B11: Nifty Bank | C11: 32782.85 | D11: 32931.47 | E11: 32556.13 | F11: 32329.42 | G11: 31954.08 | H11: 33158.18 | I11: 33533.52 | J11: 33760.23 | K11: 33306.8 | L11: 32704.75
A12: 3 | B12: Nifty CPSE | C12: 1778.15 | D12: 1784.67 | E12: 1767.53 | F12: 1756.92 | G12: 1739.78 | H12: 1795.28 | I12: 1812.42 | J12: 1823.03 | K12: 1801.8 | L12: 1774.05
A13: 4 | B13: Nifty Infra | C13: 4177.25 | D13: 4177.47 | E13: 4154.58 | F13: 4131.92 | G13: 4109.03 | H13: 4200.13 | I13: 4223.02 | J13: 4245.68 | K13: 4200.35 | L13: 4154.8
A14: 5 | B14: Nifty IT | C14: 27148.4 | D14: 27135.93 | E14: 26858.32 | F14: 26568.23 | G14: 26290.62 | H14: 27426.02 | I14: 27703.63 | J14: 27993.72 | K14: 27413.55 | L14: 26845.85
A15: 6 | B15: Nifty PSE | C15: 3135.9 | D15: 3144.43 | E15: 3118.72 | F15: 3101.53 | G15: 3075.82 | H15: 3161.62 | I15: 3187.33 | J15: 3204.52 | K15: 3170.15 | L15: 3127.25
A16: 7 | B16: Nifty Midcap 50 | C16: 6941.8 | D16: 6955.22 | E16: 6903.08 | F16: 6864.37 | G16: 6812.23 | H16: 6993.93 | I16: 7046.07 | J16: 7084.78 | K16: 7007.35 | L16: 6916.5
A17: 8 | B17: ACC | C17: 1981.65 | D17: 1971.88 | E17: 1933.77 | F17: 1885.88 | G17: 1847.77 | H17: 2019.77 | I17: 2057.88 | J17: 2105.77 | K17: 2010 | L17: 1924 | M17: 9.48277
A18: 9 | B18: AUBANK | C18: 1251.9 | D18: 1250.30 | E18: 1235.60 | F18: 1219.30 | G18: 1204.60 | H18: 1266.60 | I18: 1281.30 | J18: 1297.60 | K18: 1265 | L18: 1234 | M18: 9.64208
A19: 10 | B19: AARTIIND | C19: 1421.5 | D19: 1426.72 | E19: 1403.43 | F19: 1385.37 | G19: 1362.08 | H19: 1444.78 | I19: 1468.07 | J19: 1486.13 | K19: 1450 | L19: 1408.65 | M19: 6.59066
A20: 11 | B20: ABBOTINDIA | C20: 14963.35 | D20: 15025.28 | E20: 14650.57 | F20: 14337.78 | G20: 13963.07 | H20: 15338.07 | I20: 15712.78 | J20: 16025.57 | K20: 15400 | L20: 14712.5 | M20: 0.18239
A21: 12 | B21: ADANIENT | C21: 1162.5 | D21: 1163.75 | E21: 1136.50 | F21: 1110.50 | G21: 1083.25 | H21: 1189.75 | I21: 1217.00 | J21: 1243.00 | K21: 1191 | L21: 1137.75 | M21: 124.04773
A22: 13 | B22: ADANIGREEN | C22: 1165.5 | D22: 1173.88 | E22: 1151.62 | F22: 1137.73 | G22: 1115.47 | H22: 1187.77 | I22: 1210.03 | J22: 1223.92 | K22: 1196.15 | L22: 1160 | M22: 4.62142
A23: 14 | B23: ADANIPORTS | C23: 823 | D23: 822.33 | E23: 806.67 | F23: 790.33 | G23: 774.67 | H23: 838.67 | I23: 854.33 | J23: 870.67 | K23: 838 | L23: 806 | M23: 340.25873
A24: 15 | B24: ATGL | C24: 993.25 | D24: 1028.83 | E24: 957.67 | F24: 922.08 | G24: 850.92 | H24: 1064.42 | I24: 1135.58 | J24: 1171.17 | K24: 1100 | L24: 993.25 | M24: 33.63435
A25: 16 | B25: ADANITRANS | C25: 1002.4 | D25: 1026.60 | E25: 978.20 | F25: 954.00 | G25: 905.60 | H25: 1050.80 | I25: 1099.20 | J25: 1123.40 | K25: 1075 | L25: 1002.4 | M25: 7.35982
A26: 17 | B26: ABCAPITAL | C26: 127.8 | D26: 128.05 | E26: 125.30 | F26: 122.80 | G26: 120.05 | H26: 130.55 | I26: 133.30 | J26: 135.80 | K26: 130.8 | L26: 125.55 | M26: 40.31328
A27: 18 | B27: ABFRL | C27: 189.7 | D27: 190.87 | E27: 187.33 | F27: 184.97 | G27: 181.43 | H27: 193.23 | I27: 196.77 | J27: 199.13 | K27: 194.4 | L27: 188.5 | M27: 25.2187
A28: 19 | B28: AJANTPHARM | C28: 1719.85 | D28: 1722.08 | E28: 1704.27 | F28: 1688.68 | G28: 1670.87 | H28: 1737.67 | I28: 1755.48 | J28: 1771.07 | K28: 1739.9 | L28: 1706.5 | M28: 1.94822
A29: 20 | B29: APLLTD | C29: 973.05 | D29: 982.28 | E29: 959.57 | F29: 946.08 | G29: 923.37 | H29: 995.77 | I29: 1018.48 | J29: 1031.97 | K29: 1005 | L29: 968.8 | M29: 5.67127
A30: 21 | B30: ALKEM | C30: 2706.45 | D30: 2723.48 | E30: 2686.97 | F30: 2667.48 | G30: 2630.97 | H30: 2742.97 | I30: 2779.48 | J30: 2798.97 | K30: 2760 | L30: 2704 | M30: 0.90791
A31: 22 | B31: AMARAJABAT | C31: 816.15 | D31: 824.45 | E31: 803.95 | F31: 791.75 | G31: 771.25 | H31: 836.65 | I31: 857.15 | J31: 869.35 | K31: 844.95 | L31: 812.25 | M31: 16.39684
A32: 23 | B32: AMBUJACEM | C32: 320.8 | D32: 319.00 | E32: 311.10 | F32: 301.40 | G32: 293.50 | H32: 328.70 | I32: 336.60 | J32: 346.30 | K32: 326.9 | L32: 309.3 | M32: 72.23424
A33: 24 | B33: APOLLOHOSP | C33: 3114.6 | D33: 3116.07 | E33: 3087.93 | F33: 3061.27 | G33: 3033.13 | H33: 3142.73 | I33: 3170.87 | J33: 3197.53 | K33: 3144.2 | L33: 3089.4 | M33: 8.00699
A34: 25 | B34: APOLLOTYRE | C34: 224.3 | D34: 225.63 | E34: 222.02 | F34: 219.73 | G34: 216.12 | H34: 227.92 | I34: 231.53 | J34: 233.82 | K34: 229.25 | L34: 223.35 | M34: 60.64459
A35: 26 | B35: ASHOKLEY | C35: 122.75 | D35: 121.60 | E35: 118.40 | F35: 114.05 | G35: 110.85 | H35: 125.95 | I35: 129.15 | J35: 133.50 | K35: 124.8 | L35: 117.25 | M35: 540.15926
A36: 27 | B36: ASIANPAINT | C36: 2650.65 | D36: 2645.68 | E36: 2632.97 | F36: 2615.28 | G36: 2602.57 | H36: 2663.37 | I36: 2676.08 | J36: 2693.77 | K36: 2658.4 | L36: 2628 | M36: 8.97483
A37: 28 | B37: AUROPHARMA | C37: 907.4 | D37: 911.08 | E37: 902.32 | F37: 897.23 | G37: 888.47 | H37: 916.17 | I37: 924.93 | J37: 930.02 | K37: 919.85 | L37: 906 | M37: 14.82404
A38: 29 | B38: DMART | C38: 2936.5 | D38: 2924.05 | E38: 2903.10 | F38: 2869.70 | G38: 2848.75 | H38: 2957.45 | I38: 2978.40 | J38: 3011.80 | K38: 2945 | L38: 2890.65 | M38: 4.78173
A39: 30 | B39: AXISBANK | C39: 681.6 | D39: 685.48 | E39: 675.47 | F39: 669.33 | G39: 659.32 | H39: 691.62 | I39: 701.63 | J39: 707.77 | K39: 695.5 | L39: 679.35 | M39: 90.26398
A40: 31 | B40: BAJAJ-AUTO | C40: 3649.8 | D40: 3664.58 | E40: 3630.22 | F40: 3610.63 | G40: 3576.27 | H40: 3684.17 | I40: 3718.53 | J40: 3738.12 | K40: 3698.95 | L40: 3645 | M40: 4.1402
A41: 32 | B41: BAJFINANCE | C41: 5029.5 | D41: 5053.17 | E41: 4991.33 | F41: 4953.17 | G41: 4891.33 | H41: 5091.33 | I41: 5153.17 | J41: 5191.33 | K41: 5115 | L41: 5015 | M41: 14.07879
A42: 33 | B42: BAJAJFINSV | C42: 9654.8 | D42: 9655.00 | E42: 9574.85 | F42: 9494.90 | G42: 9414.75 | H42: 9734.95 | I42: 9815.10 | J42: 9895.05 | K42: 9735.15 | L42: 9575.05 | M42: 3.53634
A43: 34 | B43: BAJAJHLDNG | C43: 3388 | D43: 3380.63 | E43: 3362.37 | F43: 3336.73 | G43: 3318.47 | H43: 3406.27 | I43: 3424.53 | J43: 3450.17 | K43: 3398.9 | L43: 3355 | M43: 0.52635
A44: 35 | B44: BALKRISIND | C44: 1679.5 | D44: 1682.08 | E44: 1661.42 | F44: 1643.33 | G44: 1622.67 | H44: 1700.17 | I44: 1720.83 | J44: 1738.92 | K44: 1702.75 | L44: 1664 | M44: 4.81595
A45: 36 | B45: BANDHANBNK | C45: 355.05 | D45: 354.65 | E45: 349.20 | F45: 343.35 | G45: 337.90 | H45: 360.50 | I45: 365.95 | J45: 371.80 | K45: 360.1 | L45: 348.8 | M45: 66.75404
A46: 37 | B46: BANKBARODA | C46: 73.5 | D46: 74.12 | E46: 72.63 | F46: 71.77 | G46: 70.28 | H46: 74.98 | I46: 76.47 | J46: 77.33 | K46: 75.6 | L46: 73.25 | M46: 381.86842
A47: 38 | B47: BANKINDIA | C47: 68.2 | D47: 68.57 | E47: 67.63 | F47: 67.07 | G47: 66.13 | H47: 69.13 | I47: 70.07 | J47: 70.63 | K47: 69.5 | L47: 68 | M47: 26.77241
A48: 39 | B48: BATAINDIA | C48: 1405.2 | D48: 1402.80 | E48: 1392.40 | F48: 1379.60 | G48: 1369.20 | H48: 1415.60 | I48: 1426.00 | J48: 1438.80 | K48: 1413.2 | L48: 1390 | M48: 4.24826
A49: 40 | B49: BERGEPAINT | C49: 762.45 | D49: 759.20 | E49: 753.40 | F49: 744.35 | G49: 738.55 | H49: 768.25 | I49: 774.05 | J49: 783.10 | K49: 765 | L49: 750.15 | M49: 6.53368
A50: 41 | B50: BEL | C50: 130.05 | D50: 131.07 | E50: 128.48 | F50: 126.92 | G50: 124.33 | H50: 132.63 | I50: 135.22 | J50: 136.78 | K50: 133.65 | L50: 129.5 | M50: 84.40783
A51: 42 | B51: BHARATFORG | C51: 614.85 | D51: 616.45 | E51: 611.40 | F51: 607.95 | G51: 602.90 | H51: 619.90 | I51: 624.95 | J51: 628.40 | K51: 621.5 | L51: 613 | M51: 8.3377
A52: 43 | B52: BHEL | C52: 51.6 | D52: 51.50 | E52: 49.95 | F52: 48.30 | G52: 46.75 | H52: 53.15 | I52: 54.70 | J52: 56.35 | K52: 53.05 | L52: 49.85 | M52: 851.59684
A53: 44 | B53: BPCL | C53: 430.55 | D53: 431.95 | E53: 427.90 | F53: 425.25 | G53: 421.20 | H53: 434.60 | I53: 438.65 | J53: 441.30 | K53: 436 | L53: 429.3 | M53: 33.54117
A54: 45 | B54: BHARTIARTL | C54: 543 | D54: 544.02 | E54: 539.48 | F54: 535.97 | G54: 531.43 | H54: 547.53 | I54: 552.07 | J54: 555.58 | K54: 548.55 | L54: 540.5 | M54: 111.57958
A55: 46 | B55: BIOCON | C55: 413.25 | D55: 413.65 | E55: 410.75 | F55: 408.25 | G55: 405.35 | H55: 416.15 | I55: 419.05 | J55: 421.55 | K55: 416.55 | L55: 411.15 | M55: 20.86999
A56: 47 | B56: BBTC | C56: 1249.05 | D56: 1244.68 | E56: 1205.37 | F56: 1161.68 | G56: 1122.37 | H56: 1288.37 | I56: 1327.68 | J56: 1371.37 | K56: 1284 | L56: 1201 | M56: 3.32835
A57: 48 | B57: BOSCHLTD | C57: 14710.2 | D57: 14706.03 | E57: 14564.27 | F57: 14418.33 | G57: 14276.57 | H57: 14851.97 | I57: 14993.73 | J57: 15139.67 | K57: 14847.8 | L57: 14560.1 | M57: 0.3871
A58: 49 | B58: BRITANNIA | C58: 3816.75 | D58: 3803.93 | E58: 3773.87 | F58: 3730.98 | G58: 3700.92 | H58: 3846.82 | I58: 3876.88 | J58: 3919.77 | K58: 3834 | L58: 3761.05 | M58: 6.13388
A59: 50 | B59: CESC | C59: 628.85 | D59: 628.18 | E59: 624.72 | F59: 620.58 | G59: 617.12 | H59: 632.32 | I59: 635.78 | J59: 639.92 | K59: 631.65 | L59: 624.05 | M59: 2.99028
A60: 51 | B60: CADILAHC | C60: 470.7 | D60: 469.67 | E60: 463.53 | F60: 456.37 | G60: 450.23 | H60: 476.83 | I60: 482.97 | J60: 490.13 | K60: 475.8 | L60: 462.5 | M60: 34.83861
A61: 52 | B61: CANBK | C61: 147.2 | D61: 148.38 | E61: 145.37 | F61: 143.53 | G61: 140.52 | H61: 150.22 | I61: 153.23 | J61: 155.07 | K61: 151.4 | L61: 146.55 | M61: 130.8583
A62: 53 | B62: CASTROLIND | C62: 124.3 | D62: 124.43 | E62: 123.82 | F62: 123.33 | G62: 122.72 | H62: 124.92 | I62: 125.53 | J62: 126.02 | K62: 125.05 | L62: 123.95 | M62: 3.73525
A63: 54 | B63: CHOLAFIN | C63: 562.95 | D63: 568.28 | E63: 555.67 | F63: 548.38 | G63: 535.77 | H63: 575.57 | I63: 588.18 | J63: 595.47 | K63: 580.9 | L63: 561 | M63: 54.76027
A64: 55 | B64: CIPLA | C64: 842 | D64: 843.62 | E64: 836.78 | F64: 831.57 | G64: 824.73 | H64: 848.83 | I64: 855.67 | J64: 860.88 | K64: 850.45 | L64: 838.4 | M64: 24.59821
A65: 56 | B65: CUB | C65: 166.1 | D65: 166.67 | E65: 164.63 | F65: 163.17 | G65: 161.13 | H65: 168.13 | I65: 170.17 | J65: 171.63 | K65: 168.7 | L65: 165.2 | M65: 25.5793
A66: 57 | B66: COALINDIA | C66: 131.65 | D66: 132.20 | E66: 130.65 | F66: 129.65 | G66: 128.10 | H66: 133.20 | I66: 134.75 | J66: 135.75 | K66: 133.75 | L66: 131.2 | M66: 93.30363
A67: 58 | B67: COFORGE | C67: 3078.95 | D67: 3106.30 | E67: 3027.65 | F67: 2976.35 | G67: 2897.70 | H67: 3157.60 | I67: 3236.25 | J67: 3287.55 | K67: 3184.95 | L67: 3055 | M67: 6.38091
A68: 59 | B68: COLPAL | C68: 1590.1 | D68: 1579.22 | E68: 1565.63 | F68: 1541.17 | G68: 1527.58 | H68: 1603.68 | I68: 1617.27 | J68: 1641.73 | K68: 1592.8 | L68: 1554.75 | M68: 5.08957
A69: 60 | B69: CONCOR | C69: 590.1 | D69: 592.53 | E69: 584.07 | F69: 578.03 | G69: 569.57 | H69: 598.57 | I69: 607.03 | J69: 613.07 | K69: 601 | L69: 586.5 | M69: 36.31511
A70: 61 | B70: COROMANDEL | C70: 759.2 | D70: 757.65 | E70: 745.50 | F70: 731.80 | G70: 719.65 | H70: 771.35 | I70: 783.50 | J70: 797.20 | K70: 769.8 | L70: 743.95 | M70: 5.76043
A71: 62 | B71: CROMPTON | C71: 395.85 | D71: 393.90 | E71: 389.70 | F71: 383.55 | G71: 379.35 | H71: 400.05 | I71: 404.25 | J71: 410.40 | K71: 398.1 | L71: 387.75 | M71: 9.48966
A72: 63 | B72: CUMMINSIND | C72: 885.85 | D72: 889.68 | E72: 877.62 | F72: 869.38 | G72: 857.32 | H72: 897.92 | I72: 909.98 | J72: 918.22 | K72: 901.75 | L72: 881.45 | M72: 6.00468
A73: 64 | B73: DLF | C73: 280.45 | D73: 282.37 | E73: 277.63 | F73: 274.82 | G73: 270.08 | H73: 285.18 | I73: 289.92 | J73: 292.73 | K73: 287.1 | L73: 279.55 | M73: 61.74083
A74: 65 | B74: DABUR | C74: 559.15 | D74: 556.37 | E74: 551.03 | F74: 542.92 | G74: 537.58 | H74: 564.48 | I74: 569.82 | J74: 577.93 | K74: 561.7 | L74: 548.25 | M74: 20.09731
A75: 66 | B75: DALBHARAT | C75: 1559.15 | D75: 1557.38 | E75: 1542.77 | F75: 1526.38 | G75: 1511.77 | H75: 1573.77 | I75: 1588.38 | J75: 1604.77 | K75: 1572 | L75: 1541 | M75: 1.94935
A76: 67 | B76: DHANI | C76: 209.1 | D76: 204.45 | E76: 198.65 | F76: 188.20 | G76: 182.40 | H76: 214.90 | I76: 220.70 | J76: 231.15 | K76: 210.25 | L76: 194 | M76: 43.53395
A77: 68 | B77: DIVISLAB | C77: 3715.15 | D77: 3732.18 | E77: 3664.47 | F77: 3613.78 | G77: 3546.07 | H77: 3782.87 | I77: 3850.58 | J77: 3901.27 | K77: 3799.9 | L77: 3681.5 | M77: 7.52343
A78: 69 | B78: LALPATHLAB | C78: 3133.45 | D78: 3121.08 | E78: 3022.17 | F78: 2910.88 | G78: 2811.97 | H78: 3232.37 | I78: 3331.28 | J78: 3442.57 | K78: 3220 | L78: 3009.8 | M78: 10.29986
A79: 70 | B79: DRREDDY | C79: 4689.05 | D79: 4702.08 | E79: 4648.17 | F79: 4607.28 | G79: 4553.37 | H79: 4742.97 | I79: 4796.88 | J79: 4837.77 | K79: 4756 | L79: 4661.2 | M79: 6.60635
A80: 71 | B80: EDELWEISS | C80: 68.95 | D80: 69.68 | E80: 67.77 | F80: 66.58 | G80: 64.67 | H80: 70.87 | I80: 72.78 | J80: 73.97 | K80: 71.6 | L80: 68.5 | M80: 13.48061
A81: 72 | B81: EICHERMOT | C81: 2553 | D81: 2565.33 | E81: 2535.67 | F81: 2518.33 | G81: 2488.67 | H81: 2582.67 | I81: 2612.33 | J81: 2629.67 | K81: 2595 | L81: 2548 | M81: 7.60845
A82: 73 | B82: EMAMILTD | C82: 516.4 | D82: 513.63 | E82: 507.32 | F82: 498.23 | G82: 491.92 | H82: 522.72 | I82: 529.03 | J82: 538.12 | K82: 519.95 | L82: 504.55 | M82: 2.94747
A83: 74 | B83: ENDURANCE | C83: 1388.15 | D83: 1387.80 | E83: 1370.60 | F83: 1353.05 | G83: 1335.85 | H83: 1405.35 | I83: 1422.55 | J83: 1440.10 | K83: 1405 | L83: 1370.25 | M83: 3.3949
A84: 75 | B84: ESCORTS | C84: 1270.75 | D84: 1266.75 | E84: 1247.60 | F84: 1224.45 | G84: 1205.30 | H84: 1289.90 | I84: 1309.05 | J84: 1332.20 | K84: 1285.9 | L84: 1243.6 | M84: 12.85015
A85: 76 | B85: EXIDEIND | C85: 186.3 | D85: 187.13 | E85: 185.07 | F85: 183.83 | G85: 181.77 | H85: 188.37 | I85: 190.43 | J85: 191.67 | K85: 189.2 | L85: 185.9 | M85: 31.91739
A86: 77 | B86: FEDERALBNK | C86: 77.8 | D86: 78.55 | E86: 76.75 | F86: 75.70 | G86: 73.90 | H86: 79.60 | I86: 81.40 | J86: 82.45 | K86: 80.35 | L86: 77.5 | M86: 223.33908
A87: 78 | B87: FORTIS | C87: 212.35 | D87: 215.55 | E87: 207.80 | F87: 203.25 | G87: 195.50 | H87: 220.10 | I87: 227.85 | J87: 232.40 | K87: 223.3 | L87: 211 | M87: 59.93349
A88: 79 | B88: FRETAIL | C88: 50.25 | D88: 50.68 | E88: 48.72 | F88: 47.18 | G88: 45.22 | H88: 52.22 | I88: 54.18 | J88: 55.72 | K88: 52.65 | L88: 49.15 | M88: 96.25188
A89: 80 | B89: GAIL | C89: 138.55 | D89: 139.10 | E89: 137.20 | F89: 135.85 | G89: 133.95 | H89: 140.45 | I89: 142.35 | J89: 143.70 | K89: 141 | L89: 137.75 | M89: 135.93573
A90: 81 | B90: GMRINFRA | C90: 24.4 | D90: 24.43 | E90: 24.12 | F90: 23.83 | G90: 23.52 | H90: 24.72 | I90: 25.03 | J90: 25.32 | K90: 24.75 | L90: 24.15 | M90: 135.39876
A91: 82 | B91: GICRE | C91: 213.55 | D91: 212.62 | E91: 207.43 | F91: 201.32 | G91: 196.13 | H91: 218.73 | I91: 223.92 | J91: 230.03 | K91: 217.8 | L91: 206.5 | M91: 13.52341
A92: 83 | B92: GLENMARK | C92: 504.9 | D92: 507.32 | E92: 497.78 | F92: 490.67 | G92: 481.13 | H92: 514.43 | I92: 523.97 | J92: 531.08 | K92: 516.85 | L92: 500.2 | M92: 25.45529
A93: 84 | B93: GODREJAGRO | C93: 507 | D93: 508.67 | E93: 503.43 | F93: 499.87 | G93: 494.63 | H93: 512.23 | I93: 517.47 | J93: 521.03 | K93: 513.9 | L93: 505.1 | M93: 0.9269
A94: 85 | B94: GODREJCP | C94: 739.9 | D94: 740.18 | E94: 732.37 | F94: 724.83 | G94: 717.02 | H94: 747.72 | I94: 755.53 | J94: 763.07 | K94: 748 | L94: 732.65 | M94: 20.88453
A95: 86 | B95: GODREJIND | C95: 541.55 | D95: 541.55 | E95: 538.20 | F95: 534.85 | G95: 531.50 | H95: 544.90 | I95: 548.25 | J95: 551.60 | K95: 544.9 | L95: 538.2 | M95: 1.00877
A96: 87 | B96: GODREJPROP | C96: 1385.55 | D96: 1387.52 | E96: 1368.03 | F96: 1350.52 | G96: 1331.03 | H96: 1405.03 | I96: 1424.52 | J96: 1442.03 | K96: 1407 | L96: 1370 | M96: 6.4673
A97: 88 | B97: GRASIM | C97: 1447.8 | D97: 1448.22 | E97: 1433.13 | F97: 1418.47 | G97: 1403.38 | H97: 1462.88 | I97: 1477.97 | J97: 1492.63 | K97: 1463.3 | L97: 1433.55 | M97: 15.66826
A98: 89 | B98: GUJGASLTD | C98: 549.9 | D98: 547.47 | E98: 537.43 | F98: 524.97 | G98: 514.93 | H98: 559.93 | I98: 569.97 | J98: 582.43 | K98: 557.5 | L98: 535 | M98: 10.57697
A99: 90 | B99: GSPL | C99: 269.65 | D99: 271.73 | E99: 265.12 | F99: 260.58 | G99: 253.97 | H99: 276.27 | I99: 282.88 | J99: 287.42 | K99: 278.35 | L99: 267.2 | M99: 7.64633
A100: 91 | B100: HCLTECH | C100: 1037.5 | D100: 1041.18 | E100: 1027.97 | F100: 1018.43 | G100: 1005.22 | H100: 1050.72 | I100: 1063.93 | J100: 1073.47 | K100: 1054.4 | L100: 1031.65 | M100: 48.52068
A101: 92 | B101: HDFCAMC | C101: 3005.4 | D101: 2980.08 | E101: 2918.17 | F101: 2830.93 | G101: 2769.02 | H101: 3067.32 | I101: 3129.23 | J101: 3216.47 | K101: 3042 | L101: 2892.85 | M101: 4.62533
A102: 93 | B102: HDFCBANK | C102: 1432.8 | D102: 1441.40 | E102: 1421.90 | F102: 1411.00 | G102: 1391.50 | H102: 1452.30 | I102: 1471.80 | J102: 1482.70 | K102: 1460.9 | L102: 1430.5 | M102: 88.06796
A103: 94 | B103: HDFCLIFE | C103: 701.45 | D103: 701.58 | E103: 697.17 | F103: 692.88 | G103: 688.47 | H103: 705.87 | I103: 710.28 | J103: 714.57 | K103: 706 | L103: 697.3 | M103: 18.17393
A104: 95 | B104: HAVELLS | C104: 1059.75 | D104: 1059.58 | E104: 1049.17 | F104: 1038.58 | G104: 1028.17 | H104: 1070.17 | I104: 1080.58 | J104: 1091.17 | K104: 1070 | L104: 1049 | M104: 11.89741
A105: 96 | B105: HEROMOTOCO | C105: 2928 | D105: 2943.92 | E105: 2897.48 | F105: 2866.97 | G105: 2820.53 | H105: 2974.43 | I105: 3020.87 | J105: 3051.38 | K105: 2990.35 | L105: 2913.4 | M105: 9.5345
A106: 97 | B106: HINDALCO | C106: 365.2 | D106: 364.62 | E106: 355.23 | F106: 345.27 | G106: 335.88 | H106: 374.58 | I106: 383.97 | J106: 393.93 | K106: 374 | L106: 354.65 | M106: 287.68469
A107: 98 | B107: HINDPETRO | C107: 238.75 | D107: 238.52 | E107: 236.13 | F107: 233.52 | G107: 231.13 | H107: 241.13 | I107: 243.52 | J107: 246.13 | K107: 240.9 | L107: 235.9 | M107: 47.0586
A108: 99 | B108: HINDUNILVR | C108: 2409.9 | D108: 2414.83 | E108: 2390.67 | F108: 2371.43 | G108: 2347.27 | H108: 2434.07 | I108: 2458.23 | J108: 2477.47 | K108: 2439 | L108: 2395.6 | M108: 18.14515
A109: 100 | B109: HINDZINC | C109: 319.1 | D109: 316.40 | E109: 309.30 | F109: 299.50 | G109: 292.40 | H109: 326.20 | I109: 333.30 | J109: 343.10 | K109: 323.5 | L109: 306.6 | M109: 33.54406
A110: 101 | B110: HUDCO | C110: 45.65 | D110: 45.93 | E110: 45.12 | F110: 44.58 | G110: 43.77 | H110: 46.47 | I110: 47.28 | J110: 47.82 | K110: 46.75 | L110: 45.4 | M110: 17.6587
A111: 102 | B111: HDFC | C111: 2502.55 | D111: 2506.40 | E111: 2481.90 | F111: 2461.25 | G111: 2436.75 | H111: 2527.05 | I111: 2551.55 | J111: 2572.20 | K111: 2530.9 | L111: 2485.75 | M111: 25.10746
A112: 103 | B112: ICICIBANK | C112: 576.7 | D112: 578.62 | E112: 571.38 | F112: 566.07 | G112: 558.83 | H112: 583.93 | I112: 591.17 | J112: 596.48 | K112: 585.85 | L112: 573.3 | M112: 192.62565
A113: 104 | B113: ICICIGI | C113: 1430.5 | D113: 1440.23 | E113: 1416.02 | F113: 1401.53 | G113: 1377.32 | H113: 1454.72 | I113: 1478.93 | J113: 1493.42 | K113: 1464.45 | L113: 1425.75 | M113: 6.28533
A114: 105 | B114: ICICIPRULI | C114: 454.85 | D114: 455.67 | E114: 451.18 | F114: 447.52 | G114: 443.03 | H114: 459.33 | I114: 463.82 | J114: 467.48 | K114: 460.15 | L114: 452 | M114: 14.7892
A115: 106 | B115: ISEC | C115: 393.05 | D115: 393.38 | E115: 387.77 | F115: 382.48 | G115: 376.87 | H115: 398.67 | I115: 404.28 | J115: 409.57 | K115: 399 | L115: 388.1 | M115: 4.59735
A116: 107 | B116: IDFCFIRSTB | C116: 57.45 | D116: 57.63 | E116: 56.92 | F116: 56.38 | G116: 55.67 | H116: 58.17 | I116: 58.88 | J116: 59.42 | K116: 58.35 | L116: 57.1 | M116: 550.92435
A117: 108 | B117: ITC | C117: 213.25 | D117: 214.07 | E117: 212.03 | F117: 210.82 | G117: 208.78 | H117: 215.28 | I117: 217.32 | J117: 218.53 | K117: 216.1 | L117: 212.85 | M117: 141.16874
A118: 109 | B118: IBULHSGFIN | C118: 191.25 | D118: 193.05 | E118: 188.80 | F118: 186.35 | G118: 182.10 | H118: 195.50 | I118: 199.75 | J118: 202.20 | K118: 197.3 | L118: 190.6 | M118: 155.39748
A119: 110 | B119: INDHOTEL | C119: 108.85 | D119: 110.10 | E119: 106.75 | F119: 104.65 | G119: 101.30 | H119: 112.20 | I119: 115.55 | J119: 117.65 | K119: 113.45 | L119: 108 | M119: 18.75779
A120: 111 | B120: IOC | C120: 92.95 | D120: 93.05 | E120: 92.40 | F120: 91.85 | G120: 91.20 | H120: 93.60 | I120: 94.25 | J120: 94.80 | K120: 93.7 | L120: 92.5 | M120: 127.83404
A121: 112 | B121: IRCTC | C121: 1726.4 | D121: 1715.20 | E121: 1691.20 | F121: 1656.00 | G121: 1632.00 | H121: 1750.40 | I121: 1774.40 | J121: 1809.60 | K121: 1739.2 | L121: 1680 | M121: 19.40435
A122: 113 | B122: IGL | C122: 525.85 | D122: 520.35 | E122: 513.00 | F122: 500.15 | G122: 492.80 | H122: 533.20 | I122: 540.55 | J122: 553.40 | K122: 527.7 | L122: 507.5 | M122: 30.17591
A123: 114 | B123: INDUSTOWER | C123: 263.75 | D123: 261.78 | E123: 254.27 | F123: 244.78 | G123: 237.27 | H123: 271.27 | I123: 278.78 | J123: 288.27 | K123: 269.3 | L123: 252.3 | M123: 76.85517
A124: 115 | B124: INDUSINDBK | C124: 934.9 | D124: 941.62 | E124: 925.28 | F124: 915.67 | G124: 899.33 | H124: 951.23 | I124: 967.57 | J124: 977.18 | K124: 957.95 | L124: 932 | M124: 39.46239
A125: 116 | B125: NAUKRI | C125: 4842 | D125: 4819.52 | E125: 4719.03 | F125: 4596.07 | G125: 4495.58 | H125: 4942.48 | I125: 5042.97 | J125: 5165.93 | K125: 4920 | L125: 4696.55 | M125: 14.08872
A126: 117 | B126: INFY | C126: 1439.85 | D126: 1437.52 | E126: 1423.33 | F126: 1406.82 | G126: 1392.63 | H126: 1454.03 | I126: 1468.22 | J126: 1484.73 | K126: 1451.7 | L126: 1421 | M126: 56.54434
A127: 118 | B127: INDIGO | C127: 1640.75 | D127: 1628.45 | E127: 1607.95 | F127: 1575.15 | G127: 1554.65 | H127: 1661.25 | I127: 1681.75 | J127: 1714.55 | K127: 1648.95 | L127: 1595.65 | M127: 8.12682
A128: 119 | B128: IPCALAB | C128: 2060.2 | D128: 2065.73 | E128: 2016.47 | F128: 1972.73 | G128: 1923.47 | H128: 2109.47 | I128: 2158.73 | J128: 2202.47 | K128: 2115 | L128: 2022 | M128: 4.20253
A129: 120 | B129: JSWENERGY | C129: 88.65 | D129: 88.80 | E129: 87.35 | F129: 86.05 | G129: 84.60 | H129: 90.10 | I129: 91.55 | J129: 92.85 | K129: 90.25 | L129: 87.5 | M129: 51.01227
A130: 121 | B130: JSWSTEEL | C130: 614.1 | D130: 605.45 | E130: 571.90 | F130: 529.70 | G130: 496.15 | H130: 647.65 | I130: 681.20 | J130: 723.40 | K130: 639 | L130: 563.25 | M130: 720.06147
A131: 122 | B131: JINDALSTEL | C131: 415.65 | D131: 411.52 | E131: 395.53 | F131: 375.42 | G131: 359.43 | H131: 431.63 | I131: 447.62 | J131: 467.73 | K131: 427.5 | L131: 391.4 | M131: 273.65406
A132: 123 | B132: JUBLFOOD | C132: 2868.5 | D132: 2882.83 | E132: 2845.67 | F132: 2822.83 | G132: 2785.67 | H132: 2905.67 | I132: 2942.83 | J132: 2965.67 | K132: 2920 | L132: 2860 | M132: 6.81656
A133: 124 | B133: KOTAKBANK | C133: 1783.25 | D133: 1795.22 | E133: 1766.73 | F133: 1750.22 | G133: 1721.73 | H133: 1811.73 | I133: 1840.22 | J133: 1856.73 | K133: 1823.7 | L133: 1778.7 | M133: 28.9029
A134: 125 | B134: L&TFH | C134: 98.85 | D134: 98.95 | E134: 97.40 | F134: 95.95 | G134: 94.40 | H134: 100.40 | I134: 101.95 | J134: 103.40 | K134: 100.5 | L134: 97.5 | M134: 125.60236
A135: 126 | B135: LTTS | C135: 2867.15 | D135: 2868.38 | E135: 2808.77 | F135: 2750.38 | G135: 2690.77 | H135: 2926.77 | I135: 2986.38 | J135: 3044.77 | K135: 2928 | L135: 2810 | M135: 5.27189
A136: 127 | B136: LICHSGFIN | C136: 419.8 | D136: 421.97 | E136: 416.33 | F136: 412.87 | G136: 407.23 | H136: 425.43 | I136: 431.07 | J136: 434.53 | K136: 427.6 | L136: 418.5 | M136: 27.16394
A137: 128 | B137: LTI | C137: 4326.05 | D137: 4328.17 | E137: 4268.38 | F137: 4210.72 | G137: 4150.93 | H137: 4385.83 | I137: 4445.62 | J137: 4503.28 | K137: 4387.95 | L137: 4270.5 | M137: 2.9175
A138: 129 | B138: LT | C138: 1419.15 | D138: 1421.32 | E138: 1407.83 | F138: 1396.52 | G138: 1383.03 | H138: 1432.63 | I138: 1446.12 | J138: 1457.43 | K138: 1434.8 | L138: 1410 | M138: 16.44834
A139: 130 | B139: LUPIN | C139: 1049.3 | D139: 1046.75 | E139: 1036.55 | F139: 1023.80 | G139: 1013.60 | H139: 1059.50 | I139: 1069.70 | J139: 1082.45 | K139: 1056.95 | L139: 1034 | M139: 12.19057
A140: 131 | B140: MRF | C140: 82983.1 | D140: 83325.08 | E140: 82158.02 | F140: 81332.93 | G140: 80165.87 | H140: 84150.17 | I140: 85317.23 | J140: 86142.32 | K140: 84492.15 | L140: 82500 | M140: 0.19674
A141: 132 | B141: MGL | C141: 1131.25 | D141: 1128.82 | E141: 1114.63 | F141: 1098.02 | G141: 1083.83 | H141: 1145.43 | I141: 1159.62 | J141: 1176.23 | K141: 1143 | L141: 1112.2 | M141: 6.33745
A142: 133 | B142: M&MFIN | C142: 195.1 | D142: 196.13 | E142: 192.97 | F142: 190.83 | G142: 187.67 | H142: 198.27 | I142: 201.43 | J142: 203.57 | K142: 199.3 | L142: 194 | M142: 79.10833
A143: 134 | B143: M&M | C143: 795.15 | D143: 799.72 | E143: 788.43 | F143: 781.72 | G143: 770.43 | H143: 806.43 | I143: 817.72 | J143: 824.43 | K143: 811 | L143: 793 | M143: 33.24494
A144: 135 | B144: MANAPPURAM | C144: 157.5 | D144: 157.80 | E144: 155.50 | F144: 153.50 | G144: 151.20 | H144: 159.80 | I144: 162.10 | J144: 164.10 | K144: 160.1 | L144: 155.8 | M144: 66.26424
A145: 136 | B145: MARICO | C145: 414.65 | D145: 412.75 | E145: 409.90 | F145: 405.15 | G145: 402.30 | H145: 417.50 | I145: 420.35 | J145: 425.10 | K145: 415.6 | L145: 408 | M145: 19.17274
A146: 137 | B146: MARUTI | C146: 6826.85 | D146: 6857.67 | E146: 6776.03 | F146: 6725.22 | G146: 6643.58 | H146: 6908.48 | I146: 6990.12 | J146: 7040.93 | K146: 6939.3 | L146: 6806.85 | M146: 6.04553
A147: 138 | B147: MFSL | C147: 893.85 | D147: 897.35 | E147: 884.95 | F147: 876.05 | G147: 863.65 | H147: 906.25 | I147: 918.65 | J147: 927.55 | K147: 909.75 | L147: 888.45 | M147: 7.3431
A148: 139 | B148: MINDTREE | C148: 2217.4 | D148: 2206.75 | E148: 2179.85 | F148: 2142.30 | G148: 2115.40 | H148: 2244.30 | I148: 2271.20 | J148: 2308.75 | K148: 2233.65 | L148: 2169.2 | M148: 14.99106
A149: 140 | B149: MOTHERSUMI | C149: 216.85 | D149: 216.45 | E149: 214.40 | F149: 211.95 | G149: 209.90 | H149: 218.90 | I149: 220.95 | J149: 223.40 | K149: 218.5 | L149: 214 | M149: 141.22715
A150: 141 | B150: MPHASIS | C150: 1760.35 | D150: 1776.82 | E150: 1728.63 | F150: 1696.92 | G150: 1648.73 | H150: 1808.53 | I150: 1856.72 | J150: 1888.43 | K150: 1825 | L150: 1745.1 | M150: 10.21233
A151: 142 | B151: MUTHOOTFIN | C151: 1237 | D151: 1230.67 | E151: 1216.33 | F151: 1195.67 | G151: 1181.33 | H151: 1251.33 | I151: 1265.67 | J151: 1286.33 | K151: 1245 | L151: 1210 | M151: 14.89515
A152: 143 | B152: NATCOPHARM | C152: 908.15 | D152: 891.10 | E152: 867.75 | F152: 827.35 | G152: 804.00 | H152: 931.50 | I152: 954.85 | J152: 995.25 | K152: 914.45 | L152: 850.7 | M152: 12.86317
A153: 144 | B153: NMDC | C153: 144.2 | D153: 143.32 | E153: 140.88 | F153: 137.57 | G153: 135.13 | H153: 146.63 | I153: 149.07 | J153: 152.38 | K153: 145.75 | L153: 140 | M153: 202.37709
A154: 145 | B154: NTPC | C154: 105 | D154: 105.38 | E154: 104.32 | F154: 103.63 | G154: 102.57 | H154: 106.07 | I154: 107.13 | J154: 107.82 | K154: 106.45 | L154: 104.7 | M154: 113.94998
A155: 146 | B155: NATIONALUM | C155: 60.35 | D155: 60.48 | E155: 59.22 | F155: 58.08 | G155: 56.82 | H155: 61.62 | I155: 62.88 | J155: 64.02 | K155: 61.75 | L155: 59.35 | M155: 383.85798
A156: 147 | B156: NAVINFLUOR | C156: 3050.5 | D156: 3072.22 | E156: 2987.78 | F156: 2925.07 | G156: 2840.63 | H156: 3134.93 | I156: 3219.37 | J156: 3282.08 | K156: 3156.65 | L156: 3009.5 | M156: 5.17615
A157: 148 | B157: NESTLEIND | C157: 17689.9 | D157: 17591.92 | E157: 17424.83 | F157: 17159.77 | G157: 16992.68 | H157: 17856.98 | I157: 18024.07 | J157: 18289.13 | K157: 17759 | L157: 17326.85 | M157: 1.18006
A158: 149 | B158: NAM-INDIA | C158: 358.05 | D158: 353.88 | E158: 345.42 | F158: 332.78 | G158: 324.32 | H158: 366.52 | I158: 374.98 | J158: 387.62 | K158: 362.35 | L158: 341.25 | M158: 28.17863
A159: 150 | B159: OBEROIRLTY | C159: 580.05 | D159: 578.47 | E159: 574.48 | F159: 568.92 | G159: 564.93 | H159: 584.03 | I159: 588.02 | J159: 593.58 | K159: 582.45 | L159: 572.9 | M159: 1.17382
A160: 151 | B160: ONGC | C160: 103.6 | D160: 104.20 | E160: 102.70 | F160: 101.80 | G160: 100.30 | H160: 105.10 | I160: 106.60 | J160: 107.50 | K160: 105.7 | L160: 103.3 | M160: 261.0597
A161: 152 | B161: OIL | C161: 122.2 | D161: 122.75 | E161: 120.55 | F161: 118.90 | G161: 116.70 | H161: 124.40 | I161: 126.60 | J161: 128.25 | K161: 124.95 | L161: 121.1 | M161: 4.24219
A162: 153 | B162: OFSS | C162: 3490.85 | D162: 3446.10 | E162: 3365.25 | F162: 3239.65 | G162: 3158.80 | H162: 3571.70 | I162: 3652.55 | J162: 3778.15 | K162: 3526.95 | L162: 3320.5 | M162: 2.96046
A163: 154 | B163: PIIND | C163: 2520.65 | D163: 2489.45 | E163: 2431.90 | F163: 2343.15 | G163: 2285.60 | H163: 2578.20 | I163: 2635.75 | J163: 2724.50 | K163: 2547 | L163: 2400.7 | M163: 10.21389
A164: 155 | B164: PAGEIND | C164: 29795.95 | D164: 29881.98 | E164: 29563.97 | F164: 29331.98 | G164: 29013.97 | H164: 30113.97 | I164: 30431.98 | J164: 30663.97 | K164: 30200 | L164: 29650 | M164: 0.33157
A165: 156 | B165: PETRONET | C165: 230.3 | D165: 230.60 | E165: 228.75 | F165: 227.20 | G165: 225.35 | H165: 232.15 | I165: 234.00 | J165: 235.55 | K165: 232.45 | L165: 229.05 | M165: 18.2231
A166: 157 | B166: PFIZER | C166: 4613.3 | D166: 4620.28 | E166: 4591.72 | F166: 4570.13 | G166: 4541.57 | H166: 4641.87 | I166: 4670.43 | J166: 4692.02 | K166: 4648.85 | L166: 4598.7 | M166: 0.2182
A167: 158 | B167: PIDILITIND | C167: 1905.6 | D167: 1902.63 | E167: 1881.27 | F167: 1856.93 | G167: 1835.57 | H167: 1926.97 | I167: 1948.33 | J167: 1972.67 | K167: 1924 | L167: 1878.3 | M167: 8.1977
A168: 159 | B168: PEL | C168: 1802.25 | D168: 1801.90 | E168: 1777.35 | F168: 1752.45 | G168: 1727.90 | H168: 1826.80 | I168: 1851.35 | J168: 1876.25 | K168: 1826.45 | L168: 1777 | M168: 7.27029
A169: 160 | B169: POLYCAB | C169: 1400.85 | D169: 1404.82 | E169: 1387.63 | F169: 1374.42 | G169: 1357.23 | H169: 1418.03 | I169: 1435.22 | J169: 1448.43 | K169: 1422 | L169: 1391.6 | M169: 3.08467
A170: 161 | B170: PFC | C170: 115.15 | D170: 116.28 | E170: 113.62 | F170: 112.08 | G170: 109.42 | H170: 117.82 | I170: 120.48 | J170: 122.02 | K170: 118.95 | L170: 114.75 | M170: 84.71455
A171: 162 | B171: POWERGRID | C171: 209 | D171: 210.33 | E171: 207.17 | F171: 205.33 | G171: 202.17 | H171: 212.17 | I171: 215.33 | J171: 217.17 | K171: 213.5 | L171: 208.5 | M171: 115.13749
A172: 163 | B172: PRESTIGE | C172: 311.5 | D172: 314.70 | E172: 306.80 | F172: 302.10 | G172: 294.20 | H172: 319.40 | I172: 327.30 | J172: 332.00 | K172: 322.6 | L172: 310 | M172: 6.06439
A173: 164 | B173: PGHH | C173: 13193.55 | D173: 13060.00 | E173: 12795.00 | F173: 12396.45 | G173: 12131.45 | H173: 13458.55 | I173: 13723.55 | J173: 14122.10 | K173: 13325 | L173: 12661.45 | M173: 0.05373
A174: 165 | B174: PNB | C174: 37.45 | D174: 37.63 | E174: 37.17 | F174: 36.88 | G174: 36.42 | H174: 37.92 | I174: 38.38 | J174: 38.67 | K174: 38.1 | L174: 37.35 | M174: 683.60846
A175: 166 | B175: RBLBANK | C175: 213.25 | D175: 214.78 | E175: 210.87 | F175: 208.48 | G175: 204.57 | H175: 217.17 | I175: 221.08 | J175: 223.47 | K175: 218.7 | L175: 212.4 | M175: 113.79973
A176: 167 | B176: RECLTD | C176: 132.25 | D176: 133.12 | E176: 130.73 | F176: 129.22 | G176: 126.83 | H176: 134.63 | I176: 137.02 | J176: 138.53 | K176: 135.5 | L176: 131.6 | M176: 34.5255
A177: 168 | B177: RAJESHEXPO | C177: 505.1 | D177: 522.77 | E177: 469.33 | F177: 433.57 | G177: 380.13 | H177: 558.53 | I177: 611.97 | J177: 647.73 | K177: 576.2 | L177: 487 | M177: 8.16343
A178: 169 | B178: RELIANCE | C178: 2005.35 | D178: 2006.78 | E178: 1991.57 | F178: 1977.78 | G178: 1962.57 | H178: 2020.57 | I178: 2035.78 | J178: 2049.57 | K178: 2022 | L178: 1993 | M178: 70.92878
A179: 170 | B179: SBICARD | C179: 956.6 | D179: 962.63 | E179: 947.27 | F179: 937.93 | G179: 922.57 | H179: 971.97 | I179: 987.33 | J179: 996.67 | K179: 978 | L179: 953.3 | M179: 12.44924
A180: 171 | B180: SBILIFE | C180: 908.5 | D180: 911.63 | E180: 901.87 | F180: 895.23 | G180: 885.47 | H180: 918.27 | I180: 928.03 | J180: 934.67 | K180: 921.4 | L180: 905 | M180: 13.42782
A181: 172 | B181: SRF | C181: 6205.75 | D181: 6233.45 | E181: 6102.30 | F181: 5998.85 | G181: 5867.70 | H181: 6336.90 | I181: 6468.05 | J181: 6571.50 | K181: 6364.6 | L181: 6130 | M181: 3.06052
A182: 173 | B182: SANOFI | C182: 8132.45 | D182: 8120.80 | E182: 8041.60 | F182: 7950.75 | G182: 7871.55 | H182: 8211.65 | I182: 8290.85 | J182: 8381.70 | K182: 8200 | L182: 8029.95 | M182: 0.2393
A183: 174 | B183: SHREECEM | C183: 31582.65 | D183: 31296.88 | E183: 30545.77 | F183: 29508.88 | G183: 28757.77 | H183: 32333.77 | I183: 33084.88 | J183: 34121.77 | K183: 32048 | L183: 30260 | M183: 1.48094
A184: 175 | B184: SRTRANSFIN | C184: 1494.2 | D184: 1492.48 | E184: 1474.97 | F184: 1455.73 | G184: 1438.22 | H184: 1511.72 | I184: 1529.23 | J184: 1548.47 | K184: 1510 | L184: 1473.25 | M184: 22.3739
A185: 176 | B185: SIEMENS | C185: 1841.25 | D185: 1826.30 | E185: 1796.05 | F185: 1750.85 | G185: 1720.60 | H185: 1871.50 | I185: 1901.75 | J185: 1946.95 | K185: 1856.55 | L185: 1781.1 | M185: 3.61679
A186: 177 | B186: SBIN | C186: 355.6 | D186: 357.73 | E186: 352.17 | F186: 348.73 | G186: 343.17 | H186: 361.17 | I186: 366.73 | J186: 370.17 | K186: 363.3 | L186: 354.3 | M186: 333.70259
A187: 178 | B187: SAIL | C187: 95.6 | D187: 95.15 | E187: 91.80 | F187: 88.00 | G187: 84.65 | H187: 98.95 | I187: 102.30 | J187: 106.10 | K187: 98.5 | L187: 91.35 | M187: 1242.24953
A188: 179 | B188: SUNPHARMA | C188: 614.25 | D188: 617.85 | E188: 609.70 | F188: 605.15 | G188: 597.00 | H188: 622.40 | I188: 630.55 | J188: 635.10 | K188: 626 | L188: 613.3 | M188: 32.22479
A189: 180 | B189: SUNTV | C189: 480.6 | D189: 481.67 | E189: 474.48 | F189: 468.37 | G189: 461.18 | H189: 487.78 | I189: 494.97 | J189: 501.08 | K189: 488.85 | L189: 475.55 | M189: 22.14884
A190: 181 | B190: SYNGENE | C190: 557.95 | D190: 557.37 | E190: 552.73 | F190: 547.52 | G190: 542.88 | H190: 562.58 | I190: 567.22 | J190: 572.43 | K190: 562 | L190: 552.15 | M190: 2.52136
A191: 182 | B191: TVSMOTOR | C191: 564.1 | D191: 566.90 | E191: 559.35 | F191: 554.60 | G191: 547.05 | H191: 571.65 | I191: 579.20 | J191: 583.95 | K191: 574.45 | L191: 562.15 | M191: 11.33942
A192: 183 | B192: TATACHEM | C192: 819.45 | D192: 822.22 | E192: 810.48 | F192: 801.52 | G192: 789.78 | H192: 831.18 | I192: 842.92 | J192: 851.88 | K192: 833.95 | L192: 813.25 | M192: 49.03152
A193: 184 | B193: TCS | C193: 3317.35 | D193: 3306.13 | E193: 3277.27 | F193: 3237.18 | G193: 3208.32 | H193: 3346.22 | I193: 3375.08 | J193: 3415.17 | K193: 3335 | L193: 3266.05 | M193: 25.78118
A194: 185 | B194: TATACONSUM | C194: 670.7 | D194: 671.57 | E194: 665.93 | F194: 661.17 | G194: 655.53 | H194: 676.33 | I194: 681.97 | J194: 686.73 | K194: 677.2 | L194: 666.8 | M194: 24.77848
A195: 186 | B195: TATAMOTORS | C195: 313.95 | D195: 313.75 | E195: 307.70 | F195: 301.45 | G195: 295.40 | H195: 320.00 | I195: 326.05 | J195: 332.30 | K195: 319.8 | L195: 307.5 | M195: 624.59774
A196: 187 | B196: TATAPOWER | C196: 104.95 | D196: 105.47 | E196: 104.18 | F196: 103.42 | G196: 102.13 | H196: 106.23 | I196: 107.52 | J196: 108.28 | K196: 106.75 | L196: 104.7 | M196: 369.10799
A197: 188 | B197: TATASTEEL | C197: 918.4 | D197: 918.25 | E197: 882.85 | F197: 847.30 | G197: 811.90 | H197: 953.80 | I197: 989.20 | J197: 1024.75 | K197: 953.65 | L197: 882.7 | M197: 530.63056
A198: 189 | B198: TECHM | C198: 1029 | D198: 1027.95 | E198: 1006.05 | F198: 983.10 | G198: 961.20 | H198: 1050.90 | I198: 1072.80 | J198: 1095.75 | K198: 1049.85 | L198: 1005 | M198: 67.37118
A199: 190 | B199: RAMCOCEM | C199: 1067 | D199: 1060.42 | E199: 1043.83 | F199: 1020.67 | G199: 1004.08 | H199: 1083.58 | I199: 1100.17 | J199: 1123.33 | K199: 1077 | L199: 1037.25 | M199: 4.64926
A200: 191 | B200: TITAN | C200: 1571.3 | D200: 1558.60 | E200: 1538.20 | F200: 1505.10 | G200: 1484.70 | H200: 1591.70 | I200: 1612.10 | J200: 1645.20 | K200: 1579 | L200: 1525.5 | M200: 20.85919
A201: 192 | B201: TORNTPHARM | C201: 2549.3 | D201: 2551.35 | E201: 2526.70 | F201: 2504.10 | G201: 2479.45 | H201: 2573.95 | I201: 2598.60 | J201: 2621.20 | K201: 2576 | L201: 2528.75 | M201: 4.14653
A202: 193 | B202: TORNTPOWER | C202: 422.5 | D202: 423.48 | E202: 418.42 | F202: 414.33 | G202: 409.27 | H202: 427.57 | I202: 432.63 | J202: 436.72 | K202: 428.55 | L202: 419.4 | M202: 13.30315
A203: 194 | B203: TRENT | C203: 729.75 | D203: 728.87 | E203: 721.43 | F203: 713.12 | G203: 705.68 | H203: 737.18 | I203: 744.62 | J203: 752.93 | K203: 736.3 | L203: 720.55 | M203: 6.13211
A204: 195 | B204: UPL | C204: 651.6 | D204: 655.40 | E204: 646.20 | F204: 640.80 | G204: 631.60 | H204: 660.80 | I204: 670.00 | J204: 675.40 | K204: 664.6 | L204: 650 | M204: 39.26359
A205: 196 | B205: ULTRACEMCO | C205: 6971.25 | D205: 6935.97 | E205: 6819.08 | F205: 6666.92 | G205: 6550.03 | H205: 7088.13 | I205: 7205.02 | J205: 7357.18 | K205: 7052.85 | L205: 6783.8 | M205: 6.35298
... 29 more rows

Sheet MidCap Intra
L5: Back To Main Page
A6: FOR INTRA DAY TRADING | K6: =Main!B10 -> 2021-04-09
A9: Sr.no | B9: Scrip | C9: CLOSE RATE | D9: Pivot Point | E9: Supports | H9: Resistances
C10: Point | E10: S1 | F10: S2 | G10: S3 | H10: R1 | I10: R2 | J10: R3 | K10: HIGH | L10: LOW | M10: Total Trade Quanity in Lakhs
A11: 1 | B11: 3MINDIA | C11: 28019.5 | D11: 27793.88 | E11: 27337.77 | F11: 26656.03 | G11: 26199.92 | H11: 28475.62 | I11: 28931.73 | J11: 29613.47 | K11: 28250 | L11: 27112.15 | M11: 0.04385
A12: 2 | B12: ABB | C12: 1396.3 | D12: 1392.33 | E12: 1379.17 | F12: 1362.03 | G12: 1348.87 | H12: 1409.47 | I12: 1422.63 | J12: 1439.77 | K12: 1405.5 | L12: 1375.2 | M12: 0.47375
A13: 3 | B13: POWERINDIA | C13: 1491.65 | D13: 1498.70 | E13: 1472.40 | F13: 1453.15 | G13: 1426.85 | H13: 1517.95 | I13: 1544.25 | J13: 1563.50 | K13: 1525 | L13: 1479.45 | M13: 0.2423
A14: 4 | B14: ACC | C14: 1981.65 | D14: 1971.88 | E14: 1933.77 | F14: 1885.88 | G14: 1847.77 | H14: 2019.77 | I14: 2057.88 | J14: 2105.77 | K14: 2010 | L14: 1924 | M14: 9.48277
A15: 5 | B15: AIAENG | C15: 1957.2 | D15: 1968.92 | E15: 1938.28 | F15: 1919.37 | G15: 1888.73 | H15: 1987.83 | I15: 2018.47 | J15: 2037.38 | K15: 1999.55 | L15: 1950 | M15: 0.15504
A16: 6 | B16: APLAPOLLO | C16: 1269.1 | D16: 1270.78 | E16: 1258.32 | F16: 1247.53 | G16: 1235.07 | H16: 1281.57 | I16: 1294.03 | J16: 1304.82 | K16: 1283.25 | L16: 1260 | M16: 1.29736
A17: 7 | B17: AUBANK | C17: 1251.9 | D17: 1250.30 | E17: 1235.60 | F17: 1219.30 | G17: 1204.60 | H17: 1266.60 | I17: 1281.30 | J17: 1297.60 | K17: 1265 | L17: 1234 | M17: 9.64208
A18: 8 | B18: AARTIDRUGS | C18: 712.3 | D18: 711.68 | E18: 702.47 | F18: 692.63 | G18: 683.42 | H18: 721.52 | I18: 730.73 | J18: 740.57 | K18: 720.9 | L18: 701.85 | M18: 5.29594
A19: 9 | B19: AARTIIND | C19: 1421.5 | D19: 1426.72 | E19: 1403.43 | F19: 1385.37 | G19: 1362.08 | H19: 1444.78 | I19: 1468.07 | J19: 1486.13 | K19: 1450 | L19: 1408.65 | M19: 6.59066
A20: 10 | B20: AAVAS | C20: 2389.55 | D20: 2395.87 | E20: 2356.73 | F20: 2323.92 | G20: 2284.78 | H20: 2428.68 | I20: 2467.82 | J20: 2500.63 | K20: 2435 | L20: 2363.05 | M20: 0.16888
A21: 11 | B21: ABBOTINDIA | C21: 14963.35 | D21: 15025.28 | E21: 14650.57 | F21: 14337.78 | G21: 13963.07 | H21: 15338.07 | I21: 15712.78 | J21: 16025.57 | K21: 15400 | L21: 14712.5 | M21: 0.18239
A22: 12 | B22: ADANIENT | C22: 1162.5 | D22: 1163.75 | E22: 1136.50 | F22: 1110.50 | G22: 1083.25 | H22: 1189.75 | I22: 1217.00 | J22: 1243.00 | K22: 1191 | L22: 1137.75 | M22: 124.04773
A23: 13 | B23: ADANIGREEN | C23: 1165.5 | D23: 1173.88 | E23: 1151.62 | F23: 1137.73 | G23: 1115.47 | H23: 1187.77 | I23: 1210.03 | J23: 1223.92 | K23: 1196.15 | L23: 1160 | M23: 4.62142
A24: 14 | B24: ADANIPORTS | C24: 823 | D24: 822.33 | E24: 806.67 | F24: 790.33 | G24: 774.67 | H24: 838.67 | I24: 854.33 | J24: 870.67 | K24: 838 | L24: 806 | M24: 340.25873
A25: 15 | B25: ATGL | C25: 993.25 | D25: 1028.83 | E25: 957.67 | F25: 922.08 | G25: 850.92 | H25: 1064.42 | I25: 1135.58 | J25: 1171.17 | K25: 1100 | L25: 993.25 | M25: 33.63435
A26: 16 | B26: ADANITRANS | C26: 1002.4 | D26: 1026.60 | E26: 978.20 | F26: 954.00 | G26: 905.60 | H26: 1050.80 | I26: 1099.20 | J26: 1123.40 | K26: 1075 | L26: 1002.4 | M26: 7.35982
A27: 17 | B27: ABCAPITAL | C27: 127.8 | D27: 128.05 | E27: 125.30 | F27: 122.80 | G27: 120.05 | H27: 130.55 | I27: 133.30 | J27: 135.80 | K27: 130.8 | L27: 125.55 | M27: 40.31328
A28: 18 | B28: ABFRL | C28: 189.7 | D28: 190.87 | E28: 187.33 | F28: 184.97 | G28: 181.43 | H28: 193.23 | I28: 196.77 | J28: 199.13 | K28: 194.4 | L28: 188.5 | M28: 25.2187
A29: 19 | B29: ADVENZYMES | C29: 375.25 | D29: 379.05 | E29: 369.20 | F29: 363.15 | G29: 353.30 | H29: 385.10 | I29: 394.95 | J29: 401.00 | K29: 388.9 | L29: 373 | M29: 2.88022
A30: 20 | B30: AEGISCHEM | C30: 291.4 | D30: 291.08 | E30: 287.47 | F30: 283.53 | G30: 279.92 | H30: 295.02 | I30: 298.63 | J30: 302.57 | K30: 294.7 | L30: 287.15 | M30: 4.18077
A31: 21 | B31: AFFLE | C31: 5581.75 | D31: 5641.98 | E31: 5495.37 | F31: 5408.98 | G31: 5262.37 | H31: 5728.37 | I31: 5874.98 | J31: 5961.37 | K31: 5788.6 | L31: 5555.6 | M31: 0.72075
A32: 22 | B32: AJANTPHARM | C32: 1719.85 | D32: 1722.08 | E32: 1704.27 | F32: 1688.68 | G32: 1670.87 | H32: 1737.67 | I32: 1755.48 | J32: 1771.07 | K32: 1739.9 | L32: 1706.5 | M32: 1.94822
A33: 23 | B33: AKZOINDIA | C33: 2401.35 | D33: 2404.12 | E33: 2375.88 | F33: 2350.42 | G33: 2322.18 | H33: 2429.58 | I33: 2457.82 | J33: 2483.28 | K33: 2432.35 | L33: 2378.65 | M33: 0.10761
A34: 24 | B34: ALEMBICLTD | C34: 105.2 | D34: 106.50 | E34: 103.70 | F34: 102.20 | G34: 99.40 | H34: 108.00 | I34: 110.80 | J34: 112.30 | K34: 109.3 | L34: 105 | M34: 5.21496
A35: 25 | B35: APLLTD | C35: 973.05 | D35: 982.28 | E35: 959.57 | F35: 946.08 | G35: 923.37 | H35: 995.77 | I35: 1018.48 | J35: 1031.97 | K35: 1005 | L35: 968.8 | M35: 5.67127
A36: 26 | B36: ALKEM | C36: 2706.45 | D36: 2723.48 | E36: 2686.97 | F36: 2667.48 | G36: 2630.97 | H36: 2742.97 | I36: 2779.48 | J36: 2798.97 | K36: 2760 | L36: 2704 | M36: 0.90791
A37: 27 | B37: ALKYLAMINE | C37: 6150.8 | D37: 6163.60 | E37: 6027.20 | F37: 5903.60 | G37: 5767.20 | H37: 6287.20 | I37: 6423.60 | J37: 6547.20 | K37: 6300 | L37: 6040 | M37: 0.80975
A38: 28 | B38: ALOKINDS | C38: 20.85 | D38: 20.95 | E38: 20.70 | F38: 20.55 | G38: 20.30 | H38: 21.10 | I38: 21.35 | J38: 21.50 | K38: 21.2 | L38: 20.8 | M38: 43.62312
A39: 29 | B39: AMARAJABAT | C39: 816.15 | D39: 824.45 | E39: 803.95 | F39: 791.75 | G39: 771.25 | H39: 836.65 | I39: 857.15 | J39: 869.35 | K39: 844.95 | L39: 812.25 | M39: 16.39684
A40: 30 | B40: AMBER | C40: 3272.6 | D40: 3262.08 | E40: 3212.17 | F40: 3151.73 | G40: 3101.82 | H40: 3322.52 | I40: 3372.43 | J40: 3432.87 | K40: 3312 | L40: 3201.65 | M40: 1.22944
A41: 31 | B41: AMBUJACEM | C41: 320.8 | D41: 319.00 | E41: 311.10 | F41: 301.40 | G41: 293.50 | H41: 328.70 | I41: 336.60 | J41: 346.30 | K41: 326.9 | L41: 309.3 | M41: 72.23424
A42: 32 | B42: APOLLOHOSP | C42: 3114.6 | D42: 3116.07 | E42: 3087.93 | F42: 3061.27 | G42: 3033.13 | H42: 3142.73 | I42: 3170.87 | J42: 3197.53 | K42: 3144.2 | L42: 3089.4 | M42: 8.00699
A43: 33 | B43: APOLLOTYRE | C43: 224.3 | D43: 225.63 | E43: 222.02 | F43: 219.73 | G43: 216.12 | H43: 227.92 | I43: 231.53 | J43: 233.82 | K43: 229.25 | L43: 223.35 | M43: 60.64459
A44: 34 | B44: ASHOKLEY | C44: 122.75 | D44: 121.60 | E44: 118.40 | F44: 114.05 | G44: 110.85 | H44: 125.95 | I44: 129.15 | J44: 133.50 | K44: 124.8 | L44: 117.25 | M44: 540.15926
A45: 35 | B45: ASHOKA | C45: 96.9 | D45: 97.32 | E45: 96.13 | F45: 95.37 | G45: 94.18 | H45: 98.08 | I45: 99.27 | J45: 100.03 | K45: 98.5 | L45: 96.55 | M45: 5.30467
A46: 36 | B46: ASIANPAINT | C46: 2650.65 | D46: 2645.68 | E46: 2632.97 | F46: 2615.28 | G46: 2602.57 | H46: 2663.37 | I46: 2676.08 | J46: 2693.77 | K46: 2658.4 | L46: 2628 | M46: 8.97483
A47: 37 | B47: ASTERDM | C47: 136.1 | D47: 136.60 | E47: 134.50 | F47: 132.90 | G47: 130.80 | H47: 138.20 | I47: 140.30 | J47: 141.90 | K47: 138.7 | L47: 135 | M47: 1.86381
A48: 38 | B48: ASTRAZEN | C48: 3331.8 | D48: 3336.35 | E48: 3314.45 | F48: 3297.10 | G48: 3275.20 | H48: 3353.70 | I48: 3375.60 | J48: 3392.95 | K48: 3358.25 | L48: 3319 | M48: 0.25195
A49: 39 | B49: ASTRAL | C49: 1594.7 | D49: 1601.27 | E49: 1578.58 | F49: 1562.47 | G49: 1539.78 | H49: 1617.38 | I49: 1640.07 | J49: 1656.18 | K49: 1623.95 | L49: 1585.15 | M49: 2.2584
A50: 40 | B50: ATUL | C50: 7973.15 | D50: 7972.40 | E50: 7904.80 | F50: 7836.45 | G50: 7768.85 | H50: 8040.75 | I50: 8108.35 | J50: 8176.70 | K50: 8040 | L50: 7904.05 | M50: 0.31252
A51: 41 | B51: AUROPHARMA | C51: 907.4 | D51: 911.08 | E51: 902.32 | F51: 897.23 | G51: 888.47 | H51: 916.17 | I51: 924.93 | J51: 930.02 | K51: 919.85 | L51: 906 | M51: 14.82404
A52: 42 | B52: AVANTIFEED | C52: 472.75 | D52: 477.48 | E52: 465.37 | F52: 457.98 | G52: 445.87 | H52: 484.87 | I52: 496.98 | J52: 504.37 | K52: 489.6 | L52: 470.1 | M52: 6.03218
A53: 43 | B53: DMART | C53: 2936.5 | D53: 2924.05 | E53: 2903.10 | F53: 2869.70 | G53: 2848.75 | H53: 2957.45 | I53: 2978.40 | J53: 3011.80 | K53: 2945 | L53: 2890.65 | M53: 4.78173
A54: 44 | B54: AXISBANK | C54: 681.6 | D54: 685.48 | E54: 675.47 | F54: 669.33 | G54: 659.32 | H54: 691.62 | I54: 701.63 | J54: 707.77 | K54: 695.5 | L54: 679.35 | M54: 90.26398
A55: 45 | B55: BASF | C55: 2094.65 | D55: 2104.22 | E55: 2063.43 | F55: 2032.22 | G55: 1991.43 | H55: 2135.43 | I55: 2176.22 | J55: 2207.43 | K55: 2145 | L55: 2073 | M55: 0.24972
A56: 46 | B56: BEML | C56: 1279.9 | D56: 1283.93 | E56: 1262.97 | F56: 1246.03 | G56: 1225.07 | H56: 1300.87 | I56: 1321.83 | J56: 1338.77 | K56: 1304.9 | L56: 1267 | M56: 3.80212
A57: 47 | B57: BSE | C57: 604.3 | D57: 606.63 | E57: 599.27 | F57: 594.23 | G57: 586.87 | H57: 611.67 | I57: 619.03 | J57: 624.07 | K57: 614 | L57: 601.6 | M57: 4.67169
A58: 48 | B58: BAJAJ-AUTO | C58: 3649.8 | D58: 3664.58 | E58: 3630.22 | F58: 3610.63 | G58: 3576.27 | H58: 3684.17 | I58: 3718.53 | J58: 3738.12 | K58: 3698.95 | L58: 3645 | M58: 4.1402
A59: 49 | B59: BAJAJCON | C59: 269.95 | D59: 270.68 | E59: 267.52 | F59: 265.08 | G59: 261.92 | H59: 273.12 | I59: 276.28 | J59: 278.72 | K59: 273.85 | L59: 268.25 | M59: 4.60774
A60: 50 | B60: BAJAJELEC | C60: 1039.95 | D60: 1037.07 | E60: 1025.13 | F60: 1010.32 | G60: 998.38 | H60: 1051.88 | I60: 1063.82 | J60: 1078.63 | K60: 1049 | L60: 1022.25 | M60: 0.90868
A61: 51 | B61: BAJFINANCE | C61: 5029.5 | D61: 5053.17 | E61: 4991.33 | F61: 4953.17 | G61: 4891.33 | H61: 5091.33 | I61: 5153.17 | J61: 5191.33 | K61: 5115 | L61: 5015 | M61: 14.07879
A62: 52 | B62: BAJAJFINSV | C62: 9654.8 | D62: 9655.00 | E62: 9574.85 | F62: 9494.90 | G62: 9414.75 | H62: 9734.95 | I62: 9815.10 | J62: 9895.05 | K62: 9735.15 | L62: 9575.05 | M62: 3.53634
A63: 53 | B63: BAJAJHLDNG | C63: 3388 | D63: 3380.63 | E63: 3362.37 | F63: 3336.73 | G63: 3318.47 | H63: 3406.27 | I63: 3424.53 | J63: 3450.17 | K63: 3398.9 | L63: 3355 | M63: 0.52635
A64: 54 | B64: BALKRISIND | C64: 1679.5 | D64: 1682.08 | E64: 1661.42 | F64: 1643.33 | G64: 1622.67 | H64: 1700.17 | I64: 1720.83 | J64: 1738.92 | K64: 1702.75 | L64: 1664 | M64: 4.81595
A65: 55 | B65: BALMLAWRIE | C65: 130.1 | D65: 131.00 | E65: 128.35 | F65: 126.60 | G65: 123.95 | H65: 132.75 | I65: 135.40 | J65: 137.15 | K65: 133.65 | L65: 129.25 | M65: 4.8829
A66: 56 | B66: BALRAMCHIN | C66: 235.5 | D66: 230.68 | E66: 219.37 | F66: 203.23 | G66: 191.92 | H66: 246.82 | I66: 258.13 | J66: 274.27 | K66: 242 | L66: 214.55 | M66: 78.87698
A67: 57 | B67: BANDHANBNK | C67: 355.05 | D67: 354.65 | E67: 349.20 | F67: 343.35 | G67: 337.90 | H67: 360.50 | I67: 365.95 | J67: 371.80 | K67: 360.1 | L67: 348.8 | M67: 66.75404
A68: 58 | B68: BANKBARODA | C68: 73.5 | D68: 74.12 | E68: 72.63 | F68: 71.77 | G68: 70.28 | H68: 74.98 | I68: 76.47 | J68: 77.33 | K68: 75.6 | L68: 73.25 | M68: 381.86842
A69: 59 | B69: BANKINDIA | C69: 68.2 | D69: 68.57 | E69: 67.63 | F69: 67.07 | G69: 66.13 | H69: 69.13 | I69: 70.07 | J69: 70.63 | K69: 69.5 | L69: 68 | M69: 26.77241
A70: 60 | B70: MAHABANK | C70: 21.2 | D70: 21.40 | E70: 20.95 | F70: 20.70 | G70: 20.25 | H70: 21.65 | I70: 22.10 | J70: 22.35 | K70: 21.85 | L70: 21.15 | M70: 35.4439
A71: 61 | B71: BATAINDIA | C71: 1405.2 | D71: 1402.80 | E71: 1392.40 | F71: 1379.60 | G71: 1369.20 | H71: 1415.60 | I71: 1426.00 | J71: 1438.80 | K71: 1413.2 | L71: 1390 | M71: 4.24826
A72: 62 | B72: BAYERCROP | C72: 5300.3 | D72: 5280.25 | E72: 5230.65 | F72: 5161.00 | G72: 5111.40 | H72: 5349.90 | I72: 5399.50 | J72: 5469.15 | K72: 5329.85 | L72: 5210.6 | M72: 0.11571
A73: 63 | B73: BERGEPAINT | C73: 762.45 | D73: 759.20 | E73: 753.40 | F73: 744.35 | G73: 738.55 | H73: 768.25 | I73: 774.05 | J73: 783.10 | K73: 765 | L73: 750.15 | M73: 6.53368
A74: 64 | B74: BDL | C74: 342.05 | D74: 343.05 | E74: 339.15 | F74: 336.25 | G74: 332.35 | H74: 345.95 | I74: 349.85 | J74: 352.75 | K74: 346.95 | L74: 340.15 | M74: 0.7857
A75: 65 | B75: BEL | C75: 130.05 | D75: 131.07 | E75: 128.48 | F75: 126.92 | G75: 124.33 | H75: 132.63 | I75: 135.22 | J75: 136.78 | K75: 133.65 | L75: 129.5 | M75: 84.40783
A76: 66 | B76: BHARATFORG | C76: 614.85 | D76: 616.45 | E76: 611.40 | F76: 607.95 | G76: 602.90 | H76: 619.90 | I76: 624.95 | J76: 628.40 | K76: 621.5 | L76: 613 | M76: 8.3377
A77: 67 | B77: BHEL | C77: 51.6 | D77: 51.50 | E77: 49.95 | F77: 48.30 | G77: 46.75 | H77: 53.15 | I77: 54.70 | J77: 56.35 | K77: 53.05 | L77: 49.85 | M77: 851.59684
A78: 68 | B78: BPCL | C78: 430.55 | D78: 431.95 | E78: 427.90 | F78: 425.25 | G78: 421.20 | H78: 434.60 | I78: 438.65 | J78: 441.30 | K78: 436 | L78: 429.3 | M78: 33.54117
A79: 69 | B79: BHARATRAS | C79: 10088.55 | D79: 9987.07 | E79: 9702.48 | F79: 9316.42 | G79: 9031.83 | H79: 10373.13 | I79: 10657.72 | J79: 11043.78 | K79: 10271.65 | L79: 9601 | M79: 0.08606
A80: 70 | B80: BHARTIARTL | C80: 543 | D80: 544.02 | E80: 539.48 | F80: 535.97 | G80: 531.43 | H80: 547.53 | I80: 552.07 | J80: 555.58 | K80: 548.55 | L80: 540.5 | M80: 111.57958
A81: 71 | B81: BIOCON | C81: 413.25 | D81: 413.65 | E81: 410.75 | F81: 408.25 | G81: 405.35 | H81: 416.15 | I81: 419.05 | J81: 421.55 | K81: 416.55 | L81: 411.15 | M81: 20.86999
A82: 72 | B82: BIRLACORPN | C82: 977.95 | D82: 971.65 | E82: 955.30 | F82: 932.65 | G82: 916.30 | H82: 994.30 | I82: 1010.65 | J82: 1033.30 | K82: 988 | L82: 949 | M82: 2.31088
A83: 73 | B83: BSOFT | C83: 266.9 | D83: 268.72 | E83: 263.18 | F83: 259.47 | G83: 253.93 | H83: 272.43 | I83: 277.97 | J83: 281.68 | K83: 274.25 | L83: 265 | M83: 13.09871
A84: 74 | B84: BLISSGVS | C84: 100.35 | D84: 100.98 | E84: 99.47 | F84: 98.58 | G84: 97.07 | H84: 101.87 | I84: 103.38 | J84: 104.27 | K84: 102.5 | L84: 100.1 | M84: 2.40137
A85: 75 | B85: BLUEDART | C85: 5268.5 | D85: 5334.48 | E85: 5149.02 | F85: 5029.53 | G85: 4844.07 | H85: 5453.97 | I85: 5639.43 | J85: 5758.92 | K85: 5519.95 | L85: 5215 | M85: 0.18203
A86: 76 | B86: BLUESTARCO | C86: 913.7 | D86: 914.97 | E86: 906.98 | F86: 900.27 | G86: 892.28 | H86: 921.68 | I86: 929.67 | J86: 936.38 | K86: 922.95 | L86: 908.25 | M86: 1.05646
A87: 77 | B87: BBTC | C87: 1249.05 | D87: 1244.68 | E87: 1205.37 | F87: 1161.68 | G87: 1122.37 | H87: 1288.37 | I87: 1327.68 | J87: 1371.37 | K87: 1284 | L87: 1201 | M87: 3.32835
A88: 78 | B88: BOMDYEING | C88: 73.6 | D88: 73.72 | E88: 72.63 | F88: 71.67 | G88: 70.58 | H88: 74.68 | I88: 75.77 | J88: 76.73 | K88: 74.8 | L88: 72.75 | M88: 23.80509
A89: 79 | B89: BOSCHLTD | C89: 14710.2 | D89: 14706.03 | E89: 14564.27 | F89: 14418.33 | G89: 14276.57 | H89: 14851.97 | I89: 14993.73 | J89: 15139.67 | K89: 14847.8 | L89: 14560.1 | M89: 0.3871
A90: 80 | B90: BRIGADE | C90: 269.45 | D90: 269.08 | E90: 265.37 | F90: 261.28 | G90: 257.57 | H90: 273.17 | I90: 276.88 | J90: 280.97 | K90: 272.8 | L90: 265 | M90: 2.11249
A91: 81 | B91: BRITANNIA | C91: 3816.75 | D91: 3803.93 | E91: 3773.87 | F91: 3730.98 | G91: 3700.92 | H91: 3846.82 | I91: 3876.88 | J91: 3919.77 | K91: 3834 | L91: 3761.05 | M91: 6.13388
A92: 82 | B92: CARERATING | C92: 467.6 | D92: 471.83 | E92: 456.77 | F92: 445.93 | G92: 430.87 | H92: 482.67 | I92: 497.73 | J92: 508.57 | K92: 486.9 | L92: 461 | M92: 5.38521
A93: 83 | B93: CCL | C93: 244.5 | D93: 244.72 | E93: 240.43 | F93: 236.37 | G93: 232.08 | H93: 248.78 | I93: 253.07 | J93: 257.13 | K93: 249 | L93: 240.65 | M93: 1.4795
A94: 84 | B94: CESC | C94: 628.85 | D94: 628.18 | E94: 624.72 | F94: 620.58 | G94: 617.12 | H94: 632.32 | I94: 635.78 | J94: 639.92 | K94: 631.65 | L94: 624.05 | M94: 2.99028
A95: 85 | B95: CRISIL | C95: 1805.2 | D95: 1821.95 | E95: 1779.40 | F95: 1753.60 | G95: 1711.05 | H95: 1847.75 | I95: 1890.30 | J95: 1916.10 | K95: 1864.5 | L95: 1796.15 | M95: 0.42854
A96: 86 | B96: CSBBANK | C96: 265.9 | D96: 263.50 | E96: 260.00 | F96: 254.10 | G96: 250.60 | H96: 269.40 | I96: 272.90 | J96: 278.80 | K96: 267 | L96: 257.6 | M96: 5.78917
A97: 87 | B97: CADILAHC | C97: 470.7 | D97: 469.67 | E97: 463.53 | F97: 456.37 | G97: 450.23 | H97: 476.83 | I97: 482.97 | J97: 490.13 | K97: 475.8 | L97: 462.5 | M97: 34.83861
A98: 88 | B98: CANFINHOME | C98: 566.8 | D98: 568.37 | E98: 563.43 | F98: 560.07 | G98: 555.13 | H98: 571.73 | I98: 576.67 | J98: 580.03 | K98: 573.3 | L98: 565 | M98: 1.43346
A99: 89 | B99: CANBK | C99: 147.2 | D99: 148.38 | E99: 145.37 | F99: 143.53 | G99: 140.52 | H99: 150.22 | I99: 153.23 | J99: 155.07 | K99: 151.4 | L99: 146.55 | M99: 130.8583
A100: 90 | B100: CAPLIPOINT | C100: 471.15 | D100: 473.55 | E100: 467.70 | F100: 464.25 | G100: 458.40 | H100: 477.00 | I100: 482.85 | J100: 486.30 | K100: 479.4 | L100: 470.1 | M100: 1.56041
A101: 91 | B101: CGCL | C101: 390.2 | D101: 393.07 | E101: 387.13 | F101: 384.07 | G101: 378.13 | H101: 396.13 | I101: 402.07 | J101: 405.13 | K101: 399 | L101: 390 | M101: 0.37828
A102: 92 | B102: CARBORUNIV | C102: 520.55 | D102: 521.03 | E102: 503.07 | F102: 485.58 | G102: 467.62 | H102: 538.52 | I102: 556.48 | J102: 573.97 | K102: 539 | L102: 503.55 | M102: 4.17995
A103: 93 | B103: CASTROLIND | C103: 124.3 | D103: 124.43 | E103: 123.82 | F103: 123.33 | G103: 122.72 | H103: 124.92 | I103: 125.53 | J103: 126.02 | K103: 125.05 | L103: 123.95 | M103: 3.73525
A104: 94 | B104: CEATLTD | C104: 1540.05 | D104: 1553.97 | E104: 1517.93 | F104: 1495.82 | G104: 1459.78 | H104: 1576.08 | I104: 1612.12 | J104: 1634.23 | K104: 1590 | L104: 1531.85 | M104: 1.41448
A105: 95 | B105: CENTRALBK | C105: 16.5 | D105: 16.60 | E105: 16.30 | F105: 16.10 | G105: 15.80 | H105: 16.80 | I105: 17.10 | J105: 17.30 | K105: 16.9 | L105: 16.4 | M105: 55.54636
A106: 96 | B106: CDSL | C106: 756.8 | D106: 757.25 | E106: 744.55 | F106: 732.30 | G106: 719.60 | H106: 769.50 | I106: 782.20 | J106: 794.45 | K106: 769.95 | L106: 745 | M106: 14.30343
A107: 97 | B107: CENTURYPLY | C107: 310.25 | D107: 312.15 | E107: 306.10 | F107: 301.95 | G107: 295.90 | H107: 316.30 | I107: 322.35 | J107: 326.50 | K107: 318.2 | L107: 308 | M107: 0.9444
A108: 98 | B108: CENTURYTEX | C108: 481.15 | D108: 471.20 | E108: 457.95 | F108: 434.75 | G108: 421.50 | H108: 494.40 | I108: 507.65 | J108: 530.85 | K108: 484.45 | L108: 448 | M108: 16.63502
A109: 99 | B109: CERA | C109: 3809.3 | D109: 3807.55 | E109: 3742.00 | F109: 3674.70 | G109: 3609.15 | H109: 3874.85 | I109: 3940.40 | J109: 4007.70 | K109: 3873.1 | L109: 3740.25 | M109: 0.25552
A110: 100 | B110: CHALET | C110: 149.2 | D110: 149.77 | E110: 147.68 | F110: 146.17 | G110: 144.08 | H110: 151.28 | I110: 153.37 | J110: 154.88 | K110: 151.85 | L110: 148.25 | M110: 1.18249
A111: 101 | B111: CHAMBLFERT | C111: 227.85 | D111: 228.65 | E111: 223.40 | F111: 218.95 | G111: 213.70 | H111: 233.10 | I111: 238.35 | J111: 242.80 | K111: 233.9 | L111: 224.2 | M111: 16.42651
A112: 102 | B112: CHENNPETRO | C112: 102.8 | D112: 102.32 | E112: 100.68 | F112: 98.57 | G112: 96.93 | H112: 104.43 | I112: 106.07 | J112: 108.18 | K112: 103.95 | L112: 100.2 | M112: 6.33357
A113: 103 | B113: CHOLAHLDNG | C113: 599.75 | D113: 594.02 | E113: 587.03 | F113: 574.32 | G113: 567.33 | H113: 606.73 | I113: 613.72 | J113: 626.43 | K113: 601 | L113: 581.3 | M113: 2.41557
A114: 104 | B114: CHOLAFIN | C114: 562.95 | D114: 568.28 | E114: 555.67 | F114: 548.38 | G114: 535.77 | H114: 575.57 | I114: 588.18 | J114: 595.47 | K114: 580.9 | L114: 561 | M114: 54.76027
A115: 105 | B115: CIPLA | C115: 842 | D115: 843.62 | E115: 836.78 | F115: 831.57 | G115: 824.73 | H115: 848.83 | I115: 855.67 | J115: 860.88 | K115: 850.45 | L115: 838.4 | M115: 24.59821
A116: 106 | B116: CUB | C116: 166.1 | D116: 166.67 | E116: 164.63 | F116: 163.17 | G116: 161.13 | H116: 168.13 | I116: 170.17 | J116: 171.63 | K116: 168.7 | L116: 165.2 | M116: 25.5793
A117: 107 | B117: COALINDIA | C117: 131.65 | D117: 132.20 | E117: 130.65 | F117: 129.65 | G117: 128.10 | H117: 133.20 | I117: 134.75 | J117: 135.75 | K117: 133.75 | L117: 131.2 | M117: 93.30363
A118: 108 | B118: COCHINSHIP | C118: 367.05 | D118: 368.27 | E118: 363.78 | F118: 360.52 | G118: 356.03 | H118: 371.53 | I118: 376.02 | J118: 379.28 | K118: 372.75 | L118: 365 | M118: 1.39353
A119: 109 | B119: COFORGE | C119: 3078.95 | D119: 3106.30 | E119: 3027.65 | F119: 2976.35 | G119: 2897.70 | H119: 3157.60 | I119: 3236.25 | J119: 3287.55 | K119: 3184.95 | L119: 3055 | M119: 6.38091
A120: 110 | B120: COLPAL | C120: 1590.1 | D120: 1579.22 | E120: 1565.63 | F120: 1541.17 | G120: 1527.58 | H120: 1603.68 | I120: 1617.27 | J120: 1641.73 | K120: 1592.8 | L120: 1554.75 | M120: 5.08957
A121: 111 | B121: CONCOR | C121: 590.1 | D121: 592.53 | E121: 584.07 | F121: 578.03 | G121: 569.57 | H121: 598.57 | I121: 607.03 | J121: 613.07 | K121: 601 | L121: 586.5 | M121: 36.31511
A122: 112 | B122: COROMANDEL | C122: 759.2 | D122: 757.65 | E122: 745.50 | F122: 731.80 | G122: 719.65 | H122: 771.35 | I122: 783.50 | J122: 797.20 | K122: 769.8 | L122: 743.95 | M122: 5.76043
A123: 113 | B123: CREDITACC | C123: 614.7 | D123: 618.75 | E123: 608.00 | F123: 601.30 | G123: 590.55 | H123: 625.45 | I123: 636.20 | J123: 642.90 | K123: 629.5 | L123: 612.05 | M123: 0.95384
A124: 114 | B124: CROMPTON | C124: 395.85 | D124: 393.90 | E124: 389.70 | F124: 383.55 | G124: 379.35 | H124: 400.05 | I124: 404.25 | J124: 410.40 | K124: 398.1 | L124: 387.75 | M124: 9.48966
A125: 115 | B125: CUMMINSIND | C125: 885.85 | D125: 889.68 | E125: 877.62 | F125: 869.38 | G125: 857.32 | H125: 897.92 | I125: 909.98 | J125: 918.22 | K125: 901.75 | L125: 881.45 | M125: 6.00468
A126: 116 | B126: CYIENT | C126: 701.2 | D126: 700.85 | E126: 691.80 | F126: 682.40 | G126: 673.35 | H126: 710.25 | I126: 719.30 | J126: 728.70 | K126: 709.9 | L126: 691.45 | M126: 3.77409
A127: 117 | B127: DBCORP | C127: 93.65 | D127: 94.35 | E127: 92.30 | F127: 90.95 | G127: 88.90 | H127: 95.70 | I127: 97.75 | J127: 99.10 | K127: 96.4 | L127: 93 | M127: 1.39829
A128: 118 | B128: DCBBANK | C128: 101.45 | D128: 101.35 | E128: 100.30 | F128: 99.15 | G128: 98.10 | H128: 102.50 | I128: 103.55 | J128: 104.70 | K128: 102.4 | L128: 100.2 | M128: 14.34344
A129: 119 | B129: DCMSHRIRAM | C129: 547.2 | D129: 538.40 | E129: 522.00 | F129: 496.80 | G129: 480.40 | H129: 563.60 | I129: 580.00 | J129: 605.20 | K129: 554.8 | L129: 513.2 | M129: 1.99394
A130: 120 | B130: DLF | C130: 280.45 | D130: 282.37 | E130: 277.63 | F130: 274.82 | G130: 270.08 | H130: 285.18 | I130: 289.92 | J130: 292.73 | K130: 287.1 | L130: 279.55 | M130: 61.74083
A131: 121 | B131: DABUR | C131: 559.15 | D131: 556.37 | E131: 551.03 | F131: 542.92 | G131: 537.58 | H131: 564.48 | I131: 569.82 | J131: 577.93 | K131: 561.7 | L131: 548.25 | M131: 20.09731
A132: 122 | B132: DALBHARAT | C132: 1559.15 | D132: 1557.38 | E132: 1542.77 | F132: 1526.38 | G132: 1511.77 | H132: 1573.77 | I132: 1588.38 | J132: 1604.77 | K132: 1572 | L132: 1541 | M132: 1.94935
A133: 123 | B133: DEEPAKNTR | C133: 1712.1 | D133: 1721.72 | E133: 1693.43 | F133: 1674.77 | G133: 1646.48 | H133: 1740.38 | I133: 1768.67 | J133: 1787.33 | K133: 1750 | L133: 1703.05 | M133: 12.45796
A134: 124 | B134: DELTACORP | C134: 157.25 | D134: 157.88 | E134: 155.67 | F134: 154.08 | G134: 151.87 | H134: 159.47 | I134: 161.68 | J134: 163.27 | K134: 160.1 | L134: 156.3 | M134: 15.28398
A135: 125 | B135: DHANI | C135: 209.1 | D135: 204.45 | E135: 198.65 | F135: 188.20 | G135: 182.40 | H135: 214.90 | I135: 220.70 | J135: 231.15 | K135: 210.25 | L135: 194 | M135: 43.53395
A136: 126 | B136: DHANUKA | C136: 748.65 | D136: 751.55 | E136: 742.10 | F136: 735.55 | G136: 726.10 | H136: 758.10 | I136: 767.55 | J136: 774.10 | K136: 761 | L136: 745 | M136: 0.52796
A137: 127 | B137: DBL | C137: 574.95 | D137: 577.30 | E137: 569.65 | F137: 564.35 | G137: 556.70 | H137: 582.60 | I137: 590.25 | J137: 595.55 | K137: 584.95 | L137: 572 | M137: 1.77823
A138: 128 | B138: DISHTV | C138: 10.1 | D138: 10.18 | E138: 9.97 | F138: 9.83 | G138: 9.62 | H138: 10.32 | I138: 10.53 | J138: 10.67 | K138: 10.4 | L138: 10.05 | M138: 35.64547
A139: 129 | B139: DCAL | C139: 120.75 | D139: 121.75 | E139: 118.50 | F139: 116.25 | G139: 113.00 | H139: 124.00 | I139: 127.25 | J139: 129.50 | K139: 125 | L139: 119.5 | M139: 7.43912
A140: 130 | B140: DIVISLAB | C140: 3715.15 | D140: 3732.18 | E140: 3664.47 | F140: 3613.78 | G140: 3546.07 | H140: 3782.87 | I140: 3850.58 | J140: 3901.27 | K140: 3799.9 | L140: 3681.5 | M140: 7.52343
A141: 131 | B141: DIXON | C141: 3734.5 | D141: 3737.87 | E141: 3678.73 | F141: 3622.97 | G141: 3563.83 | H141: 3793.63 | I141: 3852.77 | J141: 3908.53 | K141: 3797 | L141: 3682.1 | M141: 6.30918
A142: 132 | B142: LALPATHLAB | C142: 3133.45 | D142: 3121.08 | E142: 3022.17 | F142: 2910.88 | G142: 2811.97 | H142: 3232.37 | I142: 3331.28 | J142: 3442.57 | K142: 3220 | L142: 3009.8 | M142: 10.29986
A143: 133 | B143: DRREDDY | C143: 4689.05 | D143: 4702.08 | E143: 4648.17 | F143: 4607.28 | G143: 4553.37 | H143: 4742.97 | I143: 4796.88 | J143: 4837.77 | K143: 4756 | L143: 4661.2 | M143: 6.60635
A144: 134 | B144: EIDPARRY | C144: 328.9 | D144: 329.78 | E144: 323.72 | F144: 318.53 | G144: 312.47 | H144: 334.97 | I144: 341.03 | J144: 346.22 | K144: 335.85 | L144: 324.6 | M144: 7.34193
A145: 135 | B145: EIHOTEL | C145: 92.9 | D145: 93.25 | E145: 92.15 | F145: 91.40 | G145: 90.30 | H145: 94.00 | I145: 95.10 | J145: 95.85 | K145: 94.35 | L145: 92.5 | M145: 2.26378
A146: 136 | B146: EPL | C146: 223.15 | D146: 225.10 | E146: 220.50 | F146: 217.85 | G146: 213.25 | H146: 227.75 | I146: 232.35 | J146: 235.00 | K146: 229.7 | L146: 222.45 | M146: 2.20651
A147: 137 | B147: ESABINDIA | C147: 1828.25 | D147: 1826.07 | E147: 1802.13 | F147: 1776.02 | G147: 1752.08 | H147: 1852.18 | I147: 1876.12 | J147: 1902.23 | K147: 1850 | L147: 1799.95 | M147: 0.0929
A148: 138 | B148: EDELWEISS | C148: 68.95 | D148: 69.68 | E148: 67.77 | F148: 66.58 | G148: 64.67 | H148: 70.87 | I148: 72.78 | J148: 73.97 | K148: 71.6 | L148: 68.5 | M148: 13.48061
A149: 139 | B149: EICHERMOT | C149: 2553 | D149: 2565.33 | E149: 2535.67 | F149: 2518.33 | G149: 2488.67 | H149: 2582.67 | I149: 2612.33 | J149: 2629.67 | K149: 2595 | L149: 2548 | M149: 7.60845
A150: 140 | B150: ELGIEQUIP | C150: 204.35 | D150: 202.77 | E150: 199.58 | F150: 194.82 | G150: 191.63 | H150: 207.53 | I150: 210.72 | J150: 215.48 | K150: 205.95 | L150: 198 | M150: 0.9814
A151: 141 | B151: EMAMILTD | C151: 516.4 | D151: 513.63 | E151: 507.32 | F151: 498.23 | G151: 491.92 | H151: 522.72 | I151: 529.03 | J151: 538.12 | K151: 519.95 | L151: 504.55 | M151: 2.94747
A152: 142 | B152: ENDURANCE | C152: 1388.15 | D152: 1387.80 | E152: 1370.60 | F152: 1353.05 | G152: 1335.85 | H152: 1405.35 | I152: 1422.55 | J152: 1440.10 | K152: 1405 | L152: 1370.25 | M152: 3.3949
A153: 143 | B153: ENGINERSIN | C153: 76.45 | D153: 76.85 | E153: 75.70 | F153: 74.95 | G153: 73.80 | H153: 77.60 | I153: 78.75 | J153: 79.50 | K153: 78 | L153: 76.1 | M153: 22.4153
A154: 144 | B154: EQUITAS | C154: 82.6 | D154: 82.90 | E154: 81.90 | F154: 81.20 | G154: 80.20 | H154: 83.60 | I154: 84.60 | J154: 85.30 | K154: 83.9 | L154: 82.2 | M154: 7.06144
A155: 145 | B155: ERIS | C155: 586.75 | D155: 587.32 | E155: 581.53 | F155: 576.32 | G155: 570.53 | H155: 592.53 | I155: 598.32 | J155: 603.53 | K155: 593.1 | L155: 582.1 | M155: 0.49881
A156: 146 | B156: ESCORTS | C156: 1270.75 | D156: 1266.75 | E156: 1247.60 | F156: 1224.45 | G156: 1205.30 | H156: 1289.90 | I156: 1309.05 | J156: 1332.20 | K156: 1285.9 | L156: 1243.6 | M156: 12.85015
A157: 147 | B157: EXIDEIND | C157: 186.3 | D157: 187.13 | E157: 185.07 | F157: 183.83 | G157: 181.77 | H157: 188.37 | I157: 190.43 | J157: 191.67 | K157: 189.2 | L157: 185.9 | M157: 31.91739
A158: 148 | B158: FDC | C158: 289.8 | D158: 289.90 | E158: 285.40 | F158: 281.00 | G158: 276.50 | H158: 294.30 | I158: 298.80 | J158: 303.20 | K158: 294.4 | L158: 285.5 | M158: 1.59152
A159: 149 | B159: FEDERALBNK | C159: 77.8 | D159: 78.55 | E159: 76.75 | F159: 75.70 | G159: 73.90 | H159: 79.60 | I159: 81.40 | J159: 82.45 | K159: 80.35 | L159: 77.5 | M159: 223.33908
A160: 150 | B160: FINEORG | C160: 2421.4 | D160: 2421.80 | E160: 2394.60 | F160: 2367.80 | G160: 2340.60 | H160: 2448.60 | I160: 2475.80 | J160: 2502.60 | K160: 2449 | L160: 2395 | M160: 1.07172
A161: 151 | B161: FINCABLES | C161: 378.45 | D161: 378.95 | E161: 375.00 | F161: 371.55 | G161: 367.60 | H161: 382.40 | I161: 386.35 | J161: 389.80 | K161: 382.9 | L161: 375.5 | M161: 1.07479
A162: 152 | B162: FINPIPE | C162: 678.8 | D162: 680.62 | E162: 675.23 | F162: 671.67 | G162: 666.28 | H162: 684.18 | I162: 689.57 | J162: 693.13 | K162: 686 | L162: 677.05 | M162: 1.22662
A163: 153 | B163: FSL | C163: 120.8 | D163: 121.43 | E163: 118.97 | F163: 117.13 | G163: 114.67 | H163: 123.27 | I163: 125.73 | J163: 127.57 | K163: 123.9 | L163: 119.6 | M163: 36.57233
A164: 154 | B164: FORTIS | C164: 212.35 | D164: 215.55 | E164: 207.80 | F164: 203.25 | G164: 195.50 | H164: 220.10 | I164: 227.85 | J164: 232.40 | K164: 223.3 | L164: 211 | M164: 59.93349
A165: 155 | B165: FCONSUMER | C165: 7 | D165: 7.03 | E165: 6.87 | F165: 6.73 | G165: 6.57 | H165: 7.17 | I165: 7.33 | J165: 7.47 | K165: 7.2 | L165: 6.9 | M165: 44.80169
A166: 156 | B166: FRETAIL | C166: 50.25 | D166: 50.68 | E166: 48.72 | F166: 47.18 | G166: 45.22 | H166: 52.22 | I166: 54.18 | J166: 55.72 | K166: 52.65 | L166: 49.15 | M166: 96.25188
A167: 157 | B167: GAIL | C167: 138.55 | D167: 139.10 | E167: 137.20 | F167: 135.85 | G167: 133.95 | H167: 140.45 | I167: 142.35 | J167: 143.70 | K167: 141 | L167: 137.75 | M167: 135.93573
A168: 158 | B168: GEPIL | C168: 275.1 | D168: 276.45 | E168: 273.00 | F168: 270.90 | G168: 267.45 | H168: 278.55 | I168: 282.00 | J168: 284.10 | K168: 279.9 | L168: 274.35 | M168: 0.47903
A169: 159 | B169: GHCL | C169: 232.3 | D169: 232.27 | E169: 230.03 | F169: 227.77 | G169: 225.53 | H169: 234.53 | I169: 236.77 | J169: 239.03 | K169: 234.5 | L169: 230 | M169: 1.38885
A170: 160 | B170: GMMPFAUDLR | C170: 4308.65 | D170: 4322.98 | E170: 4272.67 | F170: 4236.68 | G170: 4186.37 | H170: 4358.97 | I170: 4409.28 | J170: 4445.27 | K170: 4373.3 | L170: 4287 | M170: 0.44292
A171: 161 | B171: GMRINFRA | C171: 24.4 | D171: 24.43 | E171: 24.12 | F171: 23.83 | G171: 23.52 | H171: 24.72 | I171: 25.03 | J171: 25.32 | K171: 24.75 | L171: 24.15 | M171: 135.39876
A172: 162 | B172: GALAXYSURF | C172: 2572.65 | D172: 2566.92 | E172: 2531.83 | F172: 2491.02 | G172: 2455.93 | H172: 2607.73 | I172: 2642.82 | J172: 2683.63 | K172: 2602 | L172: 2526.1 | M172: 0.39881
A173: 163 | B173: GRSE | C173: 186.8 | D173: 186.90 | E173: 185.40 | F173: 184.00 | G173: 182.50 | H173: 188.30 | I173: 189.80 | J173: 191.20 | K173: 188.4 | L173: 185.5 | M173: 0.78106
A174: 164 | B174: GARFIBRES | C174: 2586.05 | D174: 2587.47 | E174: 2565.18 | F174: 2544.32 | G174: 2522.03 | H174: 2608.33 | I174: 2630.62 | J174: 2651.48 | K174: 2609.75 | L174: 2566.6 | M174: 0.05336
A175: 165 | B175: GICRE | C175: 213.55 | D175: 212.62 | E175: 207.43 | F175: 201.32 | G175: 196.13 | H175: 218.73 | I175: 223.92 | J175: 230.03 | K175: 217.8 | L175: 206.5 | M175: 13.52341
A176: 166 | B176: GILLETTE | C176: 5546.05 | D176: 5578.00 | E176: 5508.05 | F176: 5470.05 | G176: 5400.10 | H176: 5616.00 | I176: 5685.95 | J176: 5723.95 | K176: 5647.95 | L176: 5540 | M176: 0.0714
A177: 167 | B177: GLAXO | C177: 1425.4 | D177: 1428.45 | E177: 1417.00 | F177: 1408.60 | G177: 1397.15 | H177: 1436.85 | I177: 1448.30 | J177: 1456.70 | K177: 1439.9 | L177: 1420.05 | M177: 0.18068
A178: 168 | B178: GLENMARK | C178: 504.9 | D178: 507.32 | E178: 497.78 | F178: 490.67 | G178: 481.13 | H178: 514.43 | I178: 523.97 | J178: 531.08 | K178: 516.85 | L178: 500.2 | M178: 25.45529
A179: 169 | B179: GODFRYPHLP | C179: 910.9 | D179: 910.12 | E179: 905.88 | F179: 900.87 | G179: 896.63 | H179: 915.13 | I179: 919.37 | J179: 924.38 | K179: 914.35 | L179: 905.1 | M179: 0.16233
A180: 170 | B180: GODREJAGRO | C180: 507 | D180: 508.67 | E180: 503.43 | F180: 499.87 | G180: 494.63 | H180: 512.23 | I180: 517.47 | J180: 521.03 | K180: 513.9 | L180: 505.1 | M180: 0.9269
A181: 171 | B181: GODREJCP | C181: 739.9 | D181: 740.18 | E181: 732.37 | F181: 724.83 | G181: 717.02 | H181: 747.72 | I181: 755.53 | J181: 763.07 | K181: 748 | L181: 732.65 | M181: 20.88453
A182: 172 | B182: GODREJIND | C182: 541.55 | D182: 541.55 | E182: 538.20 | F182: 534.85 | G182: 531.50 | H182: 544.90 | I182: 548.25 | J182: 551.60 | K182: 544.9 | L182: 538.2 | M182: 1.00877
A183: 173 | B183: GODREJPROP | C183: 1385.55 | D183: 1387.52 | E183: 1368.03 | F183: 1350.52 | G183: 1331.03 | H183: 1405.03 | I183: 1424.52 | J183: 1442.03 | K183: 1407 | L183: 1370 | M183: 6.4673
A184: 174 | B184: GRANULES | C184: 333 | D184: 333.78 | E184: 328.07 | F184: 323.13 | G184: 317.42 | H184: 338.72 | I184: 344.43 | J184: 349.37 | K184: 339.5 | L184: 328.85 | M184: 27.81791
A185: 175 | B185: GRAPHITE | C185: 693.05 | D185: 692.80 | E185: 645.60 | F185: 598.15 | G185: 550.95 | H185: 740.25 | I185: 787.45 | J185: 834.90 | K185: 740 | L185: 645.35 | M185: 133.02164
A186: 176 | B186: GRASIM | C186: 1447.8 | D186: 1448.22 | E186: 1433.13 | F186: 1418.47 | G186: 1403.38 | H186: 1462.88 | I186: 1477.97 | J186: 1492.63 | K186: 1463.3 | L186: 1433.55 | M186: 15.66826
A187: 177 | B187: GESHIP | C187: 308.85 | D187: 306.10 | E187: 300.75 | F187: 292.65 | G187: 287.30 | H187: 314.20 | I187: 319.55 | J187: 327.65 | K187: 311.45 | L187: 298 | M187: 2.49702
A188: 178 | B188: GREAVESCOT | C188: 132.8 | D188: 134.42 | E188: 129.93 | F188: 127.07 | G188: 122.58 | H188: 137.28 | I188: 141.77 | J188: 144.63 | K188: 138.9 | L188: 131.55 | M188: 14.52084
A189: 179 | B189: GRINDWELL | C189: 926.15 | D189: 931.70 | E189: 915.45 | F189: 904.75 | G189: 888.50 | H189: 942.40 | I189: 958.65 | J189: 969.35 | K189: 947.95 | L189: 921 | M189: 0.256
A190: 180 | B190: GUJALKALI | C190: 346.45 | D190: 347.90 | E190: 343.10 | F190: 339.75 | G190: 334.95 | H190: 351.25 | I190: 356.05 | J190: 359.40 | K190: 352.7 | L190: 344.55 | M190: 0.6688
A191: 181 | B191: GAEL | C191: 134.75 | D191: 133.88 | E191: 132.27 | F191: 129.78 | G191: 128.17 | H191: 136.37 | I191: 137.98 | J191: 140.47 | K191: 135.5 | L191: 131.4 | M191: 3.19783
A192: 182 | B192: FLUOROCHEM | C192: 620.65 | D192: 624.55 | E192: 614.10 | F192: 607.55 | G192: 597.10 | H192: 631.10 | I192: 641.55 | J192: 648.10 | K192: 635 | L192: 618 | M192: 0.50152
A193: 183 | B193: GUJGASLTD | C193: 549.9 | D193: 547.47 | E193: 537.43 | F193: 524.97 | G193: 514.93 | H193: 559.93 | I193: 569.97 | J193: 582.43 | K193: 557.5 | L193: 535 | M193: 10.57697
A194: 184 | B194: GMDCLTD | C194: 58.85 | D194: 59.17 | E194: 56.93 | F194: 55.02 | G194: 52.78 | H194: 61.08 | I194: 63.32 | J194: 65.23 | K194: 61.4 | L194: 57.25 | M194: 42.79598
A195: 185 | B195: GNFC | C195: 327.45 | D195: 328.98 | E195: 324.22 | F195: 320.98 | G195: 316.22 | H195: 332.22 | I195: 336.98 | J195: 340.22 | K195: 333.75 | L195: 325.75 | M195: 14.15385
A196: 186 | B196: GPPL | C196: 101.65 | D196: 102.62 | E196: 100.23 | F196: 98.82 | G196: 96.43 | H196: 104.03 | I196: 106.42 | J196: 107.83 | K196: 105 | L196: 101.2 | M196: 5.8026
A197: 187 | B197: GSFC | C197: 91.5 | D197: 91.77 | E197: 88.33 | F197: 85.17 | G197: 81.73 | H197: 94.93 | I197: 98.37 | J197: 101.53 | K197: 95.2 | L197: 88.6 | M197: 35.02899
A198: 188 | B198: GSPL | C198: 269.65 | D198: 271.73 | E198: 265.12 | F198: 260.58 | G198: 253.97 | H198: 276.27 | I198: 282.88 | J198: 287.42 | K198: 278.35 | L198: 267.2 | M198: 7.64633
A199: 189 | B199: GULFOILLUB | C199: 721.6 | D199: 725.05 | E199: 716.65 | F199: 711.70 | G199: 703.30 | H199: 730.00 | I199: 738.40 | J199: 743.35 | K199: 733.45 | L199: 720.1 | M199: 0.11047
A200: 190 | B200: HEG | C200: 2366.4 | D200: 2298.87 | E200: 2229.53 | F200: 2092.67 | G200: 2023.33 | H200: 2435.73 | I200: 2505.07 | J200: 2641.93 | K200: 2368.2 | L200: 2162 | M200: 24.49226
A201: 191 | B201: HCLTECH | C201: 1037.5 | D201: 1041.18 | E201: 1027.97 | F201: 1018.43 | G201: 1005.22 | H201: 1050.72 | I201: 1063.93 | J201: 1073.47 | K201: 1054.4 | L201: 1031.65 | M201: 48.52068
A202: 192 | B202: HDFCAMC | C202: 3005.4 | D202: 2980.08 | E202: 2918.17 | F202: 2830.93 | G202: 2769.02 | H202: 3067.32 | I202: 3129.23 | J202: 3216.47 | K202: 3042 | L202: 2892.85 | M202: 4.62533
A203: 193 | B203: HDFCBANK | C203: 1432.8 | D203: 1441.40 | E203: 1421.90 | F203: 1411.00 | G203: 1391.50 | H203: 1452.30 | I203: 1471.80 | J203: 1482.70 | K203: 1460.9 | L203: 1430.5 | M203: 88.06796
A204: 194 | B204: HDFCLIFE | C204: 701.45 | D204: 701.58 | E204: 697.17 | F204: 692.88 | G204: 688.47 | H204: 705.87 | I204: 710.28 | J204: 714.57 | K204: 706 | L204: 697.3 | M204: 18.17393
A205: 195 | B205: HFCL | C205: 25.6 | D205: 25.72 | E205: 25.33 | F205: 25.07 | G205: 24.68 | H205: 25.98 | I205: 26.37 | J205: 26.63 | K205: 26.1 | L205: 25.45 | M205: 41.96387
A206: 196 | B206: HATHWAY | C206: 23.8 | D206: 23.97 | E206: 23.43 | F206: 23.07 | G206: 22.53 | H206: 24.33 | I206: 24.87 | J206: 25.23 | K206: 24.5 | L206: 23.6 | M206: 9.07279
... 321 more rows

Sheet Bulk Deals
E6: Back To Main Page
A7: Subject : | B7: BULK DEAL | D7: =Main!B10 -> 2021-04-09
A9: Date | B9: Scrip code | C9: Scrip Name | D9: Client Name | E9: Buy / Sell | F9: Quantity Traded | G9: Trade Price / Wt.Avg.trade price | H9: Exchange
A10: 2021-04-08 | B10: 540829 | C10: CHANDRIMA | D10: AMARUDDINANSARI | E10: BUY | F10: 11,821 | G10: 3.42 | H10: BSE
A11: 2021-04-08 | B11: 541627 | C11: HITECHWIND | D11: HEMLATABEN MAHAVIRBHAI TIWARI | E11: BUY | F11: 31,500 | G11: 5.99 | H11: BSE
A12: 2021-04-08 | B12: 541627 | C12: HITECHWIND | D12: GOENKA BUSINESS & FINANCE LIMITED | E12: SELL | F12: 60,035 | G12: 6 | H12: BSE
A13: 2021-04-08 | B13: 539767 | C13: MNIL | D13: NISHIL SURENDRABHAI MARFATIA | E13: SELL | F13: 46,793 | G13: 7.24 | H13: BSE
A14: 2021-04-08 | B14: 539767 | C14: MNIL | D14: DEEPAK KUMAR | E14: BUY | F14: 54,727 | G14: 7.27 | H14: BSE
A15: 2021-04-08 | B15: 539767 | C15: MNIL | D15: DEEPAK KUMAR | E15: SELL | F15: 23,000 | G15: 7.23 | H15: BSE
A16: 2021-04-08 | B16: 539767 | C16: MNIL | D16: SITA RAM | E16: BUY | F16: 23,000 | G16: 7.23 | H16: BSE
A17: 2021-04-08 | B17: 538836 | C17: MONTECARLO | D17: VIKAS VIJAYKUMAR KHEMANI | E17: BUY | F17: 250,000 | G17: 225.05 | H17: BSE
A18: 2021-04-08 | B18: 538836 | C18: MONTECARLO | D18: KANCHI INVESTMENTS LIMITED | E18: SELL | F18: 489,384 | G18: 225.02 | H18: BSE
A19: 2021-04-08 | B19: 539273 | C19: PECOS | D19: MANTHAN BHAVESH SANGHAVI | E19: BUY | F19: 11,000 | G19: 17.17 | H19: BSE
A20: 2021-04-08 | B20: 539273 | C20: PECOS | D20: MANTHAN BHAVESH SANGHAVI | E20: SELL | F20: 1,000 | G20: 19 | H20: BSE
A21: 2021-04-08 | B21: 539273 | C21: PECOS | D21: GAURANG PARMANAND SHAH | E21: SELL | F21: 20,000 | G21: 17.2 | H21: BSE
A22: 2021-04-08 | B22: 540027 | C22: PTIL | D22: ESAAR INDIA LIMITED | E22: BUY | F22: 57,732 | G22: 345 | H22: BSE
A23: 2021-04-08 | B23: 540175 | C23: REGENCY | D23: AMANDEEP SINGH | E23: BUY | F23: 24,080 | G23: 10.83 | H23: BSE
A24: 2021-04-08 | B24: 540175 | C24: REGENCY | D24: KAMLESH | E24: BUY | F24: 35,800 | G24: 10.75 | H24: BSE
A25: 2021-04-08 | B25: 540175 | C25: REGENCY | D25: PRABHA GOSWAMI | E25: BUY | F25: 25,580 | G25: 10.75 | H25: BSE
A26: 2021-04-08 | B26: 540175 | C26: REGENCY | D26: KUMAR EXPORTS | E26: SELL | F26: 98,264 | G26: 10.8 | H26: BSE
A27: 2021-04-08 | B27: 532092 | C27: SAGARPROD | D27: SANDEEP PRAMOD SHAH (HUF) | E27: BUY | F27: 510,000 | G27: 5.55 | H27: BSE
A28: 2021-04-08 | B28: 534618 | C28: SAREL | D28: TAIB SECURITIES INDIA LTD | E28: SELL | F28: 148,176 | G28: 49.68 | H28: BSE
A29: 2021-04-08 | B29: 534618 | C29: SAREL | D29: ALPHA LEON ENTERPRISES LLP | E29: BUY | F29: 120,210 | G29: 45.31 | H29: BSE
A30: 2021-04-08 | B30: 540259 | C30: SHANGAR | D30: OLGA TRADING PRIVATE LIMITED | E30: BUY | F30: 68,195 | G30: 13.82 | H30: BSE
A31: 2021-04-08 | B31: 540259 | C31: SHANGAR | D31: OLGA TRADING PRIVATE LIMITED | E31: SELL | F31: 61,334 | G31: 14 | H31: BSE
A32: 2021-04-08 | B32: 539026 | C32: SSPNFIN | D32: SHIVA KUMAR | E32: BUY | F32: 36,000 | G32: 13.78 | H32: BSE
A33: 2021-04-08 | B33: 539026 | C33: SSPNFIN | D33: SUBASH RAMASHISH MISHRA | E33: SELL | F33: 96,000 | G33: 14.05 | H33: BSE
A34: 2021-04-08 | B34: 539026 | C34: SSPNFIN | D34: DEVJEET CHAKRABORTY | E34: BUY | F34: 52,000 | G34: 14.32 | H34: BSE
A35: 2021-04-08 | B35: 539026 | C35: SSPNFIN | D35: DEVJEET CHAKRABORTY | E35: SELL | F35: 12,000 | G35: 14.15 | H35: BSE
A36: 2021-04-08 | B36: 540570 | C36: VARIMAN | D36: P VIJAYALAKSHMI . | E36: BUY | F36: 150,000 | G36: 29.69 | H36: BSE
A37: 2021-04-08 | B37: 539222 | C37: VMV | D37: ESPS FINSERVE PRIVATE LIMITED | E37: SELL | F37: 50,000 | G37: 9.81 | H37: BSE
A38: 2021-04-08 | B38: 539222 | C38: VMV | D38: DEVJEET CHAKRABORTY | E38: BUY | F38: 52,500 | G38: 9.83 | H38: BSE
A39: 2021-04-08 | B39: 539222 | C39: VMV | D39: DEVJEET CHAKRABORTY | E39: SELL | F39: 5,000 | G39: 10.3 | H39: BSE
A40: 2021-04-08 | B40: APOLLOPIPE | C40: Apollo Pipes Limited | D40: SAGEONE INVESTMENT ADVISORSLLP SAGEONEPMS STRATEGY | E40: BUY | F40: 70,151 | G40: 995.1 | H40: NSE
A41: 2021-04-08 | B41: JUSTDIAL | C41: Justdial Ltd. | D41: GRAVITON RESEARCH CAPITAL LLP | E41: BUY | F41: 456,329 | G41: 957.06 | H41: NSE
A42: 2021-04-08 | B42: KEERTI | C42: Keerti Know & Skill Ltd. | D42: OLGA TRADING PRIVATE LIMITED | E42: BUY | F42: 77,144 | G42: 24.92 | H42: NSE
A43: 2021-04-08 | B43: SANWARIA | C43: Sanwaria Consumer Ltd. | D43: MAHESH CHAND MITTAL | E43: BUY | F43: 4,243,382 | G43: 0.76 | H43: NSE
A44: 2021-04-08 | B44: A2ZINFRA | C44: A2z Infra Engineering Ltd | D44: SHANKAR SHARMA | E44: SELL | F44: 1,213,091 | G44: 4.35 | H44: NSE
A45: 2021-04-08 | B45: ALKALI | C45: Alkali Metals Limited | D45: NIRMAL VAGHJI CHAVDA | E45: SELL | F45: 52,148 | G45: 56 | H45: NSE
A46: 2021-04-08 | B46: IBULHSGFIN | C46: Indiabulls Hsg Fin Ltd | D46: MARKET ACCESS III-AUBREY GLOBAL EMERGING MARKETS OPPORTUNITIES FUND | E46: SELL | F46: 3,080,000 | G46: 192.7 | H46: NSE
A47: 2021-04-08 | B47: IGRID-RE | C47: INDIA GRID RE | D47: RELIANCE NIPPON LIFE INSURANCE COMPANY LIMITED | E47: SELL | F47: 699,111 | G47: 13.51 | H47: NSE
A48: 2021-04-08 | B48: JUMPNET | C48: Jump Networks Limited | D48: OLGA TRADING PRIVATE LIMITED | E48: SELL | F48: 865,000 | G48: 10.05 | H48: NSE
A49: 2021-04-08 | B49: JUMPNET | C49: Jump Networks Limited | D49: PADMAVATI INVESTMENT | E49: SELL | F49: 600,000 | G49: 10.05 | H49: NSE
A50: 2021-04-08 | B50: JUSTDIAL | C50: Justdial Ltd. | D50: GRAVITON RESEARCH CAPITAL LLP | E50: SELL | F50: 456,329 | G50: 958.03 | H50: NSE
A51: 2021-04-08 | B51: KEERTI | C51: Keerti Know & Skill Ltd. | D51: OLGA TRADING PRIVATE LIMITED | E51: SELL | F51: 64,920 | G51: 24.73 | H51: NSE
A52: 2021-04-08 | B52: ROLTA | C52: Rolta India Ltd. | D52: LIFE INSURANCE CORPORATION OF INDIA | E52: SELL | F52: 1,136,454 | G52: 3.69 | H52: NSE
A53: 2021-04-08 | B53: SANWARIA | C53: Sanwaria Consumer Ltd. | D53: ARJUN SOLAR ONE PRIVATE LIMITED | E53: SELL | F53: 6,042,077 | G53: 0.74 | H53: NSE
A54: 2021-04-08 | B54: THANGAMAYL | C54: Thangamayil Jewellery Ltd | D54: LUXMI TOWNSHIP LIMITED | E54: SELL | F54: 122,234 | G54: 600 | H54: NSE

Sheet Call Tracker (Equity & F&O)
M5: Back To Main Page
A6: Retail Research Technical Calls & Fundamental Performance Report for the month of April-2021
M7: =Main!B10 -> 2021-04-09
B8: Positional Call
A9: Sr.no | B9: Date | D9: Company | E9: Rec | F9: Rec Price | G9: Stop Loss*** | H9: Call Closed At | I9: Target | J9: Remark | K9: Profit / Loss per Share | L9: All charges | M9: Net Gain / Loss % | N9: Status | O9: Closed Date
A10: 1 | B10: 2021-02-26 | D10: IOC | E10: Buy<> | F10: 95.5 | G10: 88.5 | H10: 100 | I10: 107-112 | J10: Part Profit of Rs.4.50/- | K10: =H10-F10 -> 4.5 | L10: =(F10*-0.8)/100 -> -0.76 | M10: =(K10+L10)/F10 -> 3.91% | N10: Successful | O10: 2021-03-02 | R10: N
A11: 2 | B11: 2021-03-18 | D11: IRCTC | E11: Buy | F11: 1785 | G11: 1670 | H11: =(1872.5+1775)/2 -> 1,823.75 | I11: 2000 | J11: Profit of Rs.38.75/- | K11: =H11-F11 -> 38.75 | L11: =(F11*-0.8)/100 -> -14.28 | M11: 1.37% | N11: Successful | O11: 2021-04-01 | R11: H
A12: 3 | B12: 2021-03-19 | D12: HDFCAMC | E12: Buy | F12: 2850 | G12: 2650 | H12: 3,025.00 | I12: 3050-3250 | J12: Profit of Rs.175/- | K12: 175 | L12: -22.80 | M12: 5.34% | N12: Successful | O12: 2021-04-08 | R12: N
A13: 4 | B13: 2021-03-19 | D13: SRF | E13: Buy | F13: 5275 | G13: 4950 | H13: 5,725.00 | I13: 5700-5800 | J13: Profit of Rs.450/- | K13: =H13-F13 -> 450 | L13: =(F13*-0.8)/100 -> -42.20 | M13: =(K13+L13)/F13 -> 7.73% | N13: Successful | O13: 2021-04-01 | R13: N
A14: 5 | B14: 2021-03-22 | D14: RELIANCE | E14: Buy | F14: 2040-2060 | G14: 1940 | I14: 2300-2400 | J14: Open | R14: H
A15: 6 | B15: 2021-03-22 | D15: IGL | E15: Buy | F15: 507 | G15: 478 | H15: 527.5 | I15: 545-564 | J15: Part Profit of Rs.20.50/- | K15: =H15-F15 -> 20.5 | L15: =(F15*-0.8)/100 -> -4.06 | M15: =(K15+L15)/F15 -> 3.24% | N15: Successful | O15: 2021-04-01 | R15: H
A16: 7 | B16: 2021-03-26 | D16: PIDILITIND | E16: Buy | F16: 1785 | G16: 1675 | H16: 1895 | I16: 2000-2050 | J16: Profit of Rs.110/- | K16: =H16-F16 -> 110 | L16: =(F16*-0.8)/100 -> -14.28 | M16: =(K16+L16)/F16 -> 5.36% | N16: Successful | O16: 2021-04-07 | R16: N
A17: 8 | B17: 2021-03-30 | D17: SUDARSCHEM | E17: Buy | F17: 516 | G17: 477 | H17: 547.5 | I17: 560-580 | J17: Profit of Rs.31.5/- | K17: 31.5 | L17: -4.13 | M17: 5.30% | N17: Successful | O17: 2021-04-07 | R17: H
A18: 9 | B18: 2021-04-01 | D18: ESCORTS | E18: Buy | F18: 1265-1275 | G18: 1195 | I18: 1400-1450 | J18: Open | R18: N
A19: 10 | B19: 2021-04-05 | D19: HDFCBANK | E19: Buy | F19: 1465-1475 | G19: 1370 | I19: 1600-1700 | J19: Open | R19: H
A20: 11 | B20: 2021-04-05 | D20: EXIDEIND | E20: Buy | F20: 181-183 | G20: 174 | I20: 195-200 | J20: Open | R20: H
A21: 12 | B21: 2021-04-07 | D21: ICICIBANK | E21: Buy | F21: 567-571 | G21: 534 | I21: 620-640 | J21: Open | R21: H
A26: CLBS = Closing Basis ***
A27: Dividend adjusted <> | F27: Reinitiated $
A28: Part book {} | F28: Revised stoploss #
B30: Momentum Call
A31: Sr.no | B31: Date | D31: Company | E31: Rec | F31: Rec Price | G31: Stop Loss | H31: Call Closed At | I31: Target | J31: Remark | K31: Profit / Loss per Share/Lot | L31: All charges | M31: Net Gain / Loss % | N31: Status | O31: Closed Date
A32: 1 | B32: 2021-03-22 | D32: HDFCLIFE | E32: Buy | F32: 688.5 | G32: 668 | H32: 703 | I32: 715-725 | J32: Profit of Rs.14.5/- | K32: =H32-F32 -> 14.5 | L32: =(F32*-0.7)/100 -> -4.82 | M32: =(K32+L32)/F32 -> 1.41% | N32: Successful | O32: 2021-04-07 | R32: H
A33: 2 | B33: 2021-03-30 | D33: DHANUKA | E33: Buy | F33: 681 | G33: 660 | H33: 702.5 | I33: 710-720 | J33: Profit of Rs.21.5/- | K33: =H33-F33 -> 21.5 | L33: =(F33*-0.7)/100 -> -4.77 | M33: =(K33+L33)/F33 -> 2.46% | N33: Successful | O33: 2021-04-01 | R33: H
A34: 3 | B34: 2021-03-31 | D34: DIVISLAB | E34: Buy | F34: 3685 | G34: 3490 | H34: 3775 | I34: 3750-3800 | J34: Profit of Rs.90/- | K34: =H34-F34 -> 90 | L34: =(F34*-0.7)/100 -> -25.80 | M34: =(K34+L34)/F34 -> 1.74% | N34: Successful | O34: 2021-04-05 | R34: H
A35: 4 | B35: 2021-03-31 | D35: CSBBANK | E35: Buy | F35: 234.5 | G35: 228 | H35: 241 | I35: 245-250 | J35: Profit of Rs.6.5/- | K35: 6.5 | L35: =(F35*-0.7)/100 -> -1.64 | M35: 2.07% | N35: Successful | O35: 2021-04-06 | R35: H
A36: 5 | B36: 2021-04-05 | D36: KOTAKBANK | E36: Buy | F36: 1780-1785 | G36: 1730 | I36: 1880 | J36: Open | R36: H
A37: 6 | B37: 2021-04-05 | D37: CUMMINSIND | E37: Buy | F37: 884-886 | G37: 855 | I37: 930-940 | J37: Open | R37: N
A38: 7 | B38: 2021-04-05 | D38: GUJGASLTD | E38: Buy | F38: 547-549 | G38: 530 | I38: 585-590 | J38: Open | R38: N
A39: 8 | B39: 2021-04-06 | D39: TVSMOTOR | E39: Sell | F39: 590 | G39: 608 | H39: 580.5 | I39: 560 | J39: Profit of Rs.9.5/- | K39: =F39-H39 -> 9.5 | L39: =(F39*-0.07)/100 -> -0.41 | M39: =(K39+L39)/F39 -> 1.54% | N39: Successful | O39: 2021-04-06 | R39: N
A40: 9 | B40: 2021-04-07 | D40: WIPRO | E40: Buy | F40: 425 | G40: 412 | H40: 435.5 | I40: 440-450 | J40: Profit of Rs.10.5/- | K40: =H40-F40 -> 10.5 | L40: =(F40*-0.07)/100 -> -0.30 | M40: 2.40% | N40: Successful | O40: 2021-04-07 | R40: H
A41: 10 | B41: 2021-04-07 | D41: GLENMARK | E41: Buy | F41: 501 | G41: 486 | H41: 515 | I41: 524-530 | J41: Profit of Rs.14/- | K41: 14 | L41: =(F41*-0.7)/100 -> -3.51 | M41: 2.09% | N41: Successful | O41: 2021-04-08 | R41: H
A42: 11 | B42: 2021-04-08 | D42: LTI | E42: Buy | F42: 4310-4330 | G42: 4190 | I42: 4500 -4550 | J42: Open
A47: CLBS = Closing Basis *** | H47: *
A48: Dividend adjusted <> | F48: Reinitiated $
F49: Revised stoploss #
A51: Master Trade High Risk
A52: Sr.no | B52: Date | D52: Company | E52: Rec | F52: Rec Price | G52: Stop Loss | H52: Call Closed At | I52: Target | J52: Remark | K52: Profit / Loss per share | L52: All charges | M52: Gain / Loss per Lot | N52: Lot | O52: Status | P52: Closed Date
A53: 1 | B53: 2021-04-01 | D53: PIIND APRIL FUT | E53: Buy | F53: 2250 | G53: 2198 | H53: 2295 | I53: 2350-2370 | J53: Profit of Rs.45/- | K53: =H53-F53 -> 45 | L53: =(H53*N53)*0.035% -> 200.81 | M53: =(K53*N53)-L53 -> 11049.2 | N53: 250 | O53: Successful | P53: 2021-04-06 | R53: H
A54: 2 | B54: 2021-04-01 | D54: BHARTIARTL APRIL FUT | E54: Buy | F54: 524.5 | G54: 517 | H54: 527 | I54: 535-540 | J54: Profit of Rs.2.5/- | K54: =H54-F54 -> 2.5 | L54: =(H54*N54)*0.035% -> 341.42 | M54: =(K54*N54)-L54 -> 4286.1 | N54: 1851 | O54: Successful | P54: 2021-04-05 | R54: H
A55: 3 | B55: 2021-04-07 | D55: AARTIIND APRIL FUT | E55: Buy | F55: 1352 | G55: 1320 | H55: 1383.5 | I55: 1400-1410 | J55: Profit of Rs.31.5/- | K55: =H55-F55 -> 31.5 | L55: =(H55*N55)*0.035% -> 193.69 | M55: =(K55*N55)-L55 -> 12406.3 | N55: 400 | O55: Successful | P55: 2021-04-07 | R55: N
A56: 4 | B56: 2021-04-07 | D56: TCS APRIL FUT | E56: Buy | F56: 3292.5 | G56: 3245 | H56: 3321 | I56: 3380-3390 | J56: Profit of Rs.28.5/- | K56: =H56-F56 -> 28.5 | L56: =(H56*N56)*0.035% -> 348.71 | M56: =(K56*N56)-L56 -> 8201.3 | N56: 300 | O56: Successful | P56: 2021-04-08 | R56: N
A57: 5 | B57: 2021-04-07 | D57: HEROMOTOCO APRIL FUT | E57: Buy | F57: 2940-2946 | G57: 2870 | I57: 3100 | J57: Open | R57: H
D58: HEROMOTOCO APR 3050 CE | E58: Sell | F58: 47-50 | R58: H
A59: 6 | B59: 2021-04-07 | D59: HCLTECH APR FUT | E59: Buy | F59: 1046-1050 | G59: 1018 | I59: 1100 | J59: Open | R59: H
D60: HCLTECH APR 1090 CE | E60: Sell | F60: 20-22 | R60: H
A61: 7 | B61: 2021-04-08 | D61: TECHM APR FUT | E61: Buy | F61: 1049 | G61: 1018 | H61: 1034 | I61: 1100 | J61: Loss of Rs.10/- | K61: -15.00 | L61: =(H61*N61)*0.035% -> 434.28 | M61: -12000 | N61: 1200 | O61: Unsuccessful | P61: 2021-04-08
D62: TECHM APR 1100 CE | E62: Sell | F62: 21 | H62: 16 | K62: 5.00 | L62: 100.00
A68: Master Trade Medium Risk
A69: Sr.no | B69: Date | D69: Company | E69: Rec | F69: Rec Price | G69: Stop Loss | H69: Call Closed At | I69: Target | J69: Remark | K69: Profit/ Loss per lot | L69: All charges | M69: Gain / Loss per Lot | N69: Lot | O69: Status | P69: Closed Date
A70: 1 | B70: 2021-04-01 | D70: NIFTY 14600 PE 08-APR | E70: Buy | F70: 94 | G70: 58 | H70: 58 | I70: 150-170 | J70: Loss of Rs.36/- | K70: =H70-F70 -> -36 | L70: 100 | M70: =(K70*N70)-L70 -> -2800.0 | N70: 75 | O70: Unsuccessful | P70: 2021-04-01 | R70: H
A71: 2 | B71: 2021-04-01 | D71: BANKNIFTY 32900 PE 08-APR | E71: Buy | F71: 295 | G71: 95 | H71: 395 | I71: 600 | J71: Profit of Rs.100/- | K71: =H71-F71 -> 100 | L71: 100 | M71: =(K71*N71)-L71 -> 2400.0 | N71: 25 | O71: Successful | P71: 2021-04-05 | R71: H
A72: 3 | B72: 2021-04-05 | D72: NIFTY 14800 CE 08-APR | E72: Buy | F72: 62.5 | G72: 30 | H72: 77.5 | I72: 140 | J72: Profit of Rs.15/- | K72: =H72-F72 -> 15 | L72: 100 | M72: =(K72*N72)-L72 -> 1025.0 | N72: 75 | O72: Successful | P72: 2021-04-06 | R72: N
A73: 4 | B73: 2021-04-06 | D73: NIFTY 14600 PE 08-APR | E73: Buy | F73: 72 | G73: 30 | H73: 89 | I73: 140 | J73: Profit of Rs.17/- | K73: =H73-F73 -> 17 | L73: 100 | M73: =(K73*N73)-L73 -> 1175.0 | N73: 75 | O73: Successful | P73: 2021-04-06 | R73: N
A74: 5 | B74: 2021-04-06 | D74: BPCL 420 PE APR | E74: Buy | F74: 8.15 | G74: 5 | H74: 9.2 | I74: 14 | J74: Profit of Rs.1.05/- | K74: 1.05 | L74: 100 | M74: 1790.0 | N74: 1800 | O74: Successful | P74: 2021-04-06 | R74: N
A75: 6 | B75: 2021-04-06 | D75: NIFTY 14600 PE 08-APR | E75: Buy | F75: 65 | G75: 28 | H75: 82 | I75: 140 | J75: Profit of Rs.17/- | K75: 17 | L75: 100 | M75: 1175.0 | N75: 75 | O75: Successful | P75: 2021-04-06 | R75: N
A76: 7 | B76: 2021-04-06 | D76: NIFTY 14700 CE 08-APR | E76: Buy | F76: 85 | G76: 40 | H76: 100 | I76: 140-150 | J76: Profit of Rs.15/- | K76: 15 | L76: 100 | M76: 1025.0 | N76: 75 | O76: Successful | P76: 2021-04-06 | R76: N
A77: 8 | B77: 2021-04-07 | D77: NIFTY 14700 PE 08-APR | E77: Buy | F77: 72 | G77: 30 | H77: 30 | I77: 140-150 | J77: Loss of Rs.42/- | K77: =H77-F77 -> -42 | L77: 100 | M77: -3250.0 | N77: 75 | O77: Unsuccessful | P77: 2021-04-07 | R77: N
A78: 9 | B78: 2021-04-07 | D78: BANKNIFTY 32600 PE 08-APR | E78: Buy | F78: 330 | G78: 70 | H78: 390 | I78: 600 | J78: Profit of Rs.60/- | K78: =H78-F78 -> 60 | L78: 100 | M78: 1400.0 | N78: 25 | O78: Successful | P78: 2021-04-07 | R78: H
A79: 10 | B79: 2021-04-07 | D79: BANKNIFTY 32600 PE 08-APR | E79: Buy | F79: 330 | G79: 70 | H79: 130 | I79: 600 | J79: Loss of Rs.200/- | K79: =H79-F79 -> -200 | L79: 100 | M79: =(K79*N79)-L79 -> -5100.0 | N79: 25 | O79: Successful | P79: 2021-04-07 | R79: H
A80: 11 | B80: 2021-04-07 | D80: BPCL 420 PE APR | E80: Buy | F80: 7.15 | G80: 4 | H80: 8.15 | I80: 12 | J80: Profit of Rs.1.0/- | K80: =H80-F80 -> 1 | L80: 100 | M80: 1700.0 | N80: 1800 | O80: Successful | P80: 2021-04-08 | R80: N
A81: 12 | B81: 2021-04-08 | D81: NIFTY 14900 PE 08-APR | E81: Buy | F81: 28 | H81: 44 | I81: 70 | J81: Profit of Rs.16/- | K81: 16 | L81: 100 | M81: 1100.0 | N81: 75 | O81: Successful | P81: 2021-04-08
A82: 13 | B82: 2021-04-08 | D82: NIFTY 14900 PE 08-APR | E82: Buy | F82: 17 | H82: 33 | I82: 50 | J82: Profit of Rs.16/- | K82: 16 | L82: 100 | M82: =(K82*N82)-L82 -> 1100.0 | N82: 75 | O82: Successful | P82: 2021-04-08
A83: 14 | B83: 2021-04-08 | D83: ZEEL 210 CE APR | E83: Buy | F83: 7-7.20 | G83: 5.5 | I83: 9.0-10 | J83: Open
A90: Techno -Funda (positional)
A91: Sr.no | B91: Date | D91: Company | E91: Rec | F91: Rec Price | G91: Stop Loss*** | H91: Call Closed At | I91: Target | J91: Remark | K91: Profit / Loss per Share/Lot | L91: All charges | M91: Net Gain / Loss % | N91: Status | O91: Closed Date
A92: 1 | B92: 2021-01-07 | D92: SIS | E92: Buy<> | F92: 422 | G92: 385 | H92: 455 | I92: 500-520 | J92: Part profit of Rs.33/- | K92: =H92-F92 -> 33 | L92: =(F92*-0.8)/100 -> -3.38 | M92: =(K92+L92)/F92 -> 7.02% | N92: Successful | O92: 2021-02-16 | R92: H
A93: 2 | B93: 2021-02-11 | D93: MCX | E93: Buy | F93: 1515 | G93: 1390 | H93: 1595 | I93: 1800-1850 | J93: Part profit of Rs.80/- | K93: =H93-F93 -> 80 | L93: =(F93*-0.8)/100 -> -12.12 | M93: =(K93+L93)/F93 -> 4.48% | N93: Successful | O93: 2021-03-16 | R93: H
A94: 3 | B94: 2021-03-19 | D94: GMMPFAUDLR | E94: Buy | F94: 4070 | G94: 3750 | H94: 4530 | I94: 4800 | J94: Profit of Rs.460/- | K94: =H94-F94 -> 460 | L94: =(F94*-0.8)/100 -> -32.56 | M94: =(K94+L94)/F94 -> 10.50% | N94: Successful | O94: 2021-04-01 | R94: H
A97: CLBS = Closing Basis *** | F97: Reinitiated $
A98: Dividend adjusted <> | F98: Revised stoploss #
B100: Intrday Call
A101: Sr.no | B101: Date | D101: Company | E101: Rec | F101: Rec Price | G101: Stop Loss | H101: Call Closed At | I101: Target | J101: Remark | K101: Profit / Loss per Share/Lot | L101: Gain / Loss per Lot | M101: Lot | N101: All charges | O101: Net Gain / Loss % | P101: Status | Q101: Closed Date
B114: Investment Idea
A115: Sr.no | B115: Date | D115: Company | E115: Rec | F115: Rec Price | G115: Point of Review | H115: Close Rate | I115: Target | J115: Remark | K115: Profit / Loss per Share | L115: Gain / Loss % | M115: Status | N115: Closed Date
A116: 1 | B116: 2013-11-01 | D116: L&T Finance Holding | E116: Accu | F116: 82.00 | G116: - | H116: 100 | I116: 100.00 | J116: Target Achieved | K116: =H116-F116 -> 18.00 | L116: =K116/F116 -> 21.95% | M116: Successful | N116: 2016-10-14
A117: 2 | B117: 2014-06-04 | D117: Finolex Inds | E117: Buy | F117: 257.00 | G117: - | H117: 300 | I117: 300.00 | J117: Target Achieved | K117: 43.00 | L117: 16.73% | M117: Successful | N117: 2014-07-02
A118: 3 | B118: 2014-07-08 | D118: JK Cement | E118: Buy | F118: 393.00 | G118: - | H118: 468 | I118: 468.00 | J118: Target Achieved | K118: 75.00 | L118: 19.08% | M118: Successful | N118: 2014-08-12
A119: 4 | B119: 2014-08-06 | D119: Finolex Cables | E119: Buy | F119: 205.00 | G119: - | H119: 275 | I119: 250.00 | J119: Target Achieved | K119: 70.00 | L119: 34.15% | M119: Successful | N119: 2014-11-19
A120: 5 | B120: 2014-09-04 | D120: Exide Inds | E120: Buy | F120: 162.00 | G120: - | H120: 190 | I120: 190.00 | J120: Target Achieved | K120: 28.00 | L120: 17.28% | M120: Successful | N120: 2015-01-02
A121: 6 | B121: 2014-09-04 | D121: Deepak Nitrite | E121: Buy | F121: 75.00 | G121: - | H121: 91.5 | I121: 95-100 | J121: Profit of Rs.16.50/- | K121: 16.50 | L121: 22.00% | M121: Successful | N121: 2014-11-11
A122: 7 | B122: 2014-10-01 | D122: Mercks | E122: Buy | F122: 850.00 | G122: - | H122: 982.5 | I122: 1050.00 | J122: Profit of Rs.132.50/- | K122: 132.50 | L122: 15.59% | M122: Successful | N122: 2015-02-04
A123: 8 | B123: 2014-10-01 | D123: Grindwell Norton | E123: Buy | F123: 475.00 | G123: - | H123: 515 | I123: 600.00 | J123: Profit of Rs.40/- | K123: 40.00 | L123: 8.42% | M123: Successful | N123: 2014-10-27
A124: 9 | B124: 2014-10-01 | D124: Snowman Logistics | E124: Buy | F124: 86.00 | G124: - | H124: 99 | I124: 140.00 | J124: Profit of Rs.13.00/- | K124: 13.00 | L124: 15.12% | M124: Successful | N124: 2014-10-27
A125: 10 | B125: 2014-10-14 | D125: Birla Corp | E125: Buy | F125: 496.60 | G125: - | H125: 621 | I125: 580.00 | J125: Target Achieved | K125: 124.40 | L125: 25.05% | M125: Successful | N125: 2016-08-23
A126: 11 | B126: 2014-10-14 | D126: Ultratech Cem | E126: Buy | F126: 2481.90 | G126: - | H126: 2840 | I126: 2870.00 | J126: Profit of Rs.358.10/- | K126: 358.10 | L126: 14.43% | M126: Successful | N126: 2015-01-13
A127: 12 | B127: 2014-10-16 | D127: Sintex Inds | E127: Buy | F127: 84.50 | G127: - | H127: 93 | I127: 110.00 | J127: Profit of Rs.8.50/- | K127: 8.50 | L127: 10.06% | M127: Successful | N127: 2014-10-27
A128: 13 | B128: 2014-10-16 | D128: HSIL | E128: Buy | F128: 401.00 | G128: - | H128: 428 | I128: 450.00 | J128: Profit of Rs.27.00/- | K128: 27.00 | L128: 6.73% | M128: Successful | N128: 2015-01-16
A129: 14 | B129: 2014-10-16 | D129: Eveready Inds | E129: Buy | F129: 101.00 | G129: - | H129: 112 | I129: 120.00 | J129: Profit of Rs.11.00/- | K129: 11.00 | L129: 10.89% | M129: Successful | N129: 2014-10-27
A130: 15 | B130: 2014-11-11 | D130: Pennar Inds | E130: Buy | F130: 59.00 | G130: - | H130: 76 | I130: 76.00 | J130: Target Achieved | K130: 17.00 | L130: 28.81% | M130: Successful | N130: 2017-10-24
A131: 16 | B131: 2014-11-11 | D131: Snowman Logistics | E131: Buy | F131: 99.00 | G131: - | H131: 120 | I131: 120.00 | J131: Profit of Rs.21/- | K131: 21.00 | L131: 21.21% | M131: Successful | N131: 2014-11-17
A132: 17 | B132: 2014-11-13 | D132: Dharamsi Morarji Chem | E132: Buy | F132: 22.00 | G132: - | H132: 33.55 | I132: 32.00 | J132: Profit of Rs 11.55/- | K132: 11.55 | L132: 52.50% | M132: Successful | N132: 2015-07-03
A133: 18 | B133: 2014-12-03 | D133: Tatachem | E133: Buy | F133: 440.00 | G133: - | H133: 520 | I133: 520.00 | J133: Profit of Rs 80.00/- | K133: 80.00 | L133: 18.18% | M133: Successful | N133: 2015-07-23
A134: 19 | B134: 2014-12-03 | D134: Advanta | E134: Buy | F134: 360.00 | G134: - | H134: 427 | I134: 425.00 | J134: Profit of Rs.67.00/- | K134: 67.00 | L134: 18.61% | M134: Successful | N134: 2015-02-23
A135: 20 | B135: 2015-01-08 | D135: GDL | E135: Buy | F135: 360.00 | G135: - | H135: 455 | I135: 420.00 | J135: Profit of Rs.95.00/- | K135: 95.00 | L135: 26.39% | M135: Successful | N135: 2015-01-20
A136: 21 | B136: 2015-01-08 | D136: NRB Bearing | E136: Buy | F136: 130.00 | H136: 175.5 | I136: 165.00 | J136: Profit of Rs 45.50/- | K136: 45.50 | L136: 35.00% | M136: Successful | N136: 2017-12-19
A137: 22 | B137: 2015-02-05 | D137: GSFC | E137: Accu | F137: 98.00 | H137: 120 | I137: 120.00 | J137: Target Achieved | K137: 22.00 | L137: 22.45% | M137: Successful | N137: 2017-01-18
A138: 23 | B138: 2015-02-05 | D138: Sundrmfast | E138: Accu | F138: 196.00 | H138: 262 | I138: 255.00 | J138: Target Achieved | K138: 66.00 | L138: 33.67% | M138: Successful | N138: 2016-08-17
A139: 24 | B139: 2015-03-04 | D139: GPPL | E139: Accu | F139: 235 | H139: 77.00 | I139: 280-285 | J139: Loss of Rs.158/- | K139: -158.00 | L139: -67.23% | M139: Unsuccessful | N139: 2019-02-26
A140: 25 | B140: 2015-03-04 | D140: ORIENTCEM | E140: Accu | F140: 185.00 | H140: 224 | I140: 220-225 | J140: Target Achieved | K140: 39.00 | L140: 21.08% | M140: Successful | N140: 2016-10-04
A141: 26 | B141: 2015-03-27 | D141: PFS | E141: Accu | F141: 49.5 | H141: 15.85 | I141: 67.00 | J141: Loss of Rs.33.65/- | K141: -33.65 | L141: -68% | M141: Unsuccessful | N141: 2019-06-11
A142: 27 | B142: 2015-03-30 | D142: Walchandnagar Ind Ltd | E142: Accu | F142: 183.50 | H142: 219 | I142: 218.00 | J142: Profit of Rs.35.50/- | K142: 35.50 | L142: 19.35% | M142: Successful | N142: 2015-04-09
A143: 28 | B143: 2015-04-20 | D143: Kalpataru Power Transmission Ltd | E143: Accu | F143: =(227+237)/2 -> 232.00 | H143: 298 | I143: 298.00 | J143: Target Achieved | K143: 66.00 | L143: 28.45% | M143: Successful | N143: 2017-03-29
A144: 29 | B144: 2015-05-04 | D144: Mastek Ltd | E144: Buy | F144: 385.00 | H144: =212.5+331 -> 543.5 | I144: 510.00 | J144: Profit of Rs 158.50/- | K144: 158.50 | L144: 41.17% | M144: Successful | N144: 2015-08-19
A145: 30 | B145: 2015-05-04 | D145: Suprajit Eng | E145: Buy | F145: 115.50 | H145: 146 | I145: 142.00 | J145: Profit of Rs 30.50/- | K145: 30.50 | L145: 26.41% | M145: Successful | N145: 2015-07-17
A146: 31 | B146: 2015-05-27 | D146: TCI | E146: Buy | F146: 237.50 | H146: 279.5 | I146: 278.00 | J146: Target Achieved | K146: 42.00 | L146: 17.68% | M146: Successful | N146: 2015-08-06
A147: 32 | B147: 2015-06-19 | D147: HSIL | E147: Accu | F147: 340.00 | H147: 448 | I147: 448.00 | J147: Target Achieved | K147: 108.00 | L147: 31.76% | M147: Successful | N147: 2017-10-10
A148: 33 | B148: 2015-07-06 | D148: Capital First | E148: Accu | F148: 390.00 | H148: 460 | I148: 460.00 | J148: Target Achieved | K148: =H148-F148 -> 70.00 | L148: =K148/F148 -> 17.95% | M148: Successful | N148: 2016-04-18
A149: 34 | B149: 2015-07-10 | D149: Dolphin OffShore | E149: Accu | F149: 122.5 | H149: 61.00 | I149: 172.00 | J149: Loss of Rs.61.50/- | K149: -61.50 | L149: -50.20% | M149: Unsuccessful | N149: 2018-08-21
A150: 35 | B150: 2015-08-03 | D150: Allcargo logistics | E150: Accu | F150: 297.50 | H150: 350 | I150: 360.00 | J150: Profit of Rs 52.50/- | K150: 52.50 | L150: 17.65% | M150: Successful | N150: 2015-08-16
A151: 36 | B151: 2015-08-03 | D151: Camline Fine | E151: Accu | F151: 115.50 | H151: 149 | I151: 140.00 | J151: Profit of Rs 33.50/- | K151: 33.50 | L151: 29.00% | M151: Successful | N151: 2017-01-05
A152: 37 | B152: 2015-09-04 | D152: TCI | E152: Accu | F152: 226.00 | H152: 292 | I152: 292.00 | J152: Target Achieved | K152: 66.00 | L152: 29.20% | M152: Successful | N152: 2015-10-09
A153: 38 | B153: 2015-09-07 | D153: Kalpataru Power Transmission Ltd | E153: Accu | F153: 232.50 | H153: 312.5 | I153: 310.00 | J153: Target Achieved | K153: 80.00 | L153: 34.41% | M153: Successful | N153: 2017-03-29
A154: 39 | B154: 2015-09-21 | D154: LLOYD ELECTRIC & ENG LTD | E154: Accu | F154: 196.50 | H154: 238 | I154: 238.00 | J154: Target Achieved | K154: 41.50 | L154: 21.12% | M154: Successful | N154: 2015-10-14
A155: 40 | B155: 2015-09-24 | D155: L&T Finance Holding | E155: Accu | F155: 65.00 | H155: 82 | I155: 82.00 | J155: Target Achieved | K155: 17.00 | L155: 26.15% | M155: Successful | N155: 2016-07-27
A156: 41 | B156: 2015-10-14 | D156: KEC International ltd | E156: Accu | F156: 144.00 | H156: 182.5 | I156: 181.00 | J156: Target Achieved | K156: 38.50 | L156: 26.74% | M156: Successful | N156: 2017-03-23
A157: 42 | B157: 2015-10-14 | D157: Gruh Finance | E157: Accu | F157: 264.00 | H157: 311 | I157: 311.00 | J157: Target Achieved | K157: 47.00 | L157: 17.80% | M157: Successful | N157: 2016-08-22
A158: 43 | B158: 2015-11-10 | D158: Pidilitind | E158: Buy | F158: 549.50 | H158: 630 | I158: 630.00 | J158: Target Achieved | K158: 80.50 | L158: 14.65% | M158: Successful | N158: 2016-02-19
A159: 44 | B159: 2015-12-04 | D159: Zensar Technology | E159: Accu | F159: 1027.50 | H159: 1315 | I159: 1250.00 | J159: Target Achieved | K159: 287.50 | L159: 27.98% | M159: Successful | N159: 2018-05-24
A160: 45 | B160: 2015-12-29 | D160: Vinati Organics Ltd | E160: Accu | F160: 465.00 | H160: 540 | I160: 540.00 | J160: Target Achieved | K160: 75.00 | L160: 16.13% | M160: Successful | N160: 2016-06-09
A161: 46 | B161: 2016-01-11 | D161: GSFC | E161: Buy | F161: 81.00 | H161: 110 | I161: 110.00 | J161: Target Achieved | K161: 29.00 | L161: 35.80% | M161: Successful | N161: 2017-01-10
A162: 47 | B162: 2016-01-13 | D162: SSWL | E162: Buy | F162: 417.50 | H162: 547 | I162: 535.00 | J162: Target Achieved | K162: 129.50 | L162: 31.02% | M162: Successful | N162: 2016-07-27
A163: 48 | B163: 2016-02-08 | D163: Persistent System Ltd | E163: Accu | F163: 650.00 | H163: 800 | I163: 800.00 | J163: Target Achieved | K163: 150.00 | L163: 23.08% | M163: Successful | N163: 2018-02-23
A164: 49 | B164: 2016-03-04 | D164: UPL | E164: Accu | F164: 437.50 | H164: 504.5 | I164: 522.00 | J164: Profit of Rs.67/- | K164: 67.00 | L164: 15.31% | M164: Successful | N164: 2016-04-20
A165: 50 | B165: 2016-03-09 | D165: Ashoka Buildcon Ltd | E165: Accu | F165: 189.50 | H165: 218 | I165: 218.00 | J165: Target Achieved | K165: 28.50 | L165: 15.04% | M165: Successful | N165: 2017-10-26
A166: 51 | B166: 2016-04-11 | D166: PTC INDIA FIN SERV LTD | E166: Accu | F166: 36.5 | H166: 15.85 | I166: 60.00 | J166: Loss of Rs.20.65/- | K166: -20.65 | L166: -56.58% | M166: Unsuccessful | N166: 2019-06-11
A167: 52 | B167: 2016-04-12 | D167: CAMLINFINE $ | E167: Accu | F167: 93.00 | H167: 149 | I167: 140.00 | J167: Profit of Rs 56/- | K167: 56.00 | L167: 60.22% | M167: Successful | N167: 2017-01-05
A168: 53 | B168: 2016-04-12 | D168: Greaves Cotton Ltd. | E168: Accu | F168: 130.00 | H168: 150 | I168: 150-155 | J168: Target Achieved | K168: 20.00 | L168: 15.38% | M168: Successful | N168: 2016-07-13
A169: 54 | B169: 2016-04-13 | D169: DHFL | E169: Accu | F169: 196.00 | H169: 299 | I169: 299.00 | J169: Target Achieved | K169: 103.00 | L169: 52.55% | M169: Successful | N169: 2016-09-07
A170: 55 | B170: 2016-04-13 | D170: Magma | E170: Accu | F170: 88.00 | H170: 103 | I170: 103.00 | J170: Target Achieved | K170: 15.00 | L170: 17.05% | M170: Successful | N170: 2016-06-09
A171: 56 | B171: 2016-05-02 | D171: KEC International ltd $ | E171: Accu | F171: 127.50 | H171: 148 | I171: 148-150 | J171: Target Achieved | K171: =H171-F171 -> 20.50 | L171: =K171/F171 -> 16.08% | M171: Successful | N171: 2016-07-13
A172: 57 | B172: 2016-05-03 | D172: Mindtree | E172: Accu | F172: 675.00 | H172: 815 | I172: 790-800 | J172: Target Achieved | K172: =H172-F172 -> 140.00 | L172: =K172/F172 -> 20.74% | M172: Successful | N172: 2018-02-23
A173: 58 | B173: 2016-06-01 | D173: Atulauto | E173: Accu | F173: 500 | H173: 232.50 | I173: 565-570 | J173: Loss of Rs.267.50 /- | K173: =H173-F173 -> -267.50 | L173: =K173/F173 -> -53.50% | M173: Unsuccessful | N173: 2019-09-27
A174: 59 | B174: 2016-06-06 | D174: TRITURBINE | E174: Accu | F174: 110.00 | H174: 126.5 | I174: 125.00 | J174: Profit of Rs.16.50/- | K174: =H174-F174 -> 16.50 | L174: =K174/F174 -> 15.00% | M174: Successful | N174: 2016-07-01
A175: 60 | B175: 2016-06-17 | D175: Pennar Industries Ltd | E175: Accu | F175: 44.00 | H175: 69.5 | I175: 69.50 | J175: Profit of Rs.25.50/- | K175: =H175-F175 -> 25.50 | L175: =K175/F175 -> 57.95% | M175: Successful | N175: 2017-08-30
A176: 61 | B176: 2016-06-28 | D176: EVEREADY | E176: Accu | F176: 262.50 | H176: 340 | I176: 333.00 | J176: Profit of Rs.77.50/- | K176: 77.50 | L176: 29.52% | M176: Successful | N176: 2017-10-09
A177: 62 | B177: 2016-06-28 | D177: FIEMIND | E177: Accu | F177: 840.00 | H177: 1230 | I177: 1230.00 | J177: Target Achieved | K177: 390.00 | L177: 46.43% | M177: Successful | N177: 2016-10-06
A178: 63 | B178: 2016-07-05 | D178: Bajaj Corp Ltd | E178: Accu | F178: 395 | H178: =(468.5+342.5)/2 -> 405.50 | I178: 510.00 | J178: Profit of Rs.10.50/- | K178: =H178-F178 -> 10.50 | L178: =K178/F178 -> 3% | M178: Neutral | N178: 2019-05-21
A179: 64 | B179: 2016-08-02 | D179: GPPL $ | E179: Buy | F179: =169.5-12.8 -> 156.7 | H179: 77.00 | I179: 198-200 | J179: Loss of Rs.79.7/- | K179: -79.70 | L179: -50.86% | M179: Unsuccessful | N179: 2019-02-26
A180: 65 | B180: 2016-08-04 | D180: WONDERLA HOLIDAYS LTD | E180: Accu | F180: 400 | H180: 305.00 | I180: 475.00 | J180: Loss of Rs.95/- | K180: -95.00 | L180: -23.75% | M180: Unsuccessful | N180: 2019-05-21
A181: 66 | B181: 2016-08-11 | D181: CAMLINFINE | E181: Accu | F181: 86.50 | H181: 130 | I181: 130.00 | J181: Profit of Rs.43.50/- | K181: 43.50 | L181: 50.29% | M181: Successful | N181: 2017-12-22
A182: 67 | B182: 2016-08-18 | D182: GRANULES | E182: Accu | F182: 133.5 | H182: 126.50 | I182: 178.00 | J182: Exit | K182: -7.00 | L182: -5.24% | M182: Unsuccessful | N182: 2016-09-02
A183: 68 | B183: 2016-08-31 | D183: VA TECH WABAG | E183: Accu | F183: 560.00 | H183: 725 | I183: 725.00 | J183: Target Achieved | K183: 165.00 | L183: 29.46% | M183: Successful | N183: 2016-03-27
A184: 69 | B184: 2016-09-01 | D184: SKIPPER LIMITED | E184: Accu | F184: 160.50 | H184: 210 | I184: 210.00 | J184: Target Achieved | K184: 49.50 | L184: 30.84% | M184: Successful | N184: 2017-05-16
A185: 70 | B185: 2016-10-03 | D185: IFBIND | E185: Accu | F185: 430.00 | H185: 596 | I185: 575.00 | J185: Profit of Rs.166/- | K185: 166.00 | L185: 38.60% | M185: Successful | N185: 2017-02-03
A186: 71 | B186: 2016-10-14 | D186: ASIANTILES | E186: Accu | F186: 280.00 | H186: 345 | I186: 345.00 | J186: Target Achieved | K186: =H186-F186 -> 65.00 | L186: =K186/F186 -> 23.21% | M186: Successful | N186: 2017-03-20
A187: 72 | B187: 2016-10-14 | D187: DEEPIND | E187: Accu | F187: 245.00 | H187: 325.5 | I187: 330.00 | J187: Profit of Rs.80.5/- | K187: 80.50 | L187: =K187/F187 -> 32.86% | M187: Successful | N187: 2017-02-03
A188: 73 | B188: 2016-10-17 | D188: DCBBANK | E188: Accu | F188: 125.00 | H188: 160 | I188: 160.00 | J188: Target Achieved | K188: 35.00 | L188: 28.00% | M188: Successful | N188: 2017-03-09
A189: 74 | B189: 2016-10-17 | D189: ORIENTREF | E189: Accu | F189: 114.00 | H189: 145 | I189: 145.00 | J189: Target Achieved | K189: 31.00 | L189: =K189/F189 -> 27.19% | M189: Successful | N189: 2017-05-04
A190: 75 | B190: 2016-10-17 | D190: GANECOS | E190: Accu | F190: 212.00 | H190: 280 | I190: 276.00 | J190: Profit of Rs.68/- | K190: 68.00 | L190: =K190/F190 -> 32.08% | M190: Successful | N190: 2017-05-03
A191: 76 | B191: 2016-11-04 | D191: NBCC | E191: Accu | F191: 155.00 | H191: 210 | I191: 210.00 | J191: Profit of Rs.55/- | K191: 55.00 | L191: =K191/F191 -> 35.48% | M191: Successful | N191: 2017-07-28
A192: 77 | B192: 2016-12-06 | D192: PRECAM | E192: Accu | F192: 150.5 | H192: 72.50 | I192: 174.00 | J192: Loss of Rs.78/- | K192: -78.00 | L192: -51.83% | M192: Unsuccessful | N192: 2018-08-21
A193: 78 | B193: 2016-12-08 | D193: INFRATEL | E193: Accu | F193: 380.00 | H193: 478 | I193: 468.00 | J193: Target Achieved | K193: =H193-F193 -> 98.00 | L193: =K193/F193 -> 25.79% | M193: Successful | N193: 2017-10-17
A194: 79 | B194: 2016-12-30 | D194: GODREJPROP | E194: Accu | F194: 305.00 | H194: 375 | I194: 375.00 | J194: Target Achieved | K194: =H194-F194 -> 70.00 | L194: =K194/F194 -> 22.95% | M194: Successful | N194: 2017-02-02
A195: 80 | B195: 2017-01-04 | D195: DEEPAKNTR | E195: Accu | F195: 99.50 | H195: 158 | I195: 158.00 | J195: Target Achieved | K195: =H195-F195 -> 58.50 | L195: =K195/F195 -> 58.79% | M195: Successful | N195: 2017-06-12
A196: 81 | B196: 2017-01-04 | D196: DEEPAKNTR | E196: Accu | F196: 99.50 | H196: 158 | I196: 158.00 | J196: Target Achieved | K196: 58.50 | L196: 58.79% | M196: Successful | N196: 2017-06-12
A197: 82 | B197: 2017-02-20 | D197: RECLTD | E197: Accu | F197: 140.50 | H197: 220 | I197: 220.00 | J197: Target Achieved | K197: =H197-F197 -> 79.50 | L197: =K197/F197 -> 56.58% | M197: Successful | N197: 2017-05-09
A198: 83 | B198: 2017-02-20 | D198: SUBROS | E198: Accu | F198: 202.50 | H198: 234 | I198: 234.00 | J198: Target Achieved | K198: 31.50 | L198: 15.56% | M198: Successful | N198: 2017-04-11
A199: 84 | B199: 2017-03-24 | D199: VRLLOG | E199: Accu | F199: 300.50 | H199: 417.5 | I199: 420.00 | J199: Profit of Rs.117/- | K199: =H199-F199 -> 117.00 | L199: =K199/F199 -> 38.94% | M199: Successful | N199: 2017-12-01
A200: 85 | B200: 2017-03-24 | D200: FIEMIND | E200: Accu | F200: 850.00 | H200: 1042.5 | I200: 1023.00 | J200: Profit of Rs 192.50/- | K200: 192.50 | L200: 22.65% | M200: Successful | N200: 2017-04-05
A201: 86 | B201: 2017-04-05 | D201: RATNAMANI | E201: Accu | F201: 785.00 | H201: 930 | I201: 920.00 | J201: Profit of Rs.145/- | K201: =H201-F201 -> 145.00 | L201: =K201/F201 -> 18.47% | M201: Successful | N201: 2017-08-29
A202: 87 | B202: 2017-04-06 | D202: ZEEMEDIA | E202: Accu | F202: 40 | H202: 13.10 | I202: 60.00 | J202: Loss of Rs.26.9/- | K202: -26.90 | L202: -67.25% | M202: Unsuccessful | N202: 2018-02-07
A203: 88 | B203: 2017-04-12 | D203: DABUR | E203: Accu | F203: 289.50 | H203: 354 | I203: 360.00 | J203: Profit of Rs.64.5/- | K203: =H203-F203 -> 64.50 | L203: =K203/F203 -> 22.28% | M203: Successful | N203: 2017-11-01
A204: 89 | B204: 2017-04-20 | D204: KPRMILL | E204: Accu | F204: 700.00 | H204: 840 | I204: 840.00 | J204: Profit of Rs.140/- | K204: 140.00 | L204: 20.00% | M204: Successful | N204: 2017-06-07
A205: 90 | B205: 2017-06-01 | D205: ESSELPACK | E205: Accu | F205: 130.00 | H205: 144.25 | I205: 170.00 | J205: Profit of Rs.14.25/- | K205: 14.25 | L205: 10.96% | M205: Successful | N205: 2019-07-29
A206: 91 | B206: 2017-06-15 | D206: KEI | E206: Accu | F206: 214.50 | H206: 262 | I206: 262.00 | J206: Profit of Rs.47.5/- | K206: 47.50 | L206: 22.14% | M206: Successful | N206: 2017-08-30
A207: 92 | B207: 2017-07-17 | D207: MAYURUNIQ | E207: Accu | F207: 370.00 | H207: 447.5 | I207: 450.00 | J207: Target Achieved | K207: 77.50 | L207: 20.95% | M207: Successful | N207: 2017-10-27
A208: 93 | B208: 2017-07-27 | D208: RAMCOCEM | E208: Accu | F208: 657.50 | H208: 825 | I208: 820.00 | J208: Target Achieved | K208: 167.50 | L208: 25.48% | M208: Successful | N208: 2017-12-21
A209: 94 | B209: 2017-08-17 | D209: FINPIPE | E209: Accu | F209: 605.00 | H209: 750 | I209: 750.00 | J209: Profit of Rs.145/- | K209: 145.00 | L209: 23.97% | M209: Successful | N209: 2017-10-19
A210: 95 | B210: 2017-09-01 | D210: SHK | E210: Accu | F210: 255 | H210: 217.25 | I210: 320.00 | J210: Loss of Rs.37.75/- | K210: -37.75 | L210: -15% | M210: Unsuccessful | N210: 2019-07-15
A211: 96 | B211: 2017-09-19 | D211: SKIPPER | E211: Accu | F211: 215.00 | H211: 258 | I211: 258.00 | J211: Target Achieved | K211: 43.00 | L211: 20.00% | M211: Successful | N211: 2017-11-01
A212: 97 | B212: 2017-09-19 | D212: SKIPPER | E212: Accu | F212: 215.00 | H212: 258 | I212: 258.00 | J212: Target Achieved | K212: 43.00 | L212: 20.00% | M212: Successful | N212: 2017-11-01
A213: 98 | B213: 2017-09-20 | D213: CAMLINFINE$ | E213: Accu | F213: 75.00 | H213: 90 | I213: 90.00 | J213: Profit of Rs.15.00/- | K213: =H213-F213 -> 15.00 | L213: =K213/F213 -> 20.00% | M213: Successful | N213: 2017-10-11
A214: 99 | B214: 2017-10-03 | D214: GNA | E214: Accu | F214: 315.00 | H214: 392 | I214: 384.00 | J214: Profit of Rs.77/- | K214: 77.00 | L214: 24.44% | M214: Successful | N214: 2017-10-09
A215: 100 | B215: 2017-10-05 | D215: NOCIL | E215: Accu | F215: 145.00 | H215: 179 | I215: 180.00 | J215: Profit of Rs.34/- | K215: 34.00 | L215: 23.45% | M215: Successful | N215: 2017-10-17
A216: 101 | B216: 2017-10-06 | D216: CENTURYPLY | E216: Accu | F216: 256.00 | H216: 323 | I216: 320.00 | J216: Target Achieved | K216: 67.00 | L216: 26.17% | M216: Successful | N216: 2017-11-28
A217: 102 | B217: 2017-10-09 | D217: EIHOTEL | E217: Accu | F217: 137.50 | H217: 184 | I217: 183.00 | J217: Profit of Rs.46.5/- | K217: 46.50 | L217: 33.82% | M217: Successful | N217: 2018-01-08
A218: 103 | B218: 2017-10-10 | D218: NRBBEARING | E218: Accu | F218: 125.50 | H218: 158 | I218: 155.00 | J218: Profit of Rs.32.5/- | K218: 32.50 | L218: 25.90% | M218: Successful | N218: 2017-11-28
A219: 104 | B219: 2017-10-10 | D219: BOROSIL | E219: Accu | F219: 895.00 | H219: 1122.5 | I219: 1078.00 | J219: Profit of Rs.227.5/- | K219: 227.50 | L219: 25.42% | M219: Successful | N219: 2018-01-17
A220: 105 | B220: 2017-10-12 | D220: CYIENT | E220: Accu | F220: 525.00 | H220: 629 | I220: 629.00 | J220: Target Achieved | K220: 104.00 | L220: 19.81% | M220: Successful | N220: 2018-01-19
A221: 106 | B221: 2017-11-07 | D221: HATSUN | E221: Accu | F221: 740.00 | H221: 892.5 | I221: 900.00 | J221: Profit of Rs.152.5/- | K221: =H221-F221 -> 152.50 | L221: =K221/F221 -> 20.61% | M221: Successful | N221: 2017-11-13
A222: 107 | B222: 2017-12-04 | D222: SANGHIIND | E222: Accu | F222: 118.50 | H222: 143.5 | I222: 145.00 | J222: Profit of Rs.25/- | K222: =H222-F222 -> 25.00 | L222: =K222/F222 -> 21.10% | M222: Successful | N222: 2017-12-28
A223: 108 | B223: 2017-12-21 | D223: KAJARIACER | E223: Accu | F223: 715 | H223: 500.00 | I223: 872.00 | J223: Loss of Rs.215/- | K223: =H223-F223 -> -215.00 | L223: =K223/F223 -> -30.07% | M223: Unsuccessful | N223: 2019-07-24
A224: 109 | B224: 2017-12-29 | D224: GNA | E224: Accu | F224: 435.00 | H224: 542.5 | I224: 539.00 | J224: Target Achieved | K224: 107.50 | L224: 24.71% | M224: Successful | N224: 2018-04-16
A225: 110 | B225: 2017-12-29 | D225: ZENSARTECH | E225: Accu | F225: 885.00 | H225: 1090 | I225: 1084.00 | J225: Target Achieved | K225: 205.00 | L225: 23.16% | M225: Successful | N225: 2018-04-23
A226: 111 | B226: 2018-04-02 | D226: EVERESTIND | E226: Accu | F226: 478.50 | H226: 442 | I226: 613.00 | J226: Loss of Rs.36.50 /- | K226: =H226-F226 -> -36.50 | L226: =K226/F226 -> -7.63% | M226: Unsuccessful | N226: 2019-10-24
A227: 112 | B227: 2018-04-04 | D227: GPPL$ | E227: Accu | F227: =141.5-7.3 -> 134.2 | H227: 77.00 | I227: 180.00 | J227: Loss of Rs.57.2/- | K227: =H227-F227 -> -57.20 | L227: =K227/F227 -> -42.62% | M227: Unsuccessful | N227: 2019-02-26
A228: 113 | B228: 2018-04-19 | D228: MANPASAND | E228: Accu | F228: 430 | H228: 220.00 | I228: 537.00 | J228: Loss of Rs.210/- | K228: =H228-F228 -> -210.00 | L228: =K228/F228 -> -48.84% | M228: Unsuccessful | N228: 2018-06-01
A229: 114 | B229: 2018-04-30 | D229: HEIDELBERG | E229: Accu | F229: 153.50 | H229: 196.00 | I229: 196.00 | J229: Profit of Rs.42.50/- | K229: =H229-F229 -> 42.50 | L229: =K229/F229 -> 28% | M229: Successful | N229: 2019-05-20
A230: 115 | B230: 2018-07-25 | D230: ZEEMEDIA | E230: Accu | F230: 27.5 | H230: 13.10 | I230: 60.00 | J230: Loss of Rs.14.40/- | K230: -14.40 | L230: -52.36% | M230: Unsuccessful | N230: 2018-02-07
A231: 116 | B231: 2018-08-06 | D231: GABRIEL | E231: Accu | F231: 148.5 | H231: 102 | I231: 182.00 | J231: Loss of Rs.46.50/- | K231: =H231-F231 -> -46.50 | L231: =K231/F231 -> -31.31% | M231: Unsuccessful | N231: 2019-07-15
A232: 117 | B232: 2018-08-23 | D232: INDIANHUME | E232: Accu | F232: 285 | H232: 355 | I232: 364.00 | J232: Profit of Rs.70/- | K232: 70.00 | L232: 24.56% | M232: Successful | N232: 2018-12-21
A233: 118 | B233: 2018-08-29 | D233: GRINDWELL | E233: Accu | F233: 525 | H233: 585 | I233: 635.00 | J233: Profit of Rs.60- | K233: =H233-F233 -> 60.00 | L233: =K233/F233 -> 11.43% | M233: Successful | N233: 2019-07-16
A234: 119 | B234: 2018-10-22 | D234: FINPIPE | E234: Accu | F234: 475 | H234: 574 | I234: 570.00 | J234: Target Achieved | K234: 99.00 | L234: 20.84% | M234: Successful | N234: 2018-10-30
A235: 120 | B235: 2018-10-24 | D235: GULFOILLUB | E235: Accu | F235: 707.5 | H235: 872 | I235: 872.00 | J235: Target Achieved | K235: 164.50 | L235: 23.25% | M235: Successful | N235: 2019-01-17
A236: 121 | B236: 2018-10-25 | D236: DBCORP | E236: Accu | F236: 162 | H236: 204 | I236: 209.00 | J236: Profit of Rs.42/- | K236: 42.00 | L236: 25.93% | M236: Successful | N236: 2019-03-15
A237: 122 | B237: 2018-10-26 | D237: RITES | E237: Accu | F237: 240 | H237: 297 | I237: 297.00 | J237: Target Achieved | K237: 57.00 | L237: 23.75% | M237: Successful | N237: 2018-11-13
A238: 123 | B238: 2018-12-05 | D238: BRIGADE | E238: Accu | F238: 202.5 | H238: 255 | I238: 252.00 | J238: Target Achieved | K238: 52.50 | L238: 25.93% | M238: Successful | N238: 2019-03-18 | R238: V
A239: 124 | B239: 2018-12-31 | D239: JKCEMENT | E239: Accu | F239: 710 | H239: 866 | I239: 866.00 | J239: Target Achieved | K239: 156.00 | L239: 21.97% | M239: Successful | N239: 2019-03-29 | R239: V
A240: 125 | B240: 2019-02-26 | D240: MARICO | E240: Accu | F240: 337.25 | H240: 398.5 | I240: 411.00 | J240: Profit of Rs.61.25/- | K240: 61.25 | L240: 18.16% | M240: Successful | N240: 2019-10-22 | R240: V
... 40 more rows
